Workbook

Sheet Profit & Loss
A1: ='Data Sheet'!B1 -> AXTEL INDUSTRIES LTD | H1: =UPDATE ->  | M1: SCREENER.IN
A3: Narration | B3: ='Data Sheet'!B16 -> 2010-03-31 | C3: ='Data Sheet'!C16 -> 2011-03-31 | D3: ='Data Sheet'!D16 -> 2012-03-31 | E3: ='Data Sheet'!E16 -> 2013-03-31 | F3: ='Data Sheet'!F16 -> 2014-03-31 | G3: ='Data Sheet'!G16 -> 2015-03-31 | H3: ='Data Sheet'!H16 -> 2016-03-31 | I3: ='Data Sheet'!I16 -> 2017-03-31 | J3: ='Data Sheet'!J16 -> 2018-03-31 | K3: ='Data Sheet'!K16 -> 2019-03-31 | L3: Trailing | M3: Best Case | N3: Worst Case
A4: Sales | B4: ='Data Sheet'!B17 -> 27.05 | C4: ='Data Sheet'!C17 -> 54.09 | D4: ='Data Sheet'!D17 -> 58.41 | E4: ='Data Sheet'!E17 -> 60.03 | F4: ='Data Sheet'!F17 -> 48.01 | G4: ='Data Sheet'!G17 -> 39.23 | H4: ='Data Sheet'!H17 -> 66.93 | I4: ='Data Sheet'!I17 -> 76.11 | J4: ='Data Sheet'!J17 -> 81.5 | K4: ='Data Sheet'!K17 -> 110.75 | L4: =SUM(Quarters!H4:K4) -> 106.34 | M4: =$K4+M27*K4 -> 150.4976994 | N4: =$K4+N27*L4 -> 120.927309
A5: Expenses | B5: =SUM('Data Sheet'!B18,'Data Sheet'!B20:B24, -1*'Data Sheet'!B19) -> 25.08 | C5: =SUM('Data Sheet'!C18,'Data Sheet'!C20:C24, -1*'Data Sheet'!C19) -> 48.62 | D5: =SUM('Data Sheet'!D18,'Data Sheet'!D20:D24, -1*'Data Sheet'!D19) -> 52.19 | E5: =SUM('Data Sheet'!E18,'Data Sheet'!E20:E24, -1*'Data Sheet'!E19) -> 53.27 | F5: =SUM('Data Sheet'!F18,'Data Sheet'!F20:F24, -1*'Data Sheet'!F19) -> 39.07 | G5: =SUM('Data Sheet'!G18,'Data Sheet'!G20:G24, -1*'Data Sheet'!G19) -> 41.52 | H5: =SUM('Data Sheet'!H18,'Data Sheet'!H20:H24, -1*'Data Sheet'!H19) -> 56.61 | I5: =SUM('Data Sheet'!I18,'Data Sheet'!I20:I24, -1*'Data Sheet'!I19) -> 65.43 | J5: =SUM('Data Sheet'!J18,'Data Sheet'!J20:J24, -1*'Data Sheet'!J19) -> 71.41 | K5: =SUM('Data Sheet'!K18,'Data Sheet'!K20:K24, -1*'Data Sheet'!K19) -> 90.87 | L5: =SUM(Quarters!H5:K5) -> 88.23 | M5: =M4-M6 -> 124.8675194 | N5: 105.3125612
A6: Operating Profit | B6: =B4-B5 -> 1.97 | C6: =C4-C5 -> 5.47 | D6: 6.22 | E6: 6.76 | F6: 8.94 | G6: -2.29 | H6: 10.32 | I6: 10.68 | J6: 10.09 | K6: 19.88 | L6: =SUM(Quarters!H6:K6) -> 18.11 | M6: =M4*M28 -> 25.63017995 | N6: =N4*N28 -> 15.61474776
A7: Other Income | B7: ='Data Sheet'!B25 -> 0.07 | C7: ='Data Sheet'!C25 -> 0.02 | D7: ='Data Sheet'!D25 -> 0.1 | E7: ='Data Sheet'!E25 -> 0.33 | F7: ='Data Sheet'!F25 -> 0.2 | G7: ='Data Sheet'!G25 -> 0.23 | H7: ='Data Sheet'!H25 -> 0.22 | I7: ='Data Sheet'!I25 -> 1.17 | J7: ='Data Sheet'!J25 -> 0.68 | K7: ='Data Sheet'!K25 -> 1.59 | L7: =SUM(Quarters!H7:K7) -> 2.22 | M7: 0 | N7: 0
A8: Depreciation | B8: ='Data Sheet'!B26 -> 0.65 | C8: ='Data Sheet'!C26 -> 0.73 | D8: ='Data Sheet'!D26 -> 0.93 | E8: ='Data Sheet'!E26 -> 1.38 | F8: ='Data Sheet'!F26 -> 2.8 | G8: ='Data Sheet'!G26 -> 3.89 | H8: ='Data Sheet'!H26 -> 3.45 | I8: ='Data Sheet'!I26 -> 2.78 | J8: ='Data Sheet'!J26 -> 2.39 | K8: ='Data Sheet'!K26 -> 2.8 | L8: =SUM(Quarters!H8:K8) -> 2.67 | M8: =+$L8 -> 2.67 | N8: =+$L8 -> 2.67
A9: Interest | B9: ='Data Sheet'!B27 -> 0.33 | C9: ='Data Sheet'!C27 -> 0.45 | D9: ='Data Sheet'!D27 -> 0.92 | E9: ='Data Sheet'!E27 -> 0.71 | F9: ='Data Sheet'!F27 -> 2.18 | G9: ='Data Sheet'!G27 -> 1.94 | H9: ='Data Sheet'!H27 -> 1.37 | I9: ='Data Sheet'!I27 -> 0.75 | J9: ='Data Sheet'!J27 -> 0.5 | K9: ='Data Sheet'!K27 -> 0.48 | L9: =SUM(Quarters!H9:K9) -> 0.6 | M9: =+$L9 -> 0.6 | N9: =+$L9 -> 0.6
A10: Profit before tax | B10: ='Data Sheet'!B28 -> 1.06 | C10: ='Data Sheet'!C28 -> 4.31 | D10: ='Data Sheet'!D28 -> 4.47 | E10: ='Data Sheet'!E28 -> 5 | F10: ='Data Sheet'!F28 -> 4.16 | G10: ='Data Sheet'!G28 -> -7.89 | H10: ='Data Sheet'!H28 -> 5.72 | I10: ='Data Sheet'!I28 -> 8.32 | J10: ='Data Sheet'!J28 -> 7.88 | K10: ='Data Sheet'!K28 -> 18.19 | L10: =SUM(Quarters!H10:K10) -> 17.06 | M10: =M6+M7-SUM(M8:M9) -> 22.36017995 | N10: =N6+N7-SUM(N8:N9) -> 12.34474776
A11: Tax | B11: ='Data Sheet'!B29 -> 0.4 | C11: ='Data Sheet'!C29 -> 1.89 | D11: ='Data Sheet'!D29 -> 1.45 | E11: ='Data Sheet'!E29 -> 1.63 | F11: ='Data Sheet'!F29 -> 1.4 | G11: ='Data Sheet'!G29 -> -0.35 | H11: ='Data Sheet'!H29 -> 0.92 | I11: ='Data Sheet'!I29 -> 1.49 | J11: ='Data Sheet'!J29 -> 1.96 | K11: ='Data Sheet'!K29 -> 5.24 | L11: =SUM(Quarters!H11:K11) -> 4.75 | M11: =IF($L10>0,$L11/$L10,0) -> 0.2784290739 | N11: =IF($L10>0,$L11/$L10,0) -> 0.2784290739
A12: Net profit | B12: ='Data Sheet'!B30 -> 0.66 | C12: ='Data Sheet'!C30 -> 2.42 | D12: ='Data Sheet'!D30 -> 3.02 | E12: ='Data Sheet'!E30 -> 3.38 | F12: ='Data Sheet'!F30 -> 2.76 | G12: ='Data Sheet'!G30 -> -7.54 | H12: ='Data Sheet'!H30 -> 4.8 | I12: ='Data Sheet'!I30 -> 6.84 | J12: ='Data Sheet'!J30 -> 5.93 | K12: ='Data Sheet'!K30 -> 12.96 | L12: =SUM(Quarters!H12:K12) -> 12.31 | M12: =M10-M11*M10 -> 16.13445576 | N12: =N10-N11*N10 -> 8.907611074
A13: EPS | B13: =IF('Data Sheet'!B93>0,B12/'Data Sheet'!B93,0) -> 0.6600132003 | C13: =IF('Data Sheet'!C93>0,C12/'Data Sheet'!C93,0) -> 2.420048401 | D13: =IF('Data Sheet'!D93>0,D12/'Data Sheet'!D93,0) -> 3.020060401 | E13: =IF('Data Sheet'!E93>0,E12/'Data Sheet'!E93,0) -> 3.380067601 | F13: =IF('Data Sheet'!F93>0,F12/'Data Sheet'!F93,0) -> 2.760055201 | G13: =IF('Data Sheet'!G93>0,G12/'Data Sheet'!G93,0) -> -4.667343452 | H13: =IF('Data Sheet'!H93>0,H12/'Data Sheet'!H93,0) -> 2.971253126 | I13: =IF('Data Sheet'!I93>0,I12/'Data Sheet'!I93,0) -> 4.234035705 | J13: =IF('Data Sheet'!J93>0,J12/'Data Sheet'!J93,0) -> 3.670735633 | K13: =IF('Data Sheet'!K93>0,K12/'Data Sheet'!K93,0) -> 8.02238344 | L13: =IF('Data Sheet'!$B6>0,'Profit & Loss'!L12/'Data Sheet'!$B6,0) -> 7.620075239 | M13: =IF('Data Sheet'!$B6>0,'Profit & Loss'!M12/'Data Sheet'!$B6,0) -> 9.987470902 | N13: =IF('Data Sheet'!$B6>0,'Profit & Loss'!N12/'Data Sheet'!$B6,0) -> 5.513945296
A14: Price to earning | B14: =IF(B15>0,B15/B13,"") -> 18.16630333 | C14: =IF(C15>0,C15/C13,"") -> 6.078390826 | D14: 4.49991 | E14: 2.349065444 | F14: 2.282563043 | G14: -2.442502918 | H14: 4.950773083 | I14: 19.50857427 | J14: 25.47173356 | K14: 15.79954398 | L14: =IF(L13>0,L15/L13,0) -> 11.87652315 | M14: =M29 -> 18.16409374 | N14: =N29 -> 11.09833807
A15: Price | B15: ='Data Sheet'!B90 -> 11.99 | C15: ='Data Sheet'!C90 -> 14.71 | D15: ='Data Sheet'!D90 -> 13.59 | E15: ='Data Sheet'!E90 -> 7.94 | F15: ='Data Sheet'!F90 -> 6.3 | G15: ='Data Sheet'!G90 -> 11.4 | H15: ='Data Sheet'!H90 -> 14.71 | I15: ='Data Sheet'!I90 -> 82.6 | J15: ='Data Sheet'!J90 -> 93.5 | K15: ='Data Sheet'!K90 -> 126.75 | L15: ='Data Sheet'!B8 -> 90.5 | M15: =M13*M14 -> 181.4133577 | N15: =N13*N14 -> 61.19562899
A17: EBIT | B17: =B10+B9 -> 1.39 | C17: =C10+C9 -> 4.76 | D17: 5.39 | E17: 5.71 | F17: 6.34 | G17: -5.95 | H17: 7.09 | I17: 9.07 | J17: 8.38 | K17: 18.67 | L17: 17.66
A18: EBITDA | B18: =B17+B8 -> 2.04 | C18: =C17+C8 -> 5.49 | D18: 6.32 | E18: 7.09 | F18: 9.14 | G18: -2.06 | H18: 10.54 | I18: 11.85 | J18: 10.77 | K18: 21.47 | L18: 20.33
A19: Operating Profit (excl Other Income) | B19: =B18-B7 -> 1.97 | C19: =C18-C7 -> 5.47 | D19: 6.22 | E19: 6.76 | F19: 8.94 | G19: -2.29 | H19: 10.32 | I19: 10.68 | J19: 10.09 | K19: 19.88 | L19: 18.11
A21: RATIOS:
A22: DPS | B22: =IF('Data Sheet'!B93>0,'Data Sheet'!B31/'Data Sheet'!B93,0) -> 0 | C22: =IF('Data Sheet'!C93>0,'Data Sheet'!C31/'Data Sheet'!C93,0) -> 0 | D22: =IF('Data Sheet'!D93>0,'Data Sheet'!D31/'Data Sheet'!D93,0) -> 0 | E22: =IF('Data Sheet'!E93>0,'Data Sheet'!E31/'Data Sheet'!E93,0) -> 0 | F22: =IF('Data Sheet'!F93>0,'Data Sheet'!F31/'Data Sheet'!F93,0) -> 0 | G22: =IF('Data Sheet'!G93>0,'Data Sheet'!G31/'Data Sheet'!G93,0) -> 0 | H22: =IF('Data Sheet'!H93>0,'Data Sheet'!H31/'Data Sheet'!H93,0) -> 0 | I22: =IF('Data Sheet'!I93>0,'Data Sheet'!I31/'Data Sheet'!I93,0) -> 0 | J22: =IF('Data Sheet'!J93>0,'Data Sheet'!J31/'Data Sheet'!J93,0) -> 1.498006784 | K22: =IF('Data Sheet'!K93>0,'Data Sheet'!K31/'Data Sheet'!K93,0) -> 1.498006784
A23: Dividend Payout | B23: =IF('Data Sheet'!B30>0, 'Data Sheet'!B31/'Data Sheet'!B30, 0) -> 0 | C23: =IF('Data Sheet'!C30>0, 'Data Sheet'!C31/'Data Sheet'!C30, 0) -> 0 | D23: =IF('Data Sheet'!D30>0, 'Data Sheet'!D31/'Data Sheet'!D30, 0) -> 0 | E23: =IF('Data Sheet'!E30>0, 'Data Sheet'!E31/'Data Sheet'!E30, 0) -> 0 | F23: =IF('Data Sheet'!F30>0, 'Data Sheet'!F31/'Data Sheet'!F30, 0) -> 0 | G23: =IF('Data Sheet'!G30>0, 'Data Sheet'!G31/'Data Sheet'!G30, 0) -> 0 | H23: =IF('Data Sheet'!H30>0, 'Data Sheet'!H31/'Data Sheet'!H30, 0) -> 0 | I23: =IF('Data Sheet'!I30>0, 'Data Sheet'!I31/'Data Sheet'!I30, 0) -> 0 | J23: =IF('Data Sheet'!J30>0, 'Data Sheet'!J31/'Data Sheet'!J30, 0) -> 0.4080944351 | K23: =IF('Data Sheet'!K30>0, 'Data Sheet'!K31/'Data Sheet'!K30, 0) -> 0.1867283951
A24: OPM | B24: =IF(B6>0,B6/B4,0) -> 0.07282809612 | C24: =IF(C6>0,C6/C4,0) -> 0.10112775 | D24: 0.106488615 | E24: 0.1126103615 | F24: 0.186211206 | G24: 0 | H24: 0.1541909458 | I24: 0.1403232164 | J24: 0.123803681 | K24: 0.179503386 | L24: 0.1703028023
G26: TRENDS: | H26: 10 YEARS | I26: 7 YEARS | J26: 5 YEARS | K26: 3 YEARS | L26: RECENT | M26: BEST | N26: WORST
G27: Sales Growth | H27: =IF(B4=0,"",POWER($K4/B4,1/9)-1) -> 0.1695521921 | I27: =IF(D4=0,"",POWER($K4/D4,1/7)-1) -> 0.09570536924 | J27: =IF(F4=0,"",POWER($K4/F4,1/5)-1) -> 0.1819589833 | K27: =IF(H4=0,"",POWER($K4/H4, 1/3)-1) -> 0.1827899797 | L27: =IF(ISERROR(MAX(IF(J4=0,"",(K4-J4)/J4),IF(K4=0,"",(L4-K4)/K4))),"",MAX(IF(J4=0,"",(K4-J4)/J4),IF(K4=0,"",(L4-K4)/K4))) -> 0.3588957055 | M27: =MAX(K27:L27) -> 0.3588957055 | N27: =MIN(H27:L27) -> 0.09570536924
G28: OPM | H28: =IF(SUM(B4:$K$4)=0,"",SUMPRODUCT(B24:$K$24,B4:$K$4)/SUM(B4:$K$4)) -> 0.1291250743 | I28: =IF(SUM(E4:$K$4)=0,"",SUMPRODUCT(E24:$K$24,E4:$K$4)/SUM(E4:$K$4)) -> 0.1381589854 | J28: =IF(SUM(G4:$K$4)=0,"",SUMPRODUCT(G24:$K$24,G4:$K$4)/SUM(G4:$K$4)) -> 0.1360942006 | K28: =IF(SUM(I4:$K$4)=0, "", SUMPRODUCT(I24:$K$24,I4:$K$4)/SUM(I4:$K$4)) -> 0.1514756298 | L28: =L24 -> 0.1703028023 | M28: =MAX(K28:L28) -> 0.1703028023 | N28: =MIN(H28:L28) -> 0.1291250743
G29: Price to Earning | H29: =IF(ISERROR(AVERAGEIF(B14:$L14,">0")),"",AVERAGEIF(B14:$L14,">0")) -> 11.09833807 | I29: =IF(ISERROR(AVERAGEIF(E14:$L14,">0")),"",AVERAGEIF(E14:$L14,">0")) -> 11.74839665 | J29: =IF(ISERROR(AVERAGEIF(G14:$L14,">0")),"",AVERAGEIF(G14:$L14,">0")) -> 15.52142961 | K29: =IF(ISERROR(AVERAGEIF(I14:$L14,">0")),"",AVERAGEIF(I14:$L14,">0")) -> 18.16409374 | L29: =L14 -> 11.87652315 | M29: =MAX(K29:L29) -> 18.16409374 | N29: =MIN(H29:L29) -> 11.09833807

Sheet Quarters
A1: ='Profit & Loss'!A1 -> AXTEL INDUSTRIES LTD | E1: =UPDATE ->  | J1: SCREENER.IN
A3: Narration | B3: ='Data Sheet'!B41 -> 2017-09-30 | C3: ='Data Sheet'!C41 -> 2017-12-31 | D3: ='Data Sheet'!D41 -> 2018-03-31 | E3: ='Data Sheet'!E41 -> 2018-06-30 | F3: ='Data Sheet'!F41 -> 2018-09-30 | G3: ='Data Sheet'!G41 -> 2018-12-31 | H3: ='Data Sheet'!H41 -> 2019-03-31 | I3: ='Data Sheet'!I41 -> 2019-06-30 | J3: ='Data Sheet'!J41 -> 2019-09-30 | K3: ='Data Sheet'!K41 -> 2019-12-31
A4: Sales | B4: ='Data Sheet'!B42 -> 24.16 | C4: ='Data Sheet'!C42 -> 14.39 | D4: ='Data Sheet'!D42 -> 30.06 | E4: ='Data Sheet'!E42 -> 21.37 | F4: ='Data Sheet'!F42 -> 30.28 | G4: ='Data Sheet'!G42 -> 28.97 | H4: ='Data Sheet'!H42 -> 30.13 | I4: ='Data Sheet'!I42 -> 17.83 | J4: ='Data Sheet'!J42 -> 30.83 | K4: ='Data Sheet'!K42 -> 27.55
A5: Expenses | B5: ='Data Sheet'!B43 -> 21.88 | C5: ='Data Sheet'!C43 -> 13.09 | D5: ='Data Sheet'!D43 -> 25.22 | E5: ='Data Sheet'!E43 -> 18.86 | F5: ='Data Sheet'!F43 -> 24.86 | G5: ='Data Sheet'!G43 -> 23.19 | H5: ='Data Sheet'!H43 -> 23.96 | I5: ='Data Sheet'!I43 -> 16.54 | J5: ='Data Sheet'!J43 -> 26.1 | K5: ='Data Sheet'!K43 -> 21.63
A6: Operating Profit | B6: ='Data Sheet'!B50 -> 2.28 | C6: ='Data Sheet'!C50 -> 1.3 | D6: ='Data Sheet'!D50 -> 4.84 | E6: ='Data Sheet'!E50 -> 2.51 | F6: ='Data Sheet'!F50 -> 5.42 | G6: ='Data Sheet'!G50 -> 5.78 | H6: ='Data Sheet'!H50 -> 6.17 | I6: ='Data Sheet'!I50 -> 1.29 | J6: ='Data Sheet'!J50 -> 4.73 | K6: ='Data Sheet'!K50 -> 5.92
A7: Other Income | B7: ='Data Sheet'!B44 -> 0.1 | C7: ='Data Sheet'!C44 -> 0.26 | D7: ='Data Sheet'!D44 -> 0.29 | E7: ='Data Sheet'!E44 -> 0.24 | F7: ='Data Sheet'!F44 -> 0.84 | G7: ='Data Sheet'!G44 -> 0.63 | H7: ='Data Sheet'!H44 -> -0.12 | I7: ='Data Sheet'!I44 -> 0.41 | J7: ='Data Sheet'!J44 -> 0.92 | K7: ='Data Sheet'!K44 -> 1.01
A8: Depreciation | B8: ='Data Sheet'!B45 -> 0.55 | C8: ='Data Sheet'!C45 -> 0.67 | D8: ='Data Sheet'!D45 -> 0.61 | E8: ='Data Sheet'!E45 -> 0.66 | F8: ='Data Sheet'!F45 -> 0.7 | G8: ='Data Sheet'!G45 -> 0.72 | H8: ='Data Sheet'!H45 -> 0.71 | I8: ='Data Sheet'!I45 -> 0.6 | J8: ='Data Sheet'!J45 -> 0.66 | K8: ='Data Sheet'!K45 -> 0.7
A9: Interest | B9: ='Data Sheet'!B46 -> 0.07 | C9: ='Data Sheet'!C46 -> 0.18 | D9: ='Data Sheet'!D46 -> 0.12 | E9: ='Data Sheet'!E46 -> 0.07 | F9: ='Data Sheet'!F46 -> 0.15 | G9: ='Data Sheet'!G46 -> 0.13 | H9: ='Data Sheet'!H46 -> 0.13 | I9: ='Data Sheet'!I46 -> 0.1 | J9: ='Data Sheet'!J46 -> 0.13 | K9: ='Data Sheet'!K46 -> 0.24
A10: Profit before tax | B10: ='Data Sheet'!B47 -> 1.76 | C10: ='Data Sheet'!C47 -> 0.71 | D10: ='Data Sheet'!D47 -> 4.4 | E10: ='Data Sheet'!E47 -> 2.02 | F10: ='Data Sheet'!F47 -> 5.41 | G10: ='Data Sheet'!G47 -> 5.56 | H10: ='Data Sheet'!H47 -> 5.21 | I10: ='Data Sheet'!I47 -> 1 | J10: ='Data Sheet'!J47 -> 4.86 | K10: ='Data Sheet'!K47 -> 5.99
A11: Tax | B11: ='Data Sheet'!B48 -> 0 | C11: ='Data Sheet'!C48 -> 0 | D11: ='Data Sheet'!D48 -> 1.96 | E11: ='Data Sheet'!E48 -> 0 | F11: ='Data Sheet'!F48 -> 0 | G11: ='Data Sheet'!G48 -> 0 | H11: ='Data Sheet'!H48 -> 1.5 | I11: ='Data Sheet'!I48 -> 0.29 | J11: ='Data Sheet'!J48 -> 1.42 | K11: ='Data Sheet'!K48 -> 1.54
A12: Net profit | B12: ='Data Sheet'!B49 -> 1.76 | C12: ='Data Sheet'!C49 -> 0.71 | D12: ='Data Sheet'!D49 -> 2.45 | E12: ='Data Sheet'!E49 -> 2.02 | F12: ='Data Sheet'!F49 -> 5.41 | G12: ='Data Sheet'!G49 -> 5.56 | H12: ='Data Sheet'!H49 -> 3.71 | I12: ='Data Sheet'!I49 -> 0.71 | J12: ='Data Sheet'!J49 -> 3.44 | K12: ='Data Sheet'!K49 -> 4.45
A14: OPM | B14: =IF(B4>0,B6/B4,"") -> 0.09437086093 | C14: =IF(C4>0,C6/C4,"") -> 0.09034051425 | D14: 0.1610113107 | E14: 0.1174543753 | F14: 0.178996037 | G14: 0.1995167415 | H14: 0.2047792897 | I14: 0.07234997196 | J14: 0.1534219916 | K14: 0.2148820327
A16: EBIT | B16: =B10+B9 -> 1.83 | C16: =C10+C9 -> 0.89 | D16: 4.52 | E16: 2.09 | F16: 5.56 | G16: 5.69 | H16: 5.34 | I16: 1.1 | J16: 4.99 | K16: 6.23
A17: EBITDA | B17: =B16+B8 -> 2.38 | C17: =C16+C8 -> 1.56 | D17: 5.13 | E17: 2.75 | F17: 6.26 | G17: 6.41 | H17: 6.05 | I17: 1.7 | J17: 5.65 | K17: 6.93

Sheet Balance Sheet
A1: ='Profit & Loss'!A1 -> AXTEL INDUSTRIES LTD | E1: =UPDATE ->  | J1: SCREENER.IN
A3: Narration | B3: ='Data Sheet'!B56 -> 2010-03-31 | C3: ='Data Sheet'!C56 -> 2011-03-31 | D3: ='Data Sheet'!D56 -> 2012-03-31 | E3: ='Data Sheet'!E56 -> 2013-03-31 | F3: ='Data Sheet'!F56 -> 2014-03-31 | G3: ='Data Sheet'!G56 -> 2015-03-31 | H3: ='Data Sheet'!H56 -> 2016-03-31 | I3: ='Data Sheet'!I56 -> 2017-03-31 | J3: ='Data Sheet'!J56 -> 2018-03-31 | K3: ='Data Sheet'!K56 -> 2019-03-31 | L3: 2HFY20 | M3: Input data from 2QFY BS
A4: Equity Share Capital | B4: ='Data Sheet'!B57 -> 10 | C4: ='Data Sheet'!C57 -> 10 | D4: ='Data Sheet'!D57 -> 10 | E4: ='Data Sheet'!E57 -> 10 | F4: ='Data Sheet'!F57 -> 10 | G4: ='Data Sheet'!G57 -> 16.15 | H4: ='Data Sheet'!H57 -> 16.15 | I4: ='Data Sheet'!I57 -> 16.15 | J4: ='Data Sheet'!J57 -> 16.15 | K4: ='Data Sheet'!K57 -> 16.15
A5: Reserves | B5: ='Data Sheet'!B58 -> 5.82 | C5: ='Data Sheet'!C58 -> 8.19 | D5: ='Data Sheet'!D58 -> 11.17 | E5: ='Data Sheet'!E58 -> 14.51 | F5: ='Data Sheet'!F58 -> 17.24 | G5: ='Data Sheet'!G58 -> 9.67 | H5: ='Data Sheet'!H58 -> 14.15 | I5: ='Data Sheet'!I58 -> 20.71 | J5: ='Data Sheet'!J58 -> 26.86 | K5: ='Data Sheet'!K58 -> 35.91
A6: Borrowings | B6: ='Data Sheet'!B59 -> 1.6 | C6: ='Data Sheet'!C59 -> 6.97 | D6: ='Data Sheet'!D59 -> 7.99 | E6: ='Data Sheet'!E59 -> 14.91 | F6: ='Data Sheet'!F59 -> 16.74 | G6: ='Data Sheet'!G59 -> 12.5 | H6: ='Data Sheet'!H59 -> 10.12 | I6: ='Data Sheet'!I59 -> 4.96 | J6: ='Data Sheet'!J59 -> 4.25 | K6: ='Data Sheet'!K59 -> 1.16 | L6: =L8-(L7+L5+L4) -> 0
A7: Other Liabilities | B7: ='Data Sheet'!B60 -> 12.38 | C7: ='Data Sheet'!C60 -> 21.42 | D7: ='Data Sheet'!D60 -> 18.91 | E7: ='Data Sheet'!E60 -> 22.88 | F7: ='Data Sheet'!F60 -> 22.61 | G7: ='Data Sheet'!G60 -> 30.92 | H7: ='Data Sheet'!H60 -> 21.71 | I7: ='Data Sheet'!I60 -> 22.66 | J7: ='Data Sheet'!J60 -> 36.24 | K7: ='Data Sheet'!K60 -> 31.08 | M7: def tax liab+oth long term liab+other current liab
A8: Total | B8: ='Data Sheet'!B61 -> 29.8 | C8: ='Data Sheet'!C61 -> 46.58 | D8: ='Data Sheet'!D61 -> 48.07 | E8: ='Data Sheet'!E61 -> 62.3 | F8: ='Data Sheet'!F61 -> 66.59 | G8: ='Data Sheet'!G61 -> 69.24 | H8: ='Data Sheet'!H61 -> 62.13 | I8: ='Data Sheet'!I61 -> 64.48 | J8: ='Data Sheet'!J61 -> 83.5 | K8: ='Data Sheet'!K61 -> 84.3
A10: Net Block | B10: ='Data Sheet'!B62 -> 6.39 | C10: ='Data Sheet'!C62 -> 6.53 | D10: ='Data Sheet'!D62 -> 7.11 | E10: ='Data Sheet'!E62 -> 17.06 | F10: ='Data Sheet'!F62 -> 24.39 | G10: ='Data Sheet'!G62 -> 21.32 | H10: ='Data Sheet'!H62 -> 18.63 | I10: ='Data Sheet'!I62 -> 16.56 | J10: ='Data Sheet'!J62 -> 17.15 | K10: ='Data Sheet'!K62 -> 15.84
A11: Capital Work in Progress | B11: ='Data Sheet'!B63 -> 0.15 | C11: ='Data Sheet'!C63 -> 1.39 | D11: ='Data Sheet'!D63 -> 3.45 | E11: ='Data Sheet'!E63 -> 2.91 | F11: ='Data Sheet'!F63 -> 0.35 | G11: ='Data Sheet'!G63 -> 0.31 | H11: ='Data Sheet'!H63 -> 0 | I11: ='Data Sheet'!I63 -> 0.23 | J11: ='Data Sheet'!J63 -> 0 | K11: ='Data Sheet'!K63 -> 0.2
A12: Investments | B12: ='Data Sheet'!B64 -> 0.18 | C12: ='Data Sheet'!C64 -> 0.08 | D12: ='Data Sheet'!D64 -> 0.03 | E12: ='Data Sheet'!E64 -> 0 | F12: ='Data Sheet'!F64 -> 0 | G12: ='Data Sheet'!G64 -> 0 | H12: ='Data Sheet'!H64 -> 0 | I12: ='Data Sheet'!I64 -> 3.52 | J12: ='Data Sheet'!J64 -> 14.22 | K12: ='Data Sheet'!K64 -> 14.9
A13: Other Assets | B13: ='Data Sheet'!B65 -> 23.08 | C13: ='Data Sheet'!C65 -> 38.58 | D13: ='Data Sheet'!D65 -> 37.48 | E13: ='Data Sheet'!E65 -> 42.33 | F13: ='Data Sheet'!F65 -> 41.85 | G13: ='Data Sheet'!G65 -> 47.61 | H13: ='Data Sheet'!H65 -> 43.5 | I13: ='Data Sheet'!I65 -> 44.17 | J13: ='Data Sheet'!J65 -> 52.13 | K13: ='Data Sheet'!K65 -> 53.36 | M13: total current assets+long term loans and advances+other non current assets
A14: Total | B14: ='Data Sheet'!B66 -> 29.8 | C14: ='Data Sheet'!C66 -> 46.58 | D14: ='Data Sheet'!D66 -> 48.07 | E14: ='Data Sheet'!E66 -> 62.3 | F14: ='Data Sheet'!F66 -> 66.59 | G14: ='Data Sheet'!G66 -> 69.24 | H14: ='Data Sheet'!H66 -> 62.13 | I14: ='Data Sheet'!I66 -> 64.48 | J14: ='Data Sheet'!J66 -> 83.5 | K14: ='Data Sheet'!K66 -> 84.3 | L14: =L8 -> 0 | M14: =L10+L11+L12+L13 -> 0 | N14: check TA matching
A16: Working Capital | B16: =B13-B7 -> 10.7 | C16: 17.16 | D16: 18.57 | E16: 19.45 | F16: 19.24 | G16: 16.69 | H16: 21.79 | I16: 21.51 | J16: 15.89 | K16: 22.28 | L16: =L13-L7 -> 0
A17: Debtors | B17: ='Data Sheet'!B67 -> 4.61 | C17: ='Data Sheet'!C67 -> 16.37 | D17: ='Data Sheet'!D67 -> 12.7 | E17: ='Data Sheet'!E67 -> 17.19 | F17: ='Data Sheet'!F67 -> 17.57 | G17: ='Data Sheet'!G67 -> 13.04 | H17: ='Data Sheet'!H67 -> 18.23 | I17: ='Data Sheet'!I67 -> 17.91 | J17: ='Data Sheet'!J67 -> 20.12 | K17: ='Data Sheet'!K67 -> 19.43
A18: Inventory | B18: ='Data Sheet'!B68 -> 11.56 | C18: ='Data Sheet'!C68 -> 14.79 | D18: ='Data Sheet'!D68 -> 12.08 | E18: ='Data Sheet'!E68 -> 7.65 | F18: ='Data Sheet'!F68 -> 10.82 | G18: ='Data Sheet'!G68 -> 17.85 | H18: ='Data Sheet'!H68 -> 13.68 | I18: ='Data Sheet'!I68 -> 12.25 | J18: ='Data Sheet'!J68 -> 17.85 | K18: ='Data Sheet'!K68 -> 21.71
A19: Payables (Creditors) | B19: 9.74 | C19: 7.17 | D19: 7.96 | E19: 19.21 | F19: 37.43 | G19: 37.86 | H19: 25.62 | I19: 18.77 | J19: 35.37 | K19: 44.57 | M19: input Creditors (Payables) data from Screener/Annual Reports
A21: Inventory Turnover | B21: =IF('Balance Sheet'!B18>0,'Profit & Loss'!B4/'Balance Sheet'!B18,0) -> 2.339965398 | C21: =IF('Balance Sheet'!C18>0,'Profit & Loss'!C4/'Balance Sheet'!C18,0) -> 3.657200811 | D21: =IF('Balance Sheet'!D18>0,'Profit & Loss'!D4/'Balance Sheet'!D18,0) -> 4.835264901 | E21: =IF('Balance Sheet'!E18>0,'Profit & Loss'!E4/'Balance Sheet'!E18,0) -> 7.847058824 | F21: =IF('Balance Sheet'!F18>0,'Profit & Loss'!F4/'Balance Sheet'!F18,0) -> 4.43715342 | G21: =IF('Balance Sheet'!G18>0,'Profit & Loss'!G4/'Balance Sheet'!G18,0) -> 2.197759104 | H21: =IF('Balance Sheet'!H18>0,'Profit & Loss'!H4/'Balance Sheet'!H18,0) -> 4.89254386 | I21: =IF('Balance Sheet'!I18>0,'Profit & Loss'!I4/'Balance Sheet'!I18,0) -> 6.213061224 | J21: =IF('Balance Sheet'!J18>0,'Profit & Loss'!J4/'Balance Sheet'!J18,0) -> 4.565826331 | K21: =IF('Balance Sheet'!K18>0,'Profit & Loss'!K4/'Balance Sheet'!K18,0) -> 5.10133579 | L21: =IF('Balance Sheet'!L18>0,'Profit & Loss'!L4/'Balance Sheet'!L18,0) -> 0
A22: Inventory Days | B22: =IF('Profit & Loss'!B4>0,'Balance Sheet'!B18/('Profit & Loss'!B4/365),0) -> 155.9852126 | C22: =IF('Profit & Loss'!C4>0,'Balance Sheet'!C18/('Profit & Loss'!C4/365),0) -> 99.80310593 | D22: =IF('Profit & Loss'!D4>0,'Balance Sheet'!D18/('Profit & Loss'!D4/365),0) -> 75.48707413 | E22: =IF('Profit & Loss'!E4>0,'Balance Sheet'!E18/('Profit & Loss'!E4/365),0) -> 46.51424288 | F22: =IF('Profit & Loss'!F4>0,'Balance Sheet'!F18/('Profit & Loss'!F4/365),0) -> 82.25994584 | G22: =IF('Profit & Loss'!G4>0,'Balance Sheet'!G18/('Profit & Loss'!G4/365),0) -> 166.0782564 | H22: =IF('Profit & Loss'!H4>0,'Balance Sheet'!H18/('Profit & Loss'!H4/365),0) -> 74.6033169 | I22: =IF('Profit & Loss'!I4>0,'Balance Sheet'!I18/('Profit & Loss'!I4/365),0) -> 58.74720799 | J22: =IF('Profit & Loss'!J4>0,'Balance Sheet'!J18/('Profit & Loss'!J4/365),0) -> 79.94171779 | K22: =IF('Profit & Loss'!K4>0,'Balance Sheet'!K18/('Profit & Loss'!K4/365),0) -> 71.54988713 | L22: =IF('Profit & Loss'!L4>0,L18/('Profit & Loss'!L4/365),0) -> 0
A23: Debtor Days | B23: =IF('Profit & Loss'!B4>0,'Balance Sheet'!B17/('Profit & Loss'!B4/365),0) -> 62.2051756 | C23: =IF('Profit & Loss'!C4>0,'Balance Sheet'!C17/('Profit & Loss'!C4/365),0) -> 110.4649658 | D23: =IF('Profit & Loss'!D4>0,'Balance Sheet'!D17/('Profit & Loss'!D4/365),0) -> 79.36141072 | E23: =IF('Profit & Loss'!E4>0,'Balance Sheet'!E17/('Profit & Loss'!E4/365),0) -> 104.5202399 | F23: =IF('Profit & Loss'!F4>0,'Balance Sheet'!F17/('Profit & Loss'!F4/365),0) -> 133.5773797 | G23: =IF('Profit & Loss'!G4>0,'Balance Sheet'!G17/('Profit & Loss'!G4/365),0) -> 121.3255162 | H23: =IF('Profit & Loss'!H4>0,'Balance Sheet'!H17/('Profit & Loss'!H4/365),0) -> 99.41655461 | I23: =IF('Profit & Loss'!I4>0,'Balance Sheet'!I17/('Profit & Loss'!I4/365),0) -> 85.89081592 | J23: =IF('Profit & Loss'!J4>0,'Balance Sheet'!J17/('Profit & Loss'!J4/365),0) -> 90.10797546 | K23: =IF('Profit & Loss'!K4>0,'Balance Sheet'!K17/('Profit & Loss'!K4/365),0) -> 64.03566591 | L23: =IF('Profit & Loss'!L4>0, L17/('Profit & Loss'!L4/365),0) -> 0
A24: Creditor Days | B24: =IF('Profit & Loss'!B4>0,B19/('Profit & Loss'!B4/365),0) -> 131.4269871 | C24: =IF('Profit & Loss'!C4>0,C19/('Profit & Loss'!C4/365),0) -> 48.38325014 | D24: =IF('Profit & Loss'!D4>0,D19/('Profit & Loss'!D4/365),0) -> 49.74148262 | E24: =IF('Profit & Loss'!E4>0,E19/('Profit & Loss'!E4/365),0) -> 116.8024321 | F24: =IF('Profit & Loss'!F4>0,F19/('Profit & Loss'!F4/365),0) -> 284.564674 | G24: =IF('Profit & Loss'!G4>0,G19/('Profit & Loss'!G4/365),0) -> 352.2533775 | H24: =IF('Profit & Loss'!H4>0,H19/('Profit & Loss'!H4/365),0) -> 139.7176154 | I24: =IF('Profit & Loss'!I4>0,I19/('Profit & Loss'!I4/365),0) -> 90.01510971 | J24: =IF('Profit & Loss'!J4>0,J19/('Profit & Loss'!J4/365),0) -> 158.4055215 | K24: =IF('Profit & Loss'!K4>0,K19/('Profit & Loss'!K4/365),0) -> 146.889842 | L24: =IF('Profit & Loss'!L4>0,L19/('Profit & Loss'!L4/365),0) -> 0
A25: Cash Conversion Cycle | B25: =IF(B19>0,B22+B23-B24,0) -> 86.76340111 | C25: =IF(C19>0,C22+C23-C24,0) -> 161.8848216 | D25: 105.1070022 | E25: 34.23205064 | F25: -68.72734847 | G25: -64.84960489 | H25: 34.30225609 | I25: 54.6229142 | J25: 11.64417178 | K25: -11.30428894 | L25: 0
A26: Working Capital/Sales | B26: =B16/'Profit & Loss'!B4 -> 0.3955637708 | C26: =C16/'Profit & Loss'!C4 -> 0.3172490294 | D26: =D16/'Profit & Loss'!D4 -> 0.3179250128 | E26: =E16/'Profit & Loss'!E4 -> 0.3240046643 | F26: =F16/'Profit & Loss'!F4 -> 0.4007498438 | G26: =G16/'Profit & Loss'!G4 -> 0.4254397145 | H26: =H16/'Profit & Loss'!H4 -> 0.3255640221 | I26: =I16/'Profit & Loss'!I4 -> 0.2826172645 | J26: =J16/'Profit & Loss'!J4 -> 0.1949693252 | K26: =K16/'Profit & Loss'!K4 -> 0.2011738149
A28: Return on Equity | B28: =IF(SUM('Balance Sheet'!B4:B5)>0,'Profit & Loss'!B12/SUM('Balance Sheet'!B4:B5),"") -> 0.0417193426 | C28: =IF(SUM('Balance Sheet'!C4:C5)>0,'Profit & Loss'!C12/SUM('Balance Sheet'!C4:C5),"") -> 0.1330401319 | D28: =IF(SUM('Balance Sheet'!D4:D5)>0,'Profit & Loss'!D12/SUM('Balance Sheet'!D4:D5),"") -> 0.1426547 | E28: =IF(SUM('Balance Sheet'!E4:E5)>0,'Profit & Loss'!E12/SUM('Balance Sheet'!E4:E5),"") -> 0.1379028968 | F28: =IF(SUM('Balance Sheet'!F4:F5)>0,'Profit & Loss'!F12/SUM('Balance Sheet'!F4:F5),"") -> 0.1013215859 | G28: =IF(SUM('Balance Sheet'!G4:G5)>0,'Profit & Loss'!G12/SUM('Balance Sheet'!G4:G5),"") -> -0.2920216886 | H28: =IF(SUM('Balance Sheet'!H4:H5)>0,'Profit & Loss'!H12/SUM('Balance Sheet'!H4:H5),"") -> 0.1584158416 | I28: =IF(SUM('Balance Sheet'!I4:I5)>0,'Profit & Loss'!I12/SUM('Balance Sheet'!I4:I5),"") -> 0.1855670103 | J28: =IF(SUM('Balance Sheet'!J4:J5)>0,'Profit & Loss'!J12/SUM('Balance Sheet'!J4:J5),"") -> 0.1378749128 | K28: =IF(SUM('Balance Sheet'!K4:K5)>0,'Profit & Loss'!K12/SUM('Balance Sheet'!K4:K5),"") -> 0.2489435267 | L28: =IF(SUM('Balance Sheet'!L4:L5)>0,'Profit & Loss'!L12/SUM('Balance Sheet'!L4:L5),"") -> 
A29: Return on Capital Emp | B29: =IF(('Balance Sheet'!B10+'Balance Sheet'!B16)>0,('Profit & Loss'!B6-'Profit & Loss'!B8-'Profit & Loss'!B11)/('Balance Sheet'!B10+'Balance Sheet'!B16),"") -> 0.05383265067 | C29: =IF(('Balance Sheet'!C10+'Balance Sheet'!C16)>0,('Profit & Loss'!C6-'Profit & Loss'!C8-'Profit & Loss'!C11)/('Balance Sheet'!C10+'Balance Sheet'!C16),"") -> 0.1203039257 | D29: =IF(('Balance Sheet'!D10+'Balance Sheet'!D16)>0,('Profit & Loss'!D6-'Profit & Loss'!D8-'Profit & Loss'!D11)/('Balance Sheet'!D10+'Balance Sheet'!D16),"") -> 0.1495327103 | E29: =IF(('Balance Sheet'!E10+'Balance Sheet'!E16)>0,('Profit & Loss'!E6-'Profit & Loss'!E8-'Profit & Loss'!E11)/('Balance Sheet'!E10+'Balance Sheet'!E16),"") -> 0.1027115859 | F29: =IF(('Balance Sheet'!F10+'Balance Sheet'!F16)>0,('Profit & Loss'!F6-'Profit & Loss'!F8-'Profit & Loss'!F11)/('Balance Sheet'!F10+'Balance Sheet'!F16),"") -> 0.1086408435 | G29: =IF(('Balance Sheet'!G10+'Balance Sheet'!G16)>0,('Profit & Loss'!G6-'Profit & Loss'!G8-'Profit & Loss'!G11)/('Balance Sheet'!G10+'Balance Sheet'!G16),"") -> -0.1533806893 | H29: =IF(('Balance Sheet'!H10+'Balance Sheet'!H16)>0,('Profit & Loss'!H6-'Profit & Loss'!H8-'Profit & Loss'!H11)/('Balance Sheet'!H10+'Balance Sheet'!H16),"") -> 0.1472043543 | I29: =IF(('Balance Sheet'!I10+'Balance Sheet'!I16)>0,('Profit & Loss'!I6-'Profit & Loss'!I8-'Profit & Loss'!I11)/('Balance Sheet'!I10+'Balance Sheet'!I16),"") -> 0.1683740478 | J29: =IF(('Balance Sheet'!J10+'Balance Sheet'!J16)>0,('Profit & Loss'!J6-'Profit & Loss'!J8-'Profit & Loss'!J11)/('Balance Sheet'!J10+'Balance Sheet'!J16),"") -> 0.1737288136 | K29: =IF(('Balance Sheet'!K10+'Balance Sheet'!K16)>0,('Profit & Loss'!K6-'Profit & Loss'!K8-'Profit & Loss'!K11)/('Balance Sheet'!K10+'Balance Sheet'!K16),"") -> 0.3105981112
A31: Book Value | B31: =B4+B5 -> 15.82 | C31: 18.19 | D31: 21.17 | E31: 24.51 | F31: 27.24 | G31: 25.82 | H31: 30.3 | I31: 36.86 | J31: 43.01 | K31: 52.06 | L31: 0
A32: BVPS | B32: =IF('Data Sheet'!B93>0,B31/'Data Sheet'!B93,0) -> 15.82031641 | C32: =IF('Data Sheet'!C93>0,C31/'Data Sheet'!C93,0) -> 18.19036381 | D32: =IF('Data Sheet'!D93>0,D31/'Data Sheet'!D93,0) -> 21.17042341 | E32: =IF('Data Sheet'!E93>0,E31/'Data Sheet'!E93,0) -> 24.51049021 | F32: =IF('Data Sheet'!F93>0,F31/'Data Sheet'!F93,0) -> 27.24054481 | G32: =IF('Data Sheet'!G93>0,G31/'Data Sheet'!G93,0) -> 15.98286577 | H32: =IF('Data Sheet'!H93>0,H31/'Data Sheet'!H93,0) -> 18.75603536 | I32: =IF('Data Sheet'!I93>0,I31/'Data Sheet'!I93,0) -> 22.81674796 | J32: =IF('Data Sheet'!J93>0,J31/'Data Sheet'!J93,0) -> 26.62366603 | K32: =IF('Data Sheet'!K93>0,K31/'Data Sheet'!K93,0) -> 32.2257162 | L32: =IF('Data Sheet'!K93>0,L31/'Data Sheet'!K93,0) -> 0
A34: Cash & Bank Balances | B34: ='Data Sheet'!B69 -> 0.16 | C34: ='Data Sheet'!C69 -> 1.1 | D34: ='Data Sheet'!D69 -> 4.55 | E34: ='Data Sheet'!E69 -> 1.27 | F34: ='Data Sheet'!F69 -> 1.67 | G34: ='Data Sheet'!G69 -> 6.32 | H34: ='Data Sheet'!H69 -> 0.83 | I34: ='Data Sheet'!I69 -> 6.94 | J34: ='Data Sheet'!J69 -> 4.4 | K34: ='Data Sheet'!K69 -> 5.5
A35: Cash/Sales | B35: =B34/'Data Sheet'!B17 -> 0.005914972274 | C35: =C34/'Data Sheet'!C17 -> 0.02033647624 | D35: =D34/'Data Sheet'!D17 -> 0.07789762027 | E35: =E34/'Data Sheet'!E17 -> 0.02115608862 | F35: =F34/'Data Sheet'!F17 -> 0.03478441991 | G35: =G34/'Data Sheet'!G17 -> 0.1611011981 | H35: =H34/'Data Sheet'!H17 -> 0.01240101599 | I35: =I34/'Data Sheet'!I17 -> 0.0911838129 | J35: =J34/'Data Sheet'!J17 -> 0.05398773006 | K35: =K34/'Data Sheet'!K17 -> 0.04966139955
A37: Common Size Balance Sheet | B37: =B3 -> 2010-03-31 | C37: 2011-03-31 | D37: 2012-03-31 | E37: 2013-03-31 | F37: 2014-03-31 | G37: 2015-03-31 | H37: 2016-03-31 | I37: 2017-03-31 | J37: 2018-03-31 | K37: 2019-03-31 | L37: Check back how Assets are being put to use
A38: Net Block/Total Assets | B38: =B10/B$8 -> 0.2144295302 | C38: 0.1401889223 | D38: 0.1479092989 | E38: 0.2738362761 | F38: 0.3662712119 | G38: 0.3079145003 | H38: 0.2998551424 | I38: 0.2568238213 | J38: 0.2053892216 | K38: 0.1879003559 | L38: high historical Fixed Assets/Total Assets - strong correlation high Op Leverage
A39: Working Capital/Total Assets | B39: =B16/B$8 -> 0.3590604027 | C39: 0.3683984543 | D39: 0.3863116289 | E39: 0.3121990369 | F39: 0.2889322721 | G39: 0.2410456384 | H39: 0.3507162401 | I39: 0.3335918114 | J39: 0.1902994012 | K39: 0.2642941874
A40: Debtors/Total Assets | B40: =B17/B$8 -> 0.1546979866 | C40: 0.3514383856 | D40: 0.2641980445 | E40: 0.2759229535 | F40: 0.2638534314 | G40: 0.1883304448 | H40: 0.2934170288 | I40: 0.2777605459 | J40: 0.2409580838 | K40: 0.2304863582
A41: Inventory/Total Assets | B41: =B18/B$8 -> 0.3879194631 | C41: 0.3175182482 | D41: 0.2513001872 | E41: 0.1227929374 | F41: 0.1624868599 | G41: 0.2577989601 | H41: 0.2201834862 | I41: 0.1899813896 | J41: 0.2137724551 | K41: 0.2575326216
A42: Cash/Total Assets | B42: =B34/B$8 -> 0.005369127517 | C42: =C34/C$8 -> 0.02361528553 | D42: 0.09465363012 | E42: 0.02038523274 | F42: 0.02507884067 | G42: 0.09127671866 | H42: 0.01335908579 | I42: 0.107630273 | J42: 0.05269461078 | K42: 0.06524317912 | L42: check for excluding excess cash (over and above historical normalised levels)
A44: Borrowings/Total Assets | B44: =B6/B$8 -> 0.05369127517 | C44: 0.1496350365 | D44: 0.1662159351 | E44: 0.2393258427 | F44: 0.2513890975 | G44: 0.1805314847 | H44: 0.1628842749 | I44: 0.07692307692 | J44: 0.05089820359 | K44: 0.0137603796

Sheet Cash Flow
A1: ='Balance Sheet'!A1 -> AXTEL INDUSTRIES LTD | E1: =UPDATE ->  | J1: SCREENER.IN
A3: Narration | B3: ='Data Sheet'!B81 -> 2010-03-31 | C3: ='Data Sheet'!C81 -> 2011-03-31 | D3: ='Data Sheet'!D81 -> 2012-03-31 | E3: ='Data Sheet'!E81 -> 2013-03-31 | F3: ='Data Sheet'!F81 -> 2014-03-31 | G3: ='Data Sheet'!G81 -> 2015-03-31 | H3: ='Data Sheet'!H81 -> 2016-03-31 | I3: ='Data Sheet'!I81 -> 2017-03-31 | J3: ='Data Sheet'!J81 -> 2018-03-31 | K3: ='Data Sheet'!K81 -> 2019-03-31
A4: Cash from Operating Activity | B4: ='Data Sheet'!B82 -> 1.95 | C4: ='Data Sheet'!C82 -> -2.09 | D4: ='Data Sheet'!D82 -> 4.84 | E4: ='Data Sheet'!E82 -> 1.26 | F4: ='Data Sheet'!F82 -> 8.28 | G4: ='Data Sheet'!G82 -> 6.69 | H4: ='Data Sheet'!H82 -> -1.24 | I4: ='Data Sheet'!I82 -> 15.13 | J4: ='Data Sheet'!J82 -> 11.79 | K4: ='Data Sheet'!K82 -> 9.15
A5: Cash from Investing Activity | B5: ='Data Sheet'!B83 -> -0.45 | C5: ='Data Sheet'!C83 -> -1.92 | D5: ='Data Sheet'!D83 -> -3.49 | E5: ='Data Sheet'!E83 -> -10.59 | F5: ='Data Sheet'!F83 -> -7.51 | G5: ='Data Sheet'!G83 -> -0.61 | H5: ='Data Sheet'!H83 -> -0.63 | I5: ='Data Sheet'!I83 -> -3.78 | J5: ='Data Sheet'!J83 -> -13.12 | K5: ='Data Sheet'!K83 -> -1.55
A6: Cash from Financing Activity | B6: ='Data Sheet'!B84 -> -1.45 | C6: ='Data Sheet'!C84 -> 4.95 | D6: ='Data Sheet'!D84 -> 2.1 | E6: ='Data Sheet'!E84 -> 6.05 | F6: ='Data Sheet'!F84 -> -0.37 | G6: ='Data Sheet'!G84 -> -1.44 | H6: ='Data Sheet'!H84 -> -3.62 | I6: ='Data Sheet'!I84 -> -5.9 | J6: ='Data Sheet'!J84 -> -1.21 | K6: ='Data Sheet'!K84 -> -6.5
A7: Net Cash Flow | B7: ='Data Sheet'!B85 -> 0.05 | C7: ='Data Sheet'!C85 -> 0.94 | D7: ='Data Sheet'!D85 -> 3.45 | E7: ='Data Sheet'!E85 -> -3.28 | F7: ='Data Sheet'!F85 -> 0.4 | G7: ='Data Sheet'!G85 -> 4.65 | H7: ='Data Sheet'!H85 -> -5.49 | I7: ='Data Sheet'!I85 -> 5.44 | J7: ='Data Sheet'!J85 -> -2.54 | K7: ='Data Sheet'!K85 -> 1.1

Sheet Customization
A1: ='Data Sheet'!B1 -> AXTEL INDUSTRIES LTD
B4: DELTA NETWORTH | C4: DELTA MKTCAP | D4: IMPACT* | F4: HISTORICAL VALUATIONS | N4: PRE-TAX BOND
A5: 10 YR | B5: ='Calculated Data'!K10-'Calculated Data'!B10 -> 36.24 | C5: ='Calculated Data'!K33-'Calculated Data'!B33 -> 192.7723298 | D5: =C5/B5 -> 5.319324774 | G5: P/E | H5: P/B | I5: EV/EBITDA | J5: P/SALES | K5: YIELD | L5: P/CFO | N5: LongTerm Bond | O5: 0.09
A6: 7 YR | B6: ='Calculated Data'!K10-'Calculated Data'!E10 -> 27.55 | C6: ='Calculated Data'!K33-'Calculated Data'!E33 -> 196.8222488 | D6: =C6/B6 -> 7.14418326 | F6: MIN | G6: =MIN('Calculated Data'!B38:K38) -> -2.442502918 | H6: =MIN('Calculated Data'!B39:K39) -> 0.2312729075 | I6: =MIN('Calculated Data'!B42:K42) -> -11.94003495 | J6: =MIN('Calculated Data'!B41:K41) -> 0.1312200375 | K6: =MAX('Calculated Data'!B43:K43) -> 0.01602146293 | L6: =MIN('Calculated Data'!B40:K40) -> -19.1642829 | N6: LTB Quote | O6: =('Profit & Loss'!$L$10/'Data Sheet'!$B$61)/O5 -> 6.360924683
A7: 5 YR | B7: ='Calculated Data'!K10-'Calculated Data'!G10 -> 26.24 | C7: ='Calculated Data'!K33-'Calculated Data'!G33 -> 186.345618 | D7: =C7/B7 -> 7.101586052 | F7: MAX | G7: =MAX('Calculated Data'!B38:K38) -> 25.47173356 | H7: =MAX('Calculated Data'!B39:K39) -> 3.933194199 | I7: =MAX('Calculated Data'!B42:K42) -> 14.01089879 | J7: =MAX('Calculated Data'!B41:K41) -> 1.853342086 | K7: =MIN('Calculated Data'!B43:K43) -> 0 | L7: =MAX('Calculated Data'!B40:K40) -> 22.37837049 | N7: Equity Quoting @ | O7: =('Profit & Loss'!$L$6/'Data Sheet'!$B$6)/'Data Sheet'!$B$8 -> 0.123871409
A8: 3 YR | B8: ='Calculated Data'!K10-'Calculated Data'!I10 -> 15.2 | C8: ='Calculated Data'!K33-'Calculated Data'!I33 -> 71.323442 | D8: =C8/B8 -> 4.692331711 | F8: TRAILING | G8: ='Data Sheet'!B8/'Profit & Loss'!L13 -> 11.87652315 | H8: ='Calculated Data'!L33/'Calculated Data'!K10 -> 2.808298118 | I8: ='Calculated Data'!K42 -> 9.334983232 | J8: ='Calculated Data'!L33/'Profit & Loss'!L4 -> 1.374835434 | K8: ='Data Sheet'!K31/'Calculated Data'!L33 -> 0.01655266758 | L8: ='Calculated Data'!L33/'Data Sheet'!K82 -> 15.97814208
A9: 1 YR | B9: ='Calculated Data'!K10-'Calculated Data'!J10 -> 9.05 | C9: ='Calculated Data'!K33-'Calculated Data'!J33 -> 53.71471 | D9: =C9/B9 -> 5.935327072
A10: * IMPACT – Every Rupee retained added xx.yy in incremental market value
A12: =A1 -> AXTEL INDUSTRIES LTD | B12: SALES | C12: GROSS PROFIT | D12: EBIT | E12: PAT | F12: DIVIDEND | G12: EPA** | H12: MKTCAP | I12: CFO** | J12: FCF** | K12: NETWORTH | L12: TOTAL RETURNS
A13: 10 YR CAGR | B13: =POWER('Data Sheet'!$K17/'Data Sheet'!$B17, 1/9)-1 -> 0.1695521921 | C13: =POWER('Calculated Data'!$K3/'Calculated Data'!$B3, 1/9)-1 -> 0.2634534366 | D13: =POWER('Calculated Data'!$K4/'Calculated Data'!$B4, 1/9)-1 -> 0.334589563 | E13: =POWER('Calculated Data'!$K7/'Calculated Data'!$B7, 1/9)-1 -> 0.392109675 | F13: =POWER('Calculated Data'!$K8/'Calculated Data'!$B8, 1/9)-1 ->  | G13: =POWER('Calculated Data'!$K26/'Calculated Data'!$B26, 1/9)-1 -> -2.245725709 | H13: =POWER('Calculated Data'!$K33/'Calculated Data'!$B33, 1/9)-1 -> 0.3706850405 | I13: =POWER('Calculated Data'!$K17/'Calculated Data'!$B17, 1/9)-1 -> 0.187403974 | J13: =POWER('Calculated Data'!$K19/'Calculated Data'!$C19, 1/8)-1 ->  | K13: =POWER('Calculated Data'!$K10/'Calculated Data'!$B10, 1/9)-1 -> 0.1415042178 | L13: =POWER('Calculated Data'!$K34/'Calculated Data'!$B34, 1/9)-1 -> 0.3724756078
A14: 5 YR CAGR | B14: =POWER('Data Sheet'!$K17/'Data Sheet'!$G17, 1/4)-1 -> 0.2962278753 | C14: =POWER('Calculated Data'!$K3/'Calculated Data'!$G3, 1/4)-1 -> 0.4527892863 | D14: =POWER('Calculated Data'!$K4/'Calculated Data'!$G4, 1/4)-1 ->  | E14: =POWER('Calculated Data'!$K7/'Calculated Data'!$G7, 1/4)-1 ->  | F14: =POWER('Calculated Data'!$K8/'Calculated Data'!$G8, 1/4)-1 ->  | G14: =POWER('Calculated Data'!$K26/'Calculated Data'!$G26, 1/4)-1 ->  | H14: =POWER('Calculated Data'!$K33/'Calculated Data'!$G33, 1/4)-1 -> 0.8260420708 | I14: =POWER('Calculated Data'!$K17/'Calculated Data'!$G17, 1/4)-1 -> 0.08143082393 | J14: =POWER('Calculated Data'!$K19/'Calculated Data'!$G19, 1/4)-1 -> 0.05995599774 | K14: =POWER('Calculated Data'!$K10/'Calculated Data'!$G10, 1/4)-1 -> 0.1916177987 | L14: =POWER('Calculated Data'!$K34/'Calculated Data'!$G34, 1/4)-1 -> 0.8314136349
A15: 3 YR CAGR | B15: =POWER('Data Sheet'!$K17/'Data Sheet'!$I17, 1/2)-1 -> 0.2062879971 | C15: =POWER('Calculated Data'!$K3/'Calculated Data'!$I3, 1/2)-1 -> 0.1403296453 | D15: =POWER('Calculated Data'!$K4/'Calculated Data'!$I4, 1/2)-1 -> 0.4347245029 | E15: =POWER('Calculated Data'!$K7/'Calculated Data'!$I7, 1/2)-1 -> 0.3764944032 | F15: =POWER('Calculated Data'!$K8/'Calculated Data'!$I8, 1/2)-1 ->  | G15: =POWER('Calculated Data'!$K26/'Calculated Data'!$I26, 1/2)-1 -> 0.7466044127 | H15: =POWER('Calculated Data'!$K33/'Calculated Data'!$I33, 1/2)-1 -> 0.2387508353 | I15: =POWER('Calculated Data'!$K17/'Calculated Data'!$I17, 1/2)-1 -> -0.2223376328 | J15: =POWER('Calculated Data'!$K19/'Calculated Data'!$I19, 1/2)-1 -> -0.2749328723 | K15: =POWER('Calculated Data'!$K10/'Calculated Data'!$I10, 1/2)-1 -> 0.1884322168 | L15: =POWER('Calculated Data'!$K34/'Calculated Data'!$I34, 1/2)-1 -> 0.2460494803
A16: 1 YR GROWTH | B16: =('Data Sheet'!$K17-'Data Sheet'!$J17)/'Data Sheet'!$J17 -> 0.3588957055 | C16: =('Calculated Data'!$K3-'Calculated Data'!$J3)/'Calculated Data'!$J3 -> 0.4327047275 | D16: =('Calculated Data'!$K4-'Calculated Data'!$J4)/'Calculated Data'!$J4 -> 1.227923628 | E16: =('Calculated Data'!$K7-'Calculated Data'!$J7)/'Calculated Data'!$J7 -> 1.18549747 | F16: =('Calculated Data'!$K8-'Calculated Data'!$J8)/'Calculated Data'!$J8 -> 0 | G16: =('Calculated Data'!$K26-'Calculated Data'!$J26)/'Calculated Data'!$J26 -> 2.729705458 | H16: =('Calculated Data'!$K33-'Calculated Data'!$J33)/'Calculated Data'!$J33 -> 0.3556149733 | I16: =('Calculated Data'!$K17-'Calculated Data'!$J17)/'Calculated Data'!$J17 -> -0.2239185751 | J16: =('Calculated Data'!$K19-'Calculated Data'!$J19)/'Calculated Data'!$J19 -> -0.1747787611 | K16: =('Calculated Data'!$K10-'Calculated Data'!$J10)/'Calculated Data'!$J10 -> 0.2104161823 | L16: =('Calculated Data'!$K34-'Calculated Data'!$J34)/'Calculated Data'!$J34 -> 0.3500073436
A17: **modify (if, then) for negative values
A18: =A1 -> AXTEL INDUSTRIES LTD | B18: ='Data Sheet'!B16 -> 2010-03-31 | C18: ='Data Sheet'!C16 -> 2011-03-31 | D18: ='Data Sheet'!D16 -> 2012-03-31 | E18: ='Data Sheet'!E16 -> 2013-03-31 | F18: ='Data Sheet'!F16 -> 2014-03-31 | G18: ='Data Sheet'!G16 -> 2015-03-31 | H18: ='Data Sheet'!H16 -> 2016-03-31 | I18: ='Data Sheet'!I16 -> 2017-03-31 | J18: ='Data Sheet'!J16 -> 2018-03-31 | K18: ='Data Sheet'!K16 -> 2019-03-31 | L18: TTM | M18: input TTM BS data in Balance Sheet from Half yearly results
A19: Total Assets/Networth= Financial Leverage | B19: ='Calculated Data'!B15/'Calculated Data'!B10 -> 1.88369153 | C19: ='Calculated Data'!C15/'Calculated Data'!C10 -> 2.560747664 | D19: ='Calculated Data'!D15/'Calculated Data'!D10 -> 2.270666037 | E19: ='Calculated Data'!E15/'Calculated Data'!E10 -> 2.541819665 | F19: ='Calculated Data'!F15/'Calculated Data'!F10 -> 2.444566814 | G19: ='Calculated Data'!G15/'Calculated Data'!G10 -> 2.681642138 | H19: ='Calculated Data'!H15/'Calculated Data'!H10 -> 2.05049505 | I19: ='Calculated Data'!I15/'Calculated Data'!I10 -> 1.749321758 | J19: ='Calculated Data'!J15/'Calculated Data'!J10 -> 1.941408975 | K19: ='Calculated Data'!K15/'Calculated Data'!K10 -> 1.61928544 | L19: ='Balance Sheet'!L8/'Calculated Data'!L10 -> 
A20: Long term debt/Earning | B20: ='Data Sheet'!B59/'Data Sheet'!B30 -> 2.424242424 | C20: ='Data Sheet'!C59/'Data Sheet'!C30 -> 2.880165289 | D20: ='Data Sheet'!D59/'Data Sheet'!D30 -> 2.645695364 | E20: ='Data Sheet'!E59/'Data Sheet'!E30 -> 4.411242604 | F20: ='Data Sheet'!F59/'Data Sheet'!F30 -> 6.065217391 | G20: ='Data Sheet'!G59/'Data Sheet'!G30 -> -1.657824934 | H20: ='Data Sheet'!H59/'Data Sheet'!H30 -> 2.108333333 | I20: ='Data Sheet'!I59/'Data Sheet'!I30 -> 0.7251461988 | J20: ='Data Sheet'!J59/'Data Sheet'!J30 -> 0.7166947723 | K20: ='Data Sheet'!K59/'Data Sheet'!K30 -> 0.08950617284
A21: Current liablility/Earning | B21: ='Data Sheet'!B60/'Data Sheet'!B30 -> 18.75757576 | C21: ='Data Sheet'!C60/'Data Sheet'!C30 -> 8.851239669 | D21: ='Data Sheet'!D60/'Data Sheet'!D30 -> 6.261589404 | E21: ='Data Sheet'!E60/'Data Sheet'!E30 -> 6.769230769 | F21: ='Data Sheet'!F60/'Data Sheet'!F30 -> 8.192028986 | G21: ='Data Sheet'!G60/'Data Sheet'!G30 -> -4.100795756 | H21: ='Data Sheet'!H60/'Data Sheet'!H30 -> 4.522916667 | I21: ='Data Sheet'!I60/'Data Sheet'!I30 -> 3.312865497 | J21: ='Data Sheet'!J60/'Data Sheet'!J30 -> 6.111298482 | K21: ='Data Sheet'!K60/'Data Sheet'!K30 -> 2.398148148
A22: Total liability/Earning | B22: =('Data Sheet'!B59+'Data Sheet'!B60)/'Data Sheet'!B30 -> 21.18181818 | C22: =('Data Sheet'!C59+'Data Sheet'!C60)/'Data Sheet'!C30 -> 11.73140496 | D22: =('Data Sheet'!D59+'Data Sheet'!D60)/'Data Sheet'!D30 -> 8.907284768 | E22: =('Data Sheet'!E59+'Data Sheet'!E60)/'Data Sheet'!E30 -> 11.18047337 | F22: =('Data Sheet'!F59+'Data Sheet'!F60)/'Data Sheet'!F30 -> 14.25724638 | G22: =('Data Sheet'!G59+'Data Sheet'!G60)/'Data Sheet'!G30 -> -5.75862069 | H22: =('Data Sheet'!H59+'Data Sheet'!H60)/'Data Sheet'!H30 -> 6.63125 | I22: =('Data Sheet'!I59+'Data Sheet'!I60)/'Data Sheet'!I30 -> 4.038011696 | J22: =('Data Sheet'!J59+'Data Sheet'!J60)/'Data Sheet'!J30 -> 6.827993255 | K22: =('Data Sheet'!K59+'Data Sheet'!K60)/'Data Sheet'!K30 -> 2.487654321
A23: Debt/Equity | B23: ='Data Sheet'!B59/'Calculated Data'!B10 -> 0.1011378003 | C23: ='Data Sheet'!C59/'Calculated Data'!C10 -> 0.3831775701 | D23: ='Data Sheet'!D59/'Calculated Data'!D10 -> 0.3774208786 | E23: ='Data Sheet'!E59/'Calculated Data'!E10 -> 0.6083231334 | F23: ='Data Sheet'!F59/'Calculated Data'!F10 -> 0.6145374449 | G23: ='Data Sheet'!G59/'Calculated Data'!G10 -> 0.4841208366 | H23: ='Data Sheet'!H59/'Calculated Data'!H10 -> 0.3339933993 | I23: ='Data Sheet'!I59/'Calculated Data'!I10 -> 0.1345632122 | J23: ='Data Sheet'!J59/'Calculated Data'!J10 -> 0.09881422925 | K23: ='Data Sheet'!K59/'Calculated Data'!K10 -> 0.02228198233
A24: Interest Coverage | B24: ='Calculated Data'!B4/'Data Sheet'!B27 -> 4.212121212 | C24: ='Calculated Data'!C4/'Data Sheet'!C27 -> 10.57777778 | D24: ='Calculated Data'!D4/'Data Sheet'!D27 -> 5.858695652 | E24: ='Calculated Data'!E4/'Data Sheet'!E27 -> 8.042253521 | F24: ='Calculated Data'!F4/'Data Sheet'!F27 -> 2.908256881 | G24: ='Calculated Data'!G4/'Data Sheet'!G27 -> -3.067010309 | H24: ='Calculated Data'!H4/'Data Sheet'!H27 -> 5.175182482 | I24: ='Calculated Data'!I4/'Data Sheet'!I27 -> 12.09333333 | J24: ='Calculated Data'!J4/'Data Sheet'!J27 -> 16.76 | K24: ='Calculated Data'!K4/'Data Sheet'!K27 -> 38.89583333
A25: Working Capital/Sales | B25: ='Calculated Data'!B11/'Data Sheet'!B17 -> 0.3955637708 | C25: ='Calculated Data'!C11/'Data Sheet'!C17 -> 0.3172490294 | D25: ='Calculated Data'!D11/'Data Sheet'!D17 -> 0.3179250128 | E25: ='Calculated Data'!E11/'Data Sheet'!E17 -> 0.3240046643 | F25: ='Calculated Data'!F11/'Data Sheet'!F17 -> 0.4007498438 | G25: ='Calculated Data'!G11/'Data Sheet'!G17 -> 0.4254397145 | H25: ='Calculated Data'!H11/'Data Sheet'!H17 -> 0.3255640221 | I25: ='Calculated Data'!I11/'Data Sheet'!I17 -> 0.2826172645 | J25: ='Calculated Data'!J11/'Data Sheet'!J17 -> 0.1949693252 | K25: ='Calculated Data'!K11/'Data Sheet'!K17 -> 0.2011738149 | M25: Check for improving or deteriorating picture
A26: Inventory Turns | B26: =365/B27 -> 2.339965398 | C26: 3.657200811 | D26: 4.835264901 | E26: 7.847058824 | F26: 4.43715342 | G26: 2.197759104 | H26: 4.89254386 | I26: 6.213061224 | J26: 4.565826331 | K26: 5.10133579
A27: Inventory Days | B27: ='Balance Sheet'!B22 -> 155.9852126 | C27: ='Balance Sheet'!C22 -> 99.80310593 | D27: ='Balance Sheet'!D22 -> 75.48707413 | E27: ='Balance Sheet'!E22 -> 46.51424288 | F27: ='Balance Sheet'!F22 -> 82.25994584 | G27: ='Balance Sheet'!G22 -> 166.0782564 | H27: ='Balance Sheet'!H22 -> 74.6033169 | I27: ='Balance Sheet'!I22 -> 58.74720799 | J27: ='Balance Sheet'!J22 -> 79.94171779 | K27: ='Balance Sheet'!K22 -> 71.54988713
A28: Debtor Days | B28: ='Balance Sheet'!B23 -> 62.2051756 | C28: ='Balance Sheet'!C23 -> 110.4649658 | D28: ='Balance Sheet'!D23 -> 79.36141072 | E28: ='Balance Sheet'!E23 -> 104.5202399 | F28: ='Balance Sheet'!F23 -> 133.5773797 | G28: ='Balance Sheet'!G23 -> 121.3255162 | H28: ='Balance Sheet'!H23 -> 99.41655461 | I28: ='Balance Sheet'!I23 -> 85.89081592 | J28: ='Balance Sheet'!J23 -> 90.10797546 | K28: ='Balance Sheet'!K23 -> 64.03566591
A29: Creditor Days | B29: ='Balance Sheet'!B24 -> 131.4269871 | C29: ='Balance Sheet'!C24 -> 48.38325014 | D29: ='Balance Sheet'!D24 -> 49.74148262 | E29: ='Balance Sheet'!E24 -> 116.8024321 | F29: ='Balance Sheet'!F24 -> 284.564674 | G29: ='Balance Sheet'!G24 -> 352.2533775 | H29: ='Balance Sheet'!H24 -> 139.7176154 | I29: ='Balance Sheet'!I24 -> 90.01510971 | J29: ='Balance Sheet'!J24 -> 158.4055215 | K29: ='Balance Sheet'!K24 -> 146.889842 | M29: Check back to see if Creditor policy change is impacting Working Cap cycle
A30: Cash Conversion Cycle | B30: ='Balance Sheet'!B25 -> 86.76340111 | C30: ='Balance Sheet'!C25 -> 161.8848216 | D30: ='Balance Sheet'!D25 -> 105.1070022 | E30: ='Balance Sheet'!E25 -> 34.23205064 | F30: ='Balance Sheet'!F25 -> -68.72734847 | G30: ='Balance Sheet'!G25 -> -64.84960489 | H30: ='Balance Sheet'!H25 -> 34.30225609 | I30: ='Balance Sheet'!I25 -> 54.6229142 | J30: ='Balance Sheet'!J25 -> 11.64417178 | K30: ='Balance Sheet'!K25 -> -11.30428894
A31: Cash In/Cash Out Ratio | B31: =('Data Sheet'!B67+'Data Sheet'!B69)/'Data Sheet'!B60 -> 0.3852988691 | C31: =('Data Sheet'!C67+'Data Sheet'!C69)/'Data Sheet'!C60 -> 0.8155929038 | D31: =('Data Sheet'!D67+'Data Sheet'!D69)/'Data Sheet'!D60 -> 0.9122157589 | E31: =('Data Sheet'!E67+'Data Sheet'!E69)/'Data Sheet'!E60 -> 0.8068181818 | F31: =('Data Sheet'!F67+'Data Sheet'!F69)/'Data Sheet'!F60 -> 0.8509509067 | G31: =('Data Sheet'!G67+'Data Sheet'!G69)/'Data Sheet'!G60 -> 0.6261319534 | H31: =('Data Sheet'!H67+'Data Sheet'!H69)/'Data Sheet'!H60 -> 0.8779364348 | I31: =('Data Sheet'!I67+'Data Sheet'!I69)/'Data Sheet'!I60 -> 1.096646072 | J31: =('Data Sheet'!J67+'Data Sheet'!J69)/'Data Sheet'!J60 -> 0.6766004415 | K31: =('Data Sheet'!K67+'Data Sheet'!K69)/'Data Sheet'!K60 -> 0.8021235521
A32: Current Ratio | B32: ='Data Sheet'!B65/'Data Sheet'!B60 -> 1.864297254 | C32: ='Data Sheet'!C65/'Data Sheet'!C60 -> 1.801120448 | D32: ='Data Sheet'!D65/'Data Sheet'!D60 -> 1.982020095 | E32: ='Data Sheet'!E65/'Data Sheet'!E60 -> 1.850087413 | F32: ='Data Sheet'!F65/'Data Sheet'!F60 -> 1.850950907 | G32: ='Data Sheet'!G65/'Data Sheet'!G60 -> 1.539780078 | H32: ='Data Sheet'!H65/'Data Sheet'!H60 -> 2.003684938 | I32: ='Data Sheet'!I65/'Data Sheet'!I60 -> 1.949249779 | J32: ='Data Sheet'!J65/'Data Sheet'!J60 -> 1.438465784 | K32: ='Data Sheet'!K65/'Data Sheet'!K60 -> 1.716859717
A33: CFO/PAT | B33: ='Calculated Data'!B17/'Calculated Data'!B7 -> 2.954545455 | C33: ='Calculated Data'!C17/'Calculated Data'!C7 -> -0.8636363636 | D33: ='Calculated Data'!D17/'Calculated Data'!D7 -> 1.602649007 | E33: ='Calculated Data'!E17/'Calculated Data'!E7 -> 0.3727810651 | F33: ='Calculated Data'!F17/'Calculated Data'!F7 -> 3 | G33: ='Calculated Data'!G17/'Calculated Data'!G7 -> -0.8872679045 | H33: ='Calculated Data'!H17/'Calculated Data'!H7 -> -0.2583333333 | I33: ='Calculated Data'!I17/'Calculated Data'!I7 -> 2.211988304 | J33: ='Calculated Data'!J17/'Calculated Data'!J7 -> 1.988195616 | K33: ='Calculated Data'!K17/'Calculated Data'!K7 -> 0.7060185185
A35: Gross Margin =Gross Profit/Sales | B35: ='Calculated Data'!B3/'Data Sheet'!B17 -> 0.2499075786 | C35: ='Calculated Data'!C3/'Data Sheet'!C17 -> 0.3229802182 | D35: ='Calculated Data'!D3/'Data Sheet'!D17 -> 0.3680876562 | E35: ='Calculated Data'!E3/'Data Sheet'!E17 -> 0.4875895386 | F35: ='Calculated Data'!F3/'Data Sheet'!F17 -> 0.5061445532 | G35: ='Calculated Data'!G3/'Data Sheet'!G17 -> 0.3173591639 | H35: ='Calculated Data'!H3/'Data Sheet'!H17 -> 0.5714926042 | I35: ='Calculated Data'!I3/'Data Sheet'!I17 -> 0.5603731441 | J35: ='Calculated Data'!J3/'Data Sheet'!J17 -> 0.4749693252 | K35: ='Calculated Data'!K3/'Data Sheet'!K17 -> 0.5007674944
A36: EBIT/Sales | B36: ='Calculated Data'!B4/'Data Sheet'!B17 -> 0.05138632163 | C36: ='Calculated Data'!C4/'Data Sheet'!C17 -> 0.08800147902 | D36: ='Calculated Data'!D4/'Data Sheet'!D17 -> 0.0922787194 | E36: ='Calculated Data'!E4/'Data Sheet'!E17 -> 0.09511910711 | F36: ='Calculated Data'!F4/'Data Sheet'!F17 -> 0.1320558217 | G36: ='Calculated Data'!G4/'Data Sheet'!G17 -> -0.1516696406 | H36: ='Calculated Data'!H4/'Data Sheet'!H17 -> 0.1059315703 | I36: ='Calculated Data'!I4/'Data Sheet'!I17 -> 0.1191696229 | J36: ='Calculated Data'!J4/'Data Sheet'!J17 -> 0.1028220859 | K36: ='Calculated Data'!K4/'Data Sheet'!K17 -> 0.1685778781 | L36: ='Calculated Data'!L4/'Profit & Loss'!L4 -> 0.1660710927
A37: EBITDA/Sales | B37: ='Calculated Data'!B5/'Data Sheet'!B17 -> 0.07541589649 | C37: ='Calculated Data'!C5/'Data Sheet'!C17 -> 0.1014975042 | D37: ='Calculated Data'!D5/'Data Sheet'!D17 -> 0.1082006506 | E37: ='Calculated Data'!E5/'Data Sheet'!E17 -> 0.1181076129 | F37: ='Calculated Data'!F5/'Data Sheet'!F17 -> 0.1903770048 | G37: ='Calculated Data'!G5/'Data Sheet'!G17 -> -0.05251083355 | H37: ='Calculated Data'!H5/'Data Sheet'!H17 -> 0.157477962 | I37: ='Calculated Data'!I5/'Data Sheet'!I17 -> 0.1556957036 | J37: ='Calculated Data'!J5/'Data Sheet'!J17 -> 0.1321472393 | K37: ='Calculated Data'!K5/'Data Sheet'!K17 -> 0.1938600451
A38: Op Profit (Ex Other Income)/Sales | B38: ='Calculated Data'!B6/'Data Sheet'!B17 -> 0.07282809612 | C38: ='Calculated Data'!C6/'Data Sheet'!C17 -> 0.10112775 | D38: ='Calculated Data'!D6/'Data Sheet'!D17 -> 0.106488615 | E38: ='Calculated Data'!E6/'Data Sheet'!E17 -> 0.1126103615 | F38: ='Calculated Data'!F6/'Data Sheet'!F17 -> 0.186211206 | G38: ='Calculated Data'!G6/'Data Sheet'!G17 -> -0.0583736936 | H38: ='Calculated Data'!H6/'Data Sheet'!H17 -> 0.1541909458 | I38: ='Calculated Data'!I6/'Data Sheet'!I17 -> 0.1403232164 | J38: ='Calculated Data'!J6/'Data Sheet'!J17 -> 0.123803681 | K38: ='Calculated Data'!K6/'Data Sheet'!K17 -> 0.179503386
A39: Net Margin =PAT/Sales | B39: ='Calculated Data'!B7/'Data Sheet'!B17 -> 0.02439926063 | C39: ='Calculated Data'!C7/'Data Sheet'!C17 -> 0.04474024774 | D39: ='Calculated Data'!D7/'Data Sheet'!D17 -> 0.05170347543 | E39: ='Calculated Data'!E7/'Data Sheet'!E17 -> 0.05630518074 | F39: ='Calculated Data'!F7/'Data Sheet'!F17 -> 0.05748802333 | G39: ='Calculated Data'!G7/'Data Sheet'!G17 -> -0.1921998471 | H39: ='Calculated Data'!H7/'Data Sheet'!H17 -> 0.07171671896 | I39: ='Calculated Data'!I7/'Data Sheet'!I17 -> 0.08986992511 | J39: ='Calculated Data'!J7/'Data Sheet'!J17 -> 0.0727607362 | K39: ='Calculated Data'!K7/'Data Sheet'!K17 -> 0.117020316 | L39: ='Calculated Data'!L7/'Profit & Loss'!L4 -> 0.1157607674
A40: Op Cash Flow/Sales | B40: ='Calculated Data'!B17/'Data Sheet'!B17 -> 0.07208872458 | C40: ='Calculated Data'!C17/'Data Sheet'!C17 -> -0.03863930486 | D40: ='Calculated Data'!D17/'Data Sheet'!D17 -> 0.08286252354 | E40: ='Calculated Data'!E17/'Data Sheet'!E17 -> 0.02098950525 | F40: ='Calculated Data'!F17/'Data Sheet'!F17 -> 0.17246407 | G40: ='Calculated Data'!G17/'Data Sheet'!G17 -> 0.1705327555 | H40: ='Calculated Data'!H17/'Data Sheet'!H17 -> -0.01852681906 | I40: ='Calculated Data'!I17/'Data Sheet'!I17 -> 0.1987912232 | J40: ='Calculated Data'!J17/'Data Sheet'!J17 -> 0.1446625767 | K40: ='Calculated Data'!K17/'Data Sheet'!K17 -> 0.08261851016
A41: Free Cash Flow/Sales | B41: ='Calculated Data'!B19/'Data Sheet'!B17 -> 0 | C41: ='Calculated Data'!C19/'Data Sheet'!C17 -> -0.07764836384 | D41: ='Calculated Data'!D19/'Data Sheet'!D17 -> 0.02174285225 | E41: ='Calculated Data'!E19/'Data Sheet'!E17 -> -0.1587539564 | F41: ='Calculated Data'!F19/'Data Sheet'!F17 -> 0.01478858571 | G41: ='Calculated Data'!G19/'Data Sheet'!G17 -> 0.1506500127 | H41: ='Calculated Data'!H19/'Data Sheet'!H17 -> -0.02525026147 | I41: ='Calculated Data'!I19/'Data Sheet'!I17 -> 0.186440678 | J41: ='Calculated Data'!J19/'Data Sheet'!J17 -> 0.1109202454 | K41: ='Calculated Data'!K19/'Data Sheet'!K17 -> 0.06735891648
A42: EPA/Sales | B42: ='Calculated Data'!B26/'Data Sheet'!B17 -> -0.04448533464 | C42: ='Calculated Data'!C26/'Data Sheet'!C17 -> -0.006229095702 | D42: ='Calculated Data'!D26/'Data Sheet'!D17 -> 0.002498989822 | E42: ='Calculated Data'!E26/'Data Sheet'!E17 -> -0.01469032151 | F42: ='Calculated Data'!F26/'Data Sheet'!F17 -> -0.02231313989 | G42: ='Calculated Data'!G26/'Data Sheet'!G17 -> -0.262157999 | H42: ='Calculated Data'!H26/'Data Sheet'!H17 -> 0.01642388092 | I42: ='Calculated Data'!I26/'Data Sheet'!I17 -> 0.03744166465 | J42: ='Calculated Data'!J26/'Data Sheet'!J17 -> 0.02859919654 | K42: ='Calculated Data'!K26/'Data Sheet'!K17 -> 0.0784950449
A43: EPA/Sales Increase - last 5 Years | F43: =(F42-B42) -> 0.02217219474 | G43: =(G42-C42) -> -0.2559289033 | H43: 0.01392489109 | I43: 0.05213198615 | J43: 0.05091233643 | K43: 0.3406530439
A44: EPA/Sales Increase - last 3 Years | D44: =(D42-B42) -> 0.04698432446 | E44: =(E42-C42) -> -0.008461225804 | F44: -0.02481212971 | G44: -0.2474676775 | H44: 0.03873702081 | I44: 0.2995996637 | J44: 0.01217531562 | K44: 0.04105338026
A45: MktCap Cagr - last 5 years | F45: =POWER('Calculated Data'!F33/'Calculated Data'!B33, 1/4)-1 -> -0.1486064777 | G45: =POWER('Calculated Data'!G33/'Calculated Data'!C33, 1/4)-1 -> 0.05779281453 | H45: =POWER('Calculated Data'!H33/'Calculated Data'!D33, 1/4)-1 -> 0.1499418297 | I45: =POWER('Calculated Data'!I33/'Calculated Data'!E33, 1/4)-1 -> 1.024731568 | J45: =POWER('Calculated Data'!J33/'Calculated Data'!F33, 1/4)-1 -> 1.212816154 | K45: =POWER('Calculated Data'!K33/'Calculated Data'!G33, 1/4)-1 -> 0.8260420708
A46: MktCap Cagr - last 3 years | D46: =POWER('Calculated Data'!D33/'Calculated Data'!B33, 1/2)-1 -> 0.06463352245 | E46: =POWER('Calculated Data'!E33/'Calculated Data'!C33, 1/2)-1 -> -0.2653103616 | F46: =POWER('Calculated Data'!F33/'Calculated Data'!D33, 1/2)-1 -> -0.3191357265 | G46: =POWER('Calculated Data'!G33/'Calculated Data'!E33, 1/2)-1 -> 0.5229909067 | H46: =POWER('Calculated Data'!H33/'Calculated Data'!F33, 1/2)-1 -> 0.9421876915 | I46: =POWER('Calculated Data'!I33/'Calculated Data'!G33, 1/2)-1 -> 1.691767827 | J46: =POWER('Calculated Data'!J33/'Calculated Data'!H33, 1/2)-1 -> 1.521154549 | K46: =POWER('Calculated Data'!K33/'Calculated Data'!I33, 1/2)-1 -> 0.2387508353
A49: Sales/Invested Capital =Capital Turns | B49: ='Data Sheet'!B17/'Calculated Data'!B13 -> 1.569025522 | C49: ='Data Sheet'!C17/'Calculated Data'!C13 -> 2.156698565 | D49: ='Data Sheet'!D17/'Calculated Data'!D13 -> 2.005149331 | E49: ='Data Sheet'!E17/'Calculated Data'!E13 -> 1.52283105 | F49: ='Data Sheet'!F17/'Calculated Data'!F13 -> 1.09163256 | G49: ='Data Sheet'!G17/'Calculated Data'!G13 -> 1.02374739 | H49: ='Data Sheet'!H17/'Calculated Data'!H13 -> 1.655863434 | I49: ='Data Sheet'!I17/'Calculated Data'!I13 -> 1.987206266 | J49: ='Data Sheet'!J17/'Calculated Data'!J13 -> 2.466707022 | K49: ='Data Sheet'!K17/'Calculated Data'!K13 -> 2.890135699
A50: Sales/Fixed Assets= Fixed Asset Turns | B50: ='Data Sheet'!B17/'Data Sheet'!B62 -> 4.233176839 | C50: ='Data Sheet'!C17/'Data Sheet'!C62 -> 8.28330781 | D50: ='Data Sheet'!D17/'Data Sheet'!D62 -> 8.215189873 | E50: ='Data Sheet'!E17/'Data Sheet'!E62 -> 3.518757327 | F50: ='Data Sheet'!F17/'Data Sheet'!F62 -> 1.968429684 | G50: ='Data Sheet'!G17/'Data Sheet'!G62 -> 1.840056285 | H50: ='Data Sheet'!H17/'Data Sheet'!H62 -> 3.592592593 | I50: ='Data Sheet'!I17/'Data Sheet'!I62 -> 4.596014493 | J50: ='Data Sheet'!J17/'Data Sheet'!J62 -> 4.752186589 | K50: ='Data Sheet'!K17/'Data Sheet'!K62 -> 6.991792929
A51: Sales/Total Assets= Asset Turns | B51: ='Data Sheet'!B17/'Calculated Data'!B15 -> 0.9077181208 | C51: ='Data Sheet'!C17/'Calculated Data'!C15 -> 1.161227995 | D51: ='Data Sheet'!D17/'Calculated Data'!D15 -> 1.215102975 | E51: ='Data Sheet'!E17/'Calculated Data'!E15 -> 0.9635634029 | F51: ='Data Sheet'!F17/'Calculated Data'!F15 -> 0.720979126 | G51: ='Data Sheet'!G17/'Calculated Data'!G15 -> 0.5665800116 | H51: ='Data Sheet'!H17/'Calculated Data'!H15 -> 1.077257364 | I51: ='Data Sheet'!I17/'Calculated Data'!I15 -> 1.180366005 | J51: ='Data Sheet'!J17/'Calculated Data'!J15 -> 0.9760479042 | K51: ='Data Sheet'!K17/'Calculated Data'!K15 -> 1.31376038 | L51: ='Profit & Loss'!L4/'Balance Sheet'!L8 -> 
A52: Net Margin*Asset Turns= RoA | B52: =B39*B51 -> 0.02214765101 | C52: =C39*C51 -> 0.05195362817 | D52: 0.06282504681 | E52: 0.05425361156 | F52: 0.04144766481 | G52: -0.1088965916 | H52: 0.07725736359 | I52: 0.1060794045 | J52: 0.07101796407 | K52: 0.1537366548 | L52: =L39*L51 ->  | M52: Check back what is really driving RoA (Net Margins or Asset Turns, or both)
A53: Net Margin*Asset Turn*Fin Leverage= RoE | B53: =B39*B51*B19 -> 0.0417193426 | C53: 0.1330401319 | D53: 0.1426547 | E53: 0.1379028968 | F53: 0.1013215859 | G53: -0.2920216886 | H53: 0.1584158416 | I53: 0.1855670103 | J53: 0.1378749128 | K53: 0.2489435267 | L53: =L39*L51*L19 ->  | M53: Check back what is really driving RoE (Net Margins, Asset Turns, or Financial Leverage)
A54: RoCE | B54: ='Calculated Data'!B4/'Calculated Data'!B14 -> 0.07979334099 | C54: ='Calculated Data'!C4/'Calculated Data'!C14 -> 0.1891891892 | D54: ='Calculated Data'!D4/'Calculated Data'!D14 -> 0.1848422497 | E54: ='Calculated Data'!E4/'Calculated Data'!E14 -> 0.1448503298 | F54: ='Calculated Data'!F4/'Calculated Data'!F14 -> 0.1441564347 | G54: ='Calculated Data'!G4/'Calculated Data'!G14 -> -0.1552713987 | H54: ='Calculated Data'!H4/'Calculated Data'!H14 -> 0.1754082138 | I54: ='Calculated Data'!I4/'Calculated Data'!I14 -> 0.2168818747 | J54: ='Calculated Data'!J4/'Calculated Data'!J14 -> 0.17731697 | K54: ='Calculated Data'!K4/'Calculated Data'!K14 -> 0.3508079669
A55: EBIT Margin*Cap Turns*(1-Tax rate)= RoIC | B55: =B36*B49*(1-'Calculated Data'!B22) -> 0.0502013746 | C55: =C36*C49*(1-'Calculated Data'!C22) -> 0.1065657182 | D55: =D36*D49*(1-'Calculated Data'!D22) -> 0.1250108478 | E55: =E36*E49*(1-'Calculated Data'!E22) -> 0.09762912227 | F55: =F36*F49*(1-'Calculated Data'!F22) -> 0.09564224997 | G55: =G36*G49*(1-'Calculated Data'!G22) -> -0.1483835674 | H55: =H36*H49*(1-'Calculated Data'!H22) -> 0.1471957039 | I55: =I36*I49*(1-'Calculated Data'!I22) -> 0.1944043106 | J55: =J36*J49*(1-'Calculated Data'!J22) -> 0.1905458389 | K55: =K36*K49*(1-'Calculated Data'!K22) -> 0.3468613315 | L55: ='Business Robustness'!L14*'Business Robustness'!L16*(1-'Calculated Data'!K22) ->  | M55: Check back what is really driving RoIC (Op Margins or Capital Turns, or both)
A56: Return on Incremental Invested Cap= RoIIC | D56: ='Calculated Data'!D27 -> 0.1235839008 | E56: ='Calculated Data'!E27 -> 0.05110469246 | F56: ='Calculated Data'!F27 -> 0.03477222098 | G56: ='Calculated Data'!G27 -> -2.169386942 | H56: ='Calculated Data'!H27 -> -2.055778914 | I56: ='Calculated Data'!I27 -> 0.7123974983 | J56: ='Calculated Data'!J27 -> 0.5424766879 | K56: ='Calculated Data'!K27 -> -1.330055457
A57: ='Calculated Data'!A28 -> 3Yr Rolling RoIIC | G57: ='Calculated Data'!G28 -> -0.4935250951 | H57: ='Calculated Data'!H28 -> 0.2286300707 | I57: ='Calculated Data'!I28 -> 3.239338942 | J57: ='Calculated Data'!J28 -> -2.109452961 | K57: ='Calculated Data'!K28 -> -1.390544673 | M57: better to check when NOPLAT and/or Investments are Lumpy
A58: ='Calculated Data'!A29 -> 5Yr Rolling RoIIC | G58: ='Calculated Data'!G29 -> 0 | H58: ='Calculated Data'!H29 -> 0.1554545605 | I58: ='Calculated Data'!I29 -> 0.2479869036 | J58: ='Calculated Data'!J29 -> 0.266858726 | K58: ='Calculated Data'!K29 -> -1.424040763 | M58: better to check when NOPLAT and/or Investments are Lumpy
A60: Altman Z-Score | B60: ='Calculated Data'!B50 -> 1.764928058 | C60: ='Calculated Data'!C50 -> 2.202744171 | D60: ='Calculated Data'!D50 -> 2.306279112 | E60: ='Calculated Data'!E50 -> 1.793080333 | F60: ='Calculated Data'!F50 -> 1.496680048 | G60: ='Calculated Data'!G50 -> 0.5793888388 | H60: ='Calculated Data'!H50 -> 2.212348728 | I60: ='Calculated Data'!I50 -> 3.435052556 | J60: ='Calculated Data'!J50 -> 2.679813509 | K60: ='Calculated Data'!K50 -> 3.994190439
A61: Dividend Payout | B61: ='Data Sheet'!B31/'Data Sheet'!B30 -> 0 | C61: ='Data Sheet'!C31/'Data Sheet'!C30 -> 0 | D61: ='Data Sheet'!D31/'Data Sheet'!D30 -> 0 | E61: ='Data Sheet'!E31/'Data Sheet'!E30 -> 0 | F61: ='Data Sheet'!F31/'Data Sheet'!F30 -> 0 | G61: ='Data Sheet'!G31/'Data Sheet'!G30 -> 0 | H61: ='Data Sheet'!H31/'Data Sheet'!H30 -> 0 | I61: ='Data Sheet'!I31/'Data Sheet'!I30 -> 0 | J61: ='Data Sheet'!J31/'Data Sheet'!J30 -> 0.4080944351 | K61: ='Data Sheet'!K31/'Data Sheet'!K30 -> 0.1867283951
A62: Cash/Assets | B62: ='Data Sheet'!B69/'Data Sheet'!B61 -> 0.005369127517 | C62: ='Data Sheet'!C69/'Data Sheet'!C61 -> 0.02361528553 | D62: ='Data Sheet'!D69/'Data Sheet'!D61 -> 0.09465363012 | E62: ='Data Sheet'!E69/'Data Sheet'!E61 -> 0.02038523274 | F62: ='Data Sheet'!F69/'Data Sheet'!F61 -> 0.02507884067 | G62: ='Data Sheet'!G69/'Data Sheet'!G61 -> 0.09127671866 | H62: ='Data Sheet'!H69/'Data Sheet'!H61 -> 0.01335908579 | I62: ='Data Sheet'!I69/'Data Sheet'!I61 -> 0.107630273 | J62: ='Data Sheet'!J69/'Data Sheet'!J61 -> 0.05269461078 | K62: ='Data Sheet'!K69/'Data Sheet'!K61 -> 0.06524317912
A63: EBIT/Invested Capital | B63: ='Calculated Data'!B4/'Calculated Data'!B13 -> 0.08062645012 | C63: ='Calculated Data'!C4/'Calculated Data'!C13 -> 0.1897926635 | D63: ='Calculated Data'!D4/'Calculated Data'!D13 -> 0.1850326124 | E63: ='Calculated Data'!E4/'Calculated Data'!E13 -> 0.1448503298 | F63: ='Calculated Data'!F4/'Calculated Data'!F13 -> 0.1441564347 | G63: ='Calculated Data'!G4/'Calculated Data'!G13 -> -0.1552713987 | H63: ='Calculated Data'!H4/'Calculated Data'!H13 -> 0.1754082138 | I63: ='Calculated Data'!I4/'Calculated Data'!I13 -> 0.2368146214 | J63: ='Calculated Data'!J4/'Calculated Data'!J13 -> 0.2536319613 | K63: ='Calculated Data'!K4/'Calculated Data'!K13 -> 0.4872129436 | M63: Check back the significant role of EBIT/Invested Capital
A64: EPA | B64: ='Calculated Data'!B26 -> -1.203328302 | C64: ='Calculated Data'!C26 -> -0.3369317865 | D64: ='Calculated Data'!D26 -> 0.1459659955 | E64: ='Calculated Data'!E26 -> -0.88186 | F64: ='Calculated Data'!F26 -> -1.071253846 | G64: ='Calculated Data'!G26 -> -10.2844583 | H64: ='Calculated Data'!H26 -> 1.09925035 | I64: ='Calculated Data'!I26 -> 2.849685096 | J64: ='Calculated Data'!J26 -> 2.330834518 | K64: ='Calculated Data'!K26 -> 8.693326223 | M64: Check back what is really driving EPA (Invested Capital or RoIC, or both)
A65: MktCap | B65: ='Calculated Data'!B33 -> 11.9897602 | C65: ='Calculated Data'!C33 -> 14.7097058 | D65: ='Calculated Data'!D33 -> 13.5897282 | E65: ='Calculated Data'!E33 -> 7.9398412 | F65: ='Calculated Data'!F33 -> 6.299874 | G65: ='Calculated Data'!G33 -> 18.416472 | H65: ='Calculated Data'!H33 -> 23.7637108 | I65: ='Calculated Data'!I33 -> 133.438648 | J65: ='Calculated Data'!J33 -> 151.04738 | K65: ='Calculated Data'!K33 -> 204.76209
A66: MktCap Change | C66: =C65-B65 -> 2.7199456 | D66: =D65-C65 -> -1.1199776 | E66: -5.649887 | F66: -1.6399672 | G66: 12.116598 | H66: 5.3472388 | I66: 109.6749372 | J66: 17.608732 | K66: 53.71471
A67: MktCap Change - EPA | C67: =C66-C64 -> 3.056877387 | D67: -1.265943596 | E67: -4.768027 | F67: -0.5687133538 | G67: 22.4010563 | H67: 4.24798845 | I67: 106.8252521 | J67: 15.27789748 | K67: 45.02138378
A69: Capex/Net Profits 10 yr | B69: =SUM('Calculated Data'!B$18:K$18)/SUM('Calculated Data'!B$7:K$7) -> 0.8699971615
A70: Capex/Net Profits 7 yr | B70: =SUM('Calculated Data'!E$18:K$18)/SUM('Calculated Data'!E$7:K$7) -> 0.8571918984
A71: Capex/Net Profits 5 yr | B71: =SUM('Calculated Data'!G$18:K$18)/SUM('Calculated Data'!G$7:K$7) -> 0.2875163114
A72: Capex/Net Profits 3 yr | B72: =SUM('Calculated Data'!I$18:K$18)/SUM('Calculated Data'!I$7:K$7) -> 0.2090944423
A73: Capex/Depreciation 10 yr | B73: =SUM('Calculated Data'!B$18:K$18)/SUM('Data Sheet'!B26:K26) -> 1.405963303

Sheet Data Sheet
A1: COMPANY NAME | B1: AXTEL INDUSTRIES LTD | E1: =IF(B2<>B3, "A NEW VERSION OF THE WORKSHEET IS AVAILABLE", "") -> 
A2: LATEST VERSION | B2: 2.1 | E2: PLEASE DO NOT MAKE ANY CHANGES TO THIS SHEET
A3: CURRENT VERSION | B3: 2.1
A5: META
A6: Number of shares | B6: =IF(B9>0, B9/B8, 0) -> 1.615469613
A7: Face Value | B7: 10
A8: Current Price | B8: 90.5
A9: Market Capitalization | B9: 146.2
A15: PROFIT & LOSS
A16: Report Date | B16: 2010-03-31 | C16: 2011-03-31 | D16: 2012-03-31 | E16: 2013-03-31 | F16: 2014-03-31 | G16: 2015-03-31 | H16: 2016-03-31 | I16: 2017-03-31 | J16: 2018-03-31 | K16: 2019-03-31
A17: Sales | B17: 27.05 | C17: 54.09 | D17: 58.41 | E17: 60.03 | F17: 48.01 | G17: 39.23 | H17: 66.93 | I17: 76.11 | J17: 81.5 | K17: 110.75
A18: Raw Material Cost | B18: 20.29 | C18: 36.62 | D18: 36.91 | E18: 30.76 | F18: 23.71 | G18: 26.78 | H18: 28.68 | I18: 33.46 | J18: 42.79 | K18: 55.29
A19: Change in Inventory | B19: 4.73 | C19: -0.27 | D19: -0.85 | E19: -5.06 | F19: 3.03 | G19: 6.87 | H19: -2.89 | I19: -2.99 | J19: 2.24 | K19: 0.93
A20: Power and Fuel | B20: 0.23 | C20: 0.27 | D20: 0.32 | E20: 0.33 | F20: 0.52 | G20: 0.64 | H20: 0.65 | I20: 0.65 | J20: 0.71 | K20: 0.65
A21: Other Mfr. Exp | B21: 3.09 | C21: 3.8 | D21: 5.35 | E21: 5.54 | F21: 4.91 | G21: 4.67 | H21: 6.47 | I21: 7.99 | J21: 7.36 | K21: 9.02
A22: Employee Cost | B22: 4.58 | C22: 5.27 | D22: 6.31 | E22: 8.5 | F22: 9.6 | G22: 12.25 | H22: 13.94 | I22: 16.03 | J22: 17.3 | K22: 20.36
A23: Selling and admin | B23: 1.54 | C23: 1.9 | D23: 3.1 | E23: 3.42 | F23: 3.48 | G23: 4.75 | H23: 4.19 | I23: 4.29 | J23: 5.44 | K23: 6.33
A24: Other Expenses | B24: 0.08 | C24: 0.49 | D24: -0.65 | E24: -0.34 | F24: -0.12 | G24: -0.7 | H24: -0.21 | I24: 0.02 | J24: 0.05 | K24: 0.15
A25: Other Income | B25: 0.07 | C25: 0.02 | D25: 0.1 | E25: 0.33 | F25: 0.2 | G25: 0.23 | H25: 0.22 | I25: 1.17 | J25: 0.68 | K25: 1.59
A26: Depreciation | B26: 0.65 | C26: 0.73 | D26: 0.93 | E26: 1.38 | F26: 2.8 | G26: 3.89 | H26: 3.45 | I26: 2.78 | J26: 2.39 | K26: 2.8
A27: Interest | B27: 0.33 | C27: 0.45 | D27: 0.92 | E27: 0.71 | F27: 2.18 | G27: 1.94 | H27: 1.37 | I27: 0.75 | J27: 0.5 | K27: 0.48
A28: Profit before tax | B28: 1.06 | C28: 4.31 | D28: 4.47 | E28: 5 | F28: 4.16 | G28: -7.89 | H28: 5.72 | I28: 8.32 | J28: 7.88 | K28: 18.19
A29: Tax | B29: 0.4 | C29: 1.89 | D29: 1.45 | E29: 1.63 | F29: 1.4 | G29: -0.35 | H29: 0.92 | I29: 1.49 | J29: 1.96 | K29: 5.24
A30: Net profit | B30: 0.66 | C30: 2.42 | D30: 3.02 | E30: 3.38 | F30: 2.76 | G30: -7.54 | H30: 4.8 | I30: 6.84 | J30: 5.93 | K30: 12.96
A31: Dividend Amount | J31: 2.42 | K31: 2.42
A40: Quarters
A41: Report Date | B41: 2017-09-30 | C41: 2017-12-31 | D41: 2018-03-31 | E41: 2018-06-30 | F41: 2018-09-30 | G41: 2018-12-31 | H41: 2019-03-31 | I41: 2019-06-30 | J41: 2019-09-30 | K41: 2019-12-31
A42: Sales | B42: 24.16 | C42: 14.39 | D42: 30.06 | E42: 21.37 | F42: 30.28 | G42: 28.97 | H42: 30.13 | I42: 17.83 | J42: 30.83 | K42: 27.55
A43: Expenses | B43: 21.88 | C43: 13.09 | D43: 25.22 | E43: 18.86 | F43: 24.86 | G43: 23.19 | H43: 23.96 | I43: 16.54 | J43: 26.1 | K43: 21.63
A44: Other Income | B44: 0.1 | C44: 0.26 | D44: 0.29 | E44: 0.24 | F44: 0.84 | G44: 0.63 | H44: -0.12 | I44: 0.41 | J44: 0.92 | K44: 1.01
A45: Depreciation | B45: 0.55 | C45: 0.67 | D45: 0.61 | E45: 0.66 | F45: 0.7 | G45: 0.72 | H45: 0.71 | I45: 0.6 | J45: 0.66 | K45: 0.7
A46: Interest | B46: 0.07 | C46: 0.18 | D46: 0.12 | E46: 0.07 | F46: 0.15 | G46: 0.13 | H46: 0.13 | I46: 0.1 | J46: 0.13 | K46: 0.24
A47: Profit before tax | B47: 1.76 | C47: 0.71 | D47: 4.4 | E47: 2.02 | F47: 5.41 | G47: 5.56 | H47: 5.21 | I47: 1 | J47: 4.86 | K47: 5.99
A48: Tax | D48: 1.96 | H48: 1.5 | I48: 0.29 | J48: 1.42 | K48: 1.54
A49: Net profit | B49: 1.76 | C49: 0.71 | D49: 2.45 | E49: 2.02 | F49: 5.41 | G49: 5.56 | H49: 3.71 | I49: 0.71 | J49: 3.44 | K49: 4.45
A50: Operating Profit | B50: 2.28 | C50: 1.3 | D50: 4.84 | E50: 2.51 | F50: 5.42 | G50: 5.78 | H50: 6.17 | I50: 1.29 | J50: 4.73 | K50: 5.92
A55: BALANCE SHEET
A56: Report Date | B56: 2010-03-31 | C56: 2011-03-31 | D56: 2012-03-31 | E56: 2013-03-31 | F56: 2014-03-31 | G56: 2015-03-31 | H56: 2016-03-31 | I56: 2017-03-31 | J56: 2018-03-31 | K56: 2019-03-31
A57: Equity Share Capital | B57: 10 | C57: 10 | D57: 10 | E57: 10 | F57: 10 | G57: 16.15 | H57: 16.15 | I57: 16.15 | J57: 16.15 | K57: 16.15
A58: Reserves | B58: 5.82 | C58: 8.19 | D58: 11.17 | E58: 14.51 | F58: 17.24 | G58: 9.67 | H58: 14.15 | I58: 20.71 | J58: 26.86 | K58: 35.91
A59: Borrowings | B59: 1.6 | C59: 6.97 | D59: 7.99 | E59: 14.91 | F59: 16.74 | G59: 12.5 | H59: 10.12 | I59: 4.96 | J59: 4.25 | K59: 1.16
A60: Other Liabilities | B60: 12.38 | C60: 21.42 | D60: 18.91 | E60: 22.88 | F60: 22.61 | G60: 30.92 | H60: 21.71 | I60: 22.66 | J60: 36.24 | K60: 31.08
A61: Total | B61: 29.8 | C61: 46.58 | D61: 48.07 | E61: 62.3 | F61: 66.59 | G61: 69.24 | H61: 62.13 | I61: 64.48 | J61: 83.5 | K61: 84.3
A62: Net Block | B62: 6.39 | C62: 6.53 | D62: 7.11 | E62: 17.06 | F62: 24.39 | G62: 21.32 | H62: 18.63 | I62: 16.56 | J62: 17.15 | K62: 15.84
A63: Capital Work in Progress | B63: 0.15 | C63: 1.39 | D63: 3.45 | E63: 2.91 | F63: 0.35 | G63: 0.31 | I63: 0.23 | K63: 0.2
A64: Investments | B64: 0.18 | C64: 0.08 | D64: 0.03 | I64: 3.52 | J64: 14.22 | K64: 14.9
A65: Other Assets | B65: 23.08 | C65: 38.58 | D65: 37.48 | E65: 42.33 | F65: 41.85 | G65: 47.61 | H65: 43.5 | I65: 44.17 | J65: 52.13 | K65: 53.36
A66: Total | B66: 29.8 | C66: 46.58 | D66: 48.07 | E66: 62.3 | F66: 66.59 | G66: 69.24 | H66: 62.13 | I66: 64.48 | J66: 83.5 | K66: 84.3
A67: Receivables | B67: 4.61 | C67: 16.37 | D67: 12.7 | E67: 17.19 | F67: 17.57 | G67: 13.04 | H67: 18.23 | I67: 17.91 | J67: 20.12 | K67: 19.43
A68: Inventory | B68: 11.56 | C68: 14.79 | D68: 12.08 | E68: 7.65 | F68: 10.82 | G68: 17.85 | H68: 13.68 | I68: 12.25 | J68: 17.85 | K68: 21.71
A69: Cash & Bank | B69: 0.16 | C69: 1.1 | D69: 4.55 | E69: 1.27 | F69: 1.67 | G69: 6.32 | H69: 0.83 | I69: 6.94 | J69: 4.4 | K69: 5.5
A70: No. of Equity Shares | B70: 9999800 | C70: 9999800 | D70: 9999800 | E70: 9999800 | F70: 9999800 | G70: 16154800 | H70: 16154800 | I70: 16154800 | J70: 16154800 | K70: 16154800
A71: New Bonus Shares
A72: Face value | B72: 10 | C72: 10 | D72: 10 | E72: 10 | F72: 10 | G72: 10 | H72: 10 | I72: 10 | J72: 10 | K72: 10
A80: CASH FLOW:
A81: Report Date | B81: 2010-03-31 | C81: 2011-03-31 | D81: 2012-03-31 | E81: 2013-03-31 | F81: 2014-03-31 | G81: 2015-03-31 | H81: 2016-03-31 | I81: 2017-03-31 | J81: 2018-03-31 | K81: 2019-03-31
A82: Cash from Operating Activity | B82: 1.95 | C82: -2.09 | D82: 4.84 | E82: 1.26 | F82: 8.28 | G82: 6.69 | H82: -1.24 | I82: 15.13 | J82: 11.79 | K82: 9.15
A83: Cash from Investing Activity | B83: -0.45 | C83: -1.92 | D83: -3.49 | E83: -10.59 | F83: -7.51 | G83: -0.61 | H83: -0.63 | I83: -3.78 | J83: -13.12 | K83: -1.55
A84: Cash from Financing Activity | B84: -1.45 | C84: 4.95 | D84: 2.1 | E84: 6.05 | F84: -0.37 | G84: -1.44 | H84: -3.62 | I84: -5.9 | J84: -1.21 | K84: -6.5
A85: Net Cash Flow | B85: 0.05 | C85: 0.94 | D85: 3.45 | E85: -3.28 | F85: 0.4 | G85: 4.65 | H85: -5.49 | I85: 5.44 | J85: -2.54 | K85: 1.1
A90: PRICE: | B90: 11.99 | C90: 14.71 | D90: 13.59 | E90: 7.94 | F90: 6.3 | G90: 11.4 | H90: 14.71 | I90: 82.6 | J90: 93.5 | K90: 126.75
A92: DERIVED:
A93: Adjusted Equity Shares in Cr | B93: =IF($B7>0,(B70*B72/$B7)+SUM(C71:$K71),0)/10000000 -> 0.99998 | C93: =IF($B7>0,(C70*C72/$B7)+SUM(D71:$K71),0)/10000000 -> 0.99998 | D93: =IF($B7>0,(D70*D72/$B7)+SUM(E71:$K71),0)/10000000 -> 0.99998 | E93: =IF($B7>0,(E70*E72/$B7)+SUM(F71:$K71),0)/10000000 -> 0.99998 | F93: =IF($B7>0,(F70*F72/$B7)+SUM(G71:$K71),0)/10000000 -> 0.99998 | G93: =IF($B7>0,(G70*G72/$B7)+SUM(H71:$K71),0)/10000000 -> 1.61548 | H93: =IF($B7>0,(H70*H72/$B7)+SUM(I71:$K71),0)/10000000 -> 1.61548 | I93: =IF($B7>0,(I70*I72/$B7)+SUM(J71:$K71),0)/10000000 -> 1.61548 | J93: =IF($B7>0,(J70*J72/$B7)+SUM(K71:$K71),0)/10000000 -> 1.61548 | K93: =IF($B7>0,(K70*K72/$B7),0)/10000000 -> 1.61548

Sheet Calculated Data
A1: ='Data Sheet'!B1 -> AXTEL INDUSTRIES LTD
A2: =A1 -> AXTEL INDUSTRIES LTD | B2: ='Data Sheet'!B16 -> 2010-03-31 | C2: ='Data Sheet'!C16 -> 2011-03-31 | D2: ='Data Sheet'!D16 -> 2012-03-31 | E2: ='Data Sheet'!E16 -> 2013-03-31 | F2: ='Data Sheet'!F16 -> 2014-03-31 | G2: ='Data Sheet'!G16 -> 2015-03-31 | H2: ='Data Sheet'!H16 -> 2016-03-31 | I2: ='Data Sheet'!I16 -> 2017-03-31 | J2: ='Data Sheet'!J16 -> 2018-03-31 | K2: ='Data Sheet'!K16 -> 2019-03-31 | L2: TTM
A3: Gross Profit | B3: ='Data Sheet'!B17-'Data Sheet'!B18 -> 6.76 | C3: ='Data Sheet'!C17-'Data Sheet'!C18 -> 17.47 | D3: ='Data Sheet'!D17-'Data Sheet'!D18 -> 21.5 | E3: ='Data Sheet'!E17-'Data Sheet'!E18 -> 29.27 | F3: ='Data Sheet'!F17-'Data Sheet'!F18 -> 24.3 | G3: ='Data Sheet'!G17-'Data Sheet'!G18 -> 12.45 | H3: ='Data Sheet'!H17-'Data Sheet'!H18 -> 38.25 | I3: ='Data Sheet'!I17-'Data Sheet'!I18 -> 42.65 | J3: ='Data Sheet'!J17-'Data Sheet'!J18 -> 38.71 | K3: ='Data Sheet'!K17-'Data Sheet'!K18 -> 55.46
A4: EBIT | B4: ='Data Sheet'!B28+'Data Sheet'!B27 -> 1.39 | C4: ='Data Sheet'!C28+'Data Sheet'!C27 -> 4.76 | D4: ='Data Sheet'!D28+'Data Sheet'!D27 -> 5.39 | E4: ='Data Sheet'!E28+'Data Sheet'!E27 -> 5.71 | F4: ='Data Sheet'!F28+'Data Sheet'!F27 -> 6.34 | G4: ='Data Sheet'!G28+'Data Sheet'!G27 -> -5.95 | H4: ='Data Sheet'!H28+'Data Sheet'!H27 -> 7.09 | I4: ='Data Sheet'!I28+'Data Sheet'!I27 -> 9.07 | J4: ='Data Sheet'!J28+'Data Sheet'!J27 -> 8.38 | K4: ='Data Sheet'!K28+'Data Sheet'!K27 -> 18.67 | L4: ='Profit & Loss'!L17 -> 17.66
A5: EBITDA | B5: ='Calculated Data'!B4+'Data Sheet'!B26 -> 2.04 | C5: ='Calculated Data'!C4+'Data Sheet'!C26 -> 5.49 | D5: ='Calculated Data'!D4+'Data Sheet'!D26 -> 6.32 | E5: ='Calculated Data'!E4+'Data Sheet'!E26 -> 7.09 | F5: ='Calculated Data'!F4+'Data Sheet'!F26 -> 9.14 | G5: ='Calculated Data'!G4+'Data Sheet'!G26 -> -2.06 | H5: ='Calculated Data'!H4+'Data Sheet'!H26 -> 10.54 | I5: ='Calculated Data'!I4+'Data Sheet'!I26 -> 11.85 | J5: ='Calculated Data'!J4+'Data Sheet'!J26 -> 10.77 | K5: ='Calculated Data'!K4+'Data Sheet'!K26 -> 21.47 | L5: ='Profit & Loss'!L18 -> 20.33
A6: Operating Profit (excl Other Income) | B6: =B5-'Data Sheet'!B25 -> 1.97 | C6: =C5-'Data Sheet'!C25 -> 5.47 | D6: =D5-'Data Sheet'!D25 -> 6.22 | E6: =E5-'Data Sheet'!E25 -> 6.76 | F6: =F5-'Data Sheet'!F25 -> 8.94 | G6: =G5-'Data Sheet'!G25 -> -2.29 | H6: =H5-'Data Sheet'!H25 -> 10.32 | I6: =I5-'Data Sheet'!I25 -> 10.68 | J6: =J5-'Data Sheet'!J25 -> 10.09 | K6: =K5-'Data Sheet'!K25 -> 19.88 | L6: ='Profit & Loss'!L19 -> 18.11
A7: PAT | B7: ='Data Sheet'!B30 -> 0.66 | C7: ='Data Sheet'!C30 -> 2.42 | D7: ='Data Sheet'!D30 -> 3.02 | E7: ='Data Sheet'!E30 -> 3.38 | F7: ='Data Sheet'!F30 -> 2.76 | G7: ='Data Sheet'!G30 -> -7.54 | H7: ='Data Sheet'!H30 -> 4.8 | I7: ='Data Sheet'!I30 -> 6.84 | J7: ='Data Sheet'!J30 -> 5.93 | K7: ='Data Sheet'!K30 -> 12.96 | L7: ='Profit & Loss'!L12 -> 12.31
A8: Dividend | B8: ='Data Sheet'!B31 -> 0 | C8: ='Data Sheet'!C31 -> 0 | D8: ='Data Sheet'!D31 -> 0 | E8: ='Data Sheet'!E31 -> 0 | F8: ='Data Sheet'!F31 -> 0 | G8: ='Data Sheet'!G31 -> 0 | H8: ='Data Sheet'!H31 -> 0 | I8: ='Data Sheet'!I31 -> 0 | J8: ='Data Sheet'!J31 -> 2.42 | K8: ='Data Sheet'!K31 -> 2.42
B9: =B2 -> 2010-03-31 | C9: 2011-03-31 | D9: 2012-03-31 | E9: 2013-03-31 | F9: 2014-03-31 | G9: 2015-03-31 | H9: 2016-03-31 | I9: 2017-03-31 | J9: 2018-03-31 | K9: 2019-03-31 | L9: 1HFY17
A10: Networth | B10: ='Data Sheet'!B57+'Data Sheet'!B58 -> 15.82 | C10: ='Data Sheet'!C57+'Data Sheet'!C58 -> 18.19 | D10: ='Data Sheet'!D57+'Data Sheet'!D58 -> 21.17 | E10: ='Data Sheet'!E57+'Data Sheet'!E58 -> 24.51 | F10: ='Data Sheet'!F57+'Data Sheet'!F58 -> 27.24 | G10: ='Data Sheet'!G57+'Data Sheet'!G58 -> 25.82 | H10: ='Data Sheet'!H57+'Data Sheet'!H58 -> 30.3 | I10: ='Data Sheet'!I57+'Data Sheet'!I58 -> 36.86 | J10: ='Data Sheet'!J57+'Data Sheet'!J58 -> 43.01 | K10: ='Data Sheet'!K57+'Data Sheet'!K58 -> 52.06 | L10: ='Balance Sheet'!L4+'Balance Sheet'!L5 -> 0
A11: Working Capital | B11: ='Data Sheet'!B65-'Data Sheet'!B60 -> 10.7 | C11: ='Data Sheet'!C65-'Data Sheet'!C60 -> 17.16 | D11: ='Data Sheet'!D65-'Data Sheet'!D60 -> 18.57 | E11: ='Data Sheet'!E65-'Data Sheet'!E60 -> 19.45 | F11: ='Data Sheet'!F65-'Data Sheet'!F60 -> 19.24 | G11: ='Data Sheet'!G65-'Data Sheet'!G60 -> 16.69 | H11: ='Data Sheet'!H65-'Data Sheet'!H60 -> 21.79 | I11: ='Data Sheet'!I65-'Data Sheet'!I60 -> 21.51 | J11: ='Data Sheet'!J65-'Data Sheet'!J60 -> 15.89 | K11: ='Data Sheet'!K65-'Data Sheet'!K60 -> 22.28 | L11: ='Balance Sheet'!L16 -> 0
A12: Exclude one-off excess Cash (if any) | M12: check historical normalised levels of cash/total assets for excluding one-off excess cash for RoIC calculations
A13: Invested Capital | B13: ='Data Sheet'!B62+'Data Sheet'!B63+('Data Sheet'!B65-'Data Sheet'!B60) -> 17.24 | C13: ='Data Sheet'!C62+'Data Sheet'!C63+('Data Sheet'!C65-'Data Sheet'!C60) -> 25.08 | D13: ='Data Sheet'!D62+'Data Sheet'!D63+('Data Sheet'!D65-'Data Sheet'!D60) -> 29.13 | E13: ='Data Sheet'!E62+'Data Sheet'!E63+('Data Sheet'!E65-'Data Sheet'!E60) -> 39.42 | F13: ='Data Sheet'!F62+'Data Sheet'!F63+('Data Sheet'!F65-'Data Sheet'!F60) -> 43.98 | G13: ='Data Sheet'!G62+'Data Sheet'!G63+('Data Sheet'!G65-'Data Sheet'!G60) -> 38.32 | H13: ='Data Sheet'!H62+'Data Sheet'!H63+('Data Sheet'!H65-'Data Sheet'!H60) -> 40.42 | I13: ='Data Sheet'!I62+'Data Sheet'!I63+('Data Sheet'!I65-'Data Sheet'!I60) -> 38.3 | J13: ='Data Sheet'!J62+'Data Sheet'!J63+('Data Sheet'!J65-'Data Sheet'!J60) -> 33.04 | K13: ='Data Sheet'!K62+'Data Sheet'!K63+('Data Sheet'!K65-'Data Sheet'!K60) -> 38.32 | L13: ='Balance Sheet'!L10+'Balance Sheet'!L11+'Balance Sheet'!L16 -> 0
A14: Capital Employed | B14: =B10+'Data Sheet'!B59 -> 17.42 | C14: =C10+'Data Sheet'!C59 -> 25.16 | D14: =D10+'Data Sheet'!D59 -> 29.16 | E14: =E10+'Data Sheet'!E59 -> 39.42 | F14: =F10+'Data Sheet'!F59 -> 43.98 | G14: =G10+'Data Sheet'!G59 -> 38.32 | H14: =H10+'Data Sheet'!H59 -> 40.42 | I14: =I10+'Data Sheet'!I59 -> 41.82 | J14: =J10+'Data Sheet'!J59 -> 47.26 | K14: =K10+'Data Sheet'!K59 -> 53.22
A15: Total Assets | B15: ='Data Sheet'!B61 -> 29.8 | C15: ='Data Sheet'!C61 -> 46.58 | D15: ='Data Sheet'!D61 -> 48.07 | E15: ='Data Sheet'!E61 -> 62.3 | F15: ='Data Sheet'!F61 -> 66.59 | G15: ='Data Sheet'!G61 -> 69.24 | H15: ='Data Sheet'!H61 -> 62.13 | I15: ='Data Sheet'!I61 -> 64.48 | J15: ='Data Sheet'!J61 -> 83.5 | K15: ='Data Sheet'!K61 -> 84.3 | L15: ='Balance Sheet'!L8 -> 0
B16: =B2 -> 2010-03-31 | C16: 2011-03-31 | D16: 2012-03-31 | E16: 2013-03-31 | F16: 2014-03-31 | G16: 2015-03-31 | H16: 2016-03-31 | I16: 2017-03-31 | J16: 2018-03-31 | K16: 2019-03-31
A17: Operating Cash Flow | B17: ='Data Sheet'!B82 -> 1.95 | C17: ='Data Sheet'!C82 -> -2.09 | D17: ='Data Sheet'!D82 -> 4.84 | E17: ='Data Sheet'!E82 -> 1.26 | F17: ='Data Sheet'!F82 -> 8.28 | G17: ='Data Sheet'!G82 -> 6.69 | H17: ='Data Sheet'!H82 -> -1.24 | I17: ='Data Sheet'!I82 -> 15.13 | J17: ='Data Sheet'!J82 -> 11.79 | K17: ='Data Sheet'!K82 -> 9.15
A18: Capex | C18: =('Data Sheet'!C62-'Data Sheet'!B62)+('Data Sheet'!C63-'Data Sheet'!B63)+'Data Sheet'!C26 -> 2.11 | D18: =('Data Sheet'!D62-'Data Sheet'!C62)+('Data Sheet'!D63-'Data Sheet'!C63)+'Data Sheet'!D26 -> 3.57 | E18: =('Data Sheet'!E62-'Data Sheet'!D62)+('Data Sheet'!E63-'Data Sheet'!D63)+'Data Sheet'!E26 -> 10.79 | F18: =('Data Sheet'!F62-'Data Sheet'!E62)+('Data Sheet'!F63-'Data Sheet'!E63)+'Data Sheet'!F26 -> 7.57 | G18: =('Data Sheet'!G62-'Data Sheet'!F62)+('Data Sheet'!G63-'Data Sheet'!F63)+'Data Sheet'!G26 -> 0.78 | H18: =('Data Sheet'!H62-'Data Sheet'!G62)+('Data Sheet'!H63-'Data Sheet'!G63)+'Data Sheet'!H26 -> 0.45 | I18: =('Data Sheet'!I62-'Data Sheet'!H62)+('Data Sheet'!I63-'Data Sheet'!H63)+'Data Sheet'!I26 -> 0.94 | J18: =('Data Sheet'!J62-'Data Sheet'!I62)+('Data Sheet'!J63-'Data Sheet'!I63)+'Data Sheet'!J26 -> 2.75 | K18: =('Data Sheet'!K62-'Data Sheet'!J62)+('Data Sheet'!K63-'Data Sheet'!J63)+'Data Sheet'!K26 -> 1.69 | M18: CHECK? | N18: derived from BS
A19: Free Cash Flow | C19: =C17-C18 -> -4.2 | D19: =D17-D18 -> 1.27 | E19: -9.53 | F19: 0.71 | G19: 5.91 | H19: -1.69 | I19: 14.19 | J19: 9.04 | K19: 7.46
A20: RoE | B20: =Customization!B53 -> 0.0417193426 | C20: =Customization!C53 -> 0.1330401319 | D20: =Customization!D53 -> 0.1426547 | E20: =Customization!E53 -> 0.1379028968 | F20: =Customization!F53 -> 0.1013215859 | G20: =Customization!G53 -> -0.2920216886 | H20: =Customization!H53 -> 0.1584158416 | I20: =Customization!I53 -> 0.1855670103 | J20: =Customization!J53 -> 0.1378749128 | K20: =Customization!K53 -> 0.2489435267
A21: Dividend Payout | B21: ='Profit & Loss'!B23 -> 0 | C21: ='Profit & Loss'!C23 -> 0 | D21: ='Profit & Loss'!D23 -> 0 | E21: ='Profit & Loss'!E23 -> 0 | F21: ='Profit & Loss'!F23 -> 0 | G21: ='Profit & Loss'!G23 -> 0 | H21: ='Profit & Loss'!H23 -> 0 | I21: ='Profit & Loss'!I23 -> 0 | J21: ='Profit & Loss'!J23 -> 0.4080944351 | K21: ='Profit & Loss'!K23 -> 0.1867283951
A22: Tax Rate | B22: ='Data Sheet'!B29/'Data Sheet'!B28 -> 0.3773584906 | C22: ='Data Sheet'!C29/'Data Sheet'!C28 -> 0.4385150812 | D22: ='Data Sheet'!D29/'Data Sheet'!D28 -> 0.3243847875 | E22: ='Data Sheet'!E29/'Data Sheet'!E28 -> 0.326 | F22: ='Data Sheet'!F29/'Data Sheet'!F28 -> 0.3365384615 | G22: ='Data Sheet'!G29/'Data Sheet'!G28 -> 0.0443599493 | H22: ='Data Sheet'!H29/'Data Sheet'!H28 -> 0.1608391608 | I22: ='Data Sheet'!I29/'Data Sheet'!I28 -> 0.1790865385 | J22: ='Data Sheet'!J29/'Data Sheet'!J28 -> 0.2487309645 | K22: ='Data Sheet'!K29/'Data Sheet'!K28 -> 0.2880703683
A23: NOPLAT | B23: =B4*(1-B22) -> 0.8654716981 | C23: 2.672668213 | D23: 3.641565996 | E23: 3.84854 | F23: 4.206346154 | G23: -5.686058302 | H23: 5.94965035 | I23: 7.445685096 | J23: 6.295634518 | K23: 13.29172622
A24: RoIC | B24: =(B4/B13)*(1-B22) -> 0.0502013746 | C24: =(C4/C13)*(1-C22) -> 0.1065657182 | D24: 0.1250108478 | E24: 0.09762912227 | F24: 0.09564224997 | G24: -0.1483835674 | H24: 0.1471957039 | I24: 0.1944043106 | J24: 0.1905458389 | K24: 0.3468613315
A25: WACC | B25: 0.12 | C25: 0.12 | D25: 0.12 | E25: 0.12 | F25: 0.12 | G25: 0.12 | H25: 0.12 | I25: 0.12 | J25: 0.12 | K25: 0.12
A26: EPA (Economic Profit Added) | B26: =B13*(B24-B25) -> -1.203328302 | C26: =C13*(C24-C25) -> -0.3369317865 | D26: 0.1459659955 | E26: -0.88186 | F26: -1.071253846 | G26: -10.2844583 | H26: 1.09925035 | I26: 2.849685096 | J26: 2.330834518 | K26: 8.693326223
A27: RoIIC | D27: =(D23-C23)/(C13-B13) -> 0.1235839008 | E27: =(E23-D23)/(D13-C13) -> 0.05110469246 | F27: 0.03477222098 | G27: -2.169386942 | H27: -2.055778914 | I27: 0.7123974983 | J27: 0.5424766879 | K27: -1.330055457
A28: 3Yr Rolling RoIIC | G28: =(G23-D23)/(F13-C13) -> -0.4935250951 | H28: 0.2286300707 | I28: 3.239338942 | J28: -2.109452961 | K28: =(K23-H23)/(J13-G13) -> -1.390544673
A29: 5Yr Rolling RoIIC | H29: =(H23-C23)/(G13-B13) -> 0.1554545605 | I29: =(I23-D23)/(H13-C13) -> 0.2479869036 | J29: 0.266858726 | K29: =(K23-F23)/(J13-E13) -> -1.424040763
A30: Operating Leverage | C30: =IF(C4-B4>0,((C4-B4)/B4)/(('Data Sheet'!C17-'Data Sheet'!B17)/'Data Sheet'!B17), "") -> 2.425357052 | D30: =IF(D4-C4>0,((D4-C4)/C4)/(('Data Sheet'!D17-'Data Sheet'!C17)/'Data Sheet'!C17), "") -> 1.657169118 | E30: =IF(E4-D4>0,((E4-D4)/D4)/(('Data Sheet'!E17-'Data Sheet'!D17)/'Data Sheet'!D17), "") -> 2.140589569 | F30: =IF(F4-E4>0,((F4-E4)/E4)/(('Data Sheet'!F17-'Data Sheet'!E17)/'Data Sheet'!E17), "") -> -0.551021211 | G30: =IF(G4-F4>0,((G4-F4)/F4)/(('Data Sheet'!G17-'Data Sheet'!F17)/'Data Sheet'!F17), "") ->  | H30: =IF(H4-G4>0,((H4-G4)/G4)/(('Data Sheet'!H17-'Data Sheet'!G17)/'Data Sheet'!G17), "") -> -3.10383885 | I30: =IF(I4-H4>0,((I4-H4)/H4)/(('Data Sheet'!I17-'Data Sheet'!H17)/'Data Sheet'!H17), "") -> 2.0360906 | J30: =IF(J4-I4>0,((J4-I4)/I4)/(('Data Sheet'!J17-'Data Sheet'!I17)/'Data Sheet'!I17), "") ->  | K30: =IF(K4-J4>0,((K4-J4)/J4)/(('Data Sheet'!K17-'Data Sheet'!J17)/'Data Sheet'!J17), "") -> 3.42139404
A31: Sustainable Growth Rate | B31: =B20*(1-B21) -> 0.0417193426 | C31: =C20*(1-C21) -> 0.1330401319 | D31: 0.1426547 | E31: 0.1379028968 | F31: 0.1013215859 | G31: -0.2920216886 | H31: 0.1584158416 | I31: 0.1855670103 | J31: 0.08160892816 | K31: 0.2024587015 | M31: coy can grow at this rate safely with internal accruals
B32: =B2 -> 2010-03-31 | C32: 2011-03-31 | D32: 2012-03-31 | E32: 2013-03-31 | F32: 2014-03-31 | G32: 2015-03-31 | H32: 2016-03-31 | I32: 2017-03-31 | J32: 2018-03-31 | K32: 2019-03-31 | L32: CURRENT
A33: MktCap | B33: ='Data Sheet'!B90*'Data Sheet'!B93 -> 11.9897602 | C33: ='Data Sheet'!C90*'Data Sheet'!C93 -> 14.7097058 | D33: ='Data Sheet'!D90*'Data Sheet'!D93 -> 13.5897282 | E33: ='Data Sheet'!E90*'Data Sheet'!E93 -> 7.9398412 | F33: ='Data Sheet'!F90*'Data Sheet'!F93 -> 6.299874 | G33: ='Data Sheet'!G90*'Data Sheet'!G93 -> 18.416472 | H33: ='Data Sheet'!H90*'Data Sheet'!H93 -> 23.7637108 | I33: ='Data Sheet'!I90*'Data Sheet'!I93 -> 133.438648 | J33: ='Data Sheet'!J90*'Data Sheet'!J93 -> 151.04738 | K33: ='Data Sheet'!K90*'Data Sheet'!K93 -> 204.76209 | L33: ='Data Sheet'!B9 -> 146.2
A34: MktCap+Dividend | B34: =B33+'Data Sheet'!B31 -> 11.9897602 | C34: =C33+'Data Sheet'!C31 -> 14.7097058 | D34: =D33+'Data Sheet'!D31 -> 13.5897282 | E34: =E33+'Data Sheet'!E31 -> 7.9398412 | F34: =F33+'Data Sheet'!F31 -> 6.299874 | G34: =G33+'Data Sheet'!G31 -> 18.416472 | H34: =H33+'Data Sheet'!H31 -> 23.7637108 | I34: =I33+'Data Sheet'!I31 -> 133.438648 | J34: =J33+'Data Sheet'!J31 -> 153.46738 | K34: =K33+'Data Sheet'!K31 -> 207.18209
A35: Retained Profit | B35: ='Data Sheet'!B30-'Data Sheet'!B31 -> 0.66 | C35: ='Data Sheet'!C30-'Data Sheet'!C31 -> 2.42 | D35: ='Data Sheet'!D30-'Data Sheet'!D31 -> 3.02 | E35: ='Data Sheet'!E30-'Data Sheet'!E31 -> 3.38 | F35: ='Data Sheet'!F30-'Data Sheet'!F31 -> 2.76 | G35: ='Data Sheet'!G30-'Data Sheet'!G31 -> -7.54 | H35: ='Data Sheet'!H30-'Data Sheet'!H31 -> 4.8 | I35: ='Data Sheet'!I30-'Data Sheet'!I31 -> 6.84 | J35: ='Data Sheet'!J30-'Data Sheet'!J31 -> 3.51 | K35: ='Data Sheet'!K30-'Data Sheet'!K31 -> 10.54
A36: EV | B36: =B33+'Data Sheet'!B59-'Data Sheet'!B69 -> 13.4297602 | C36: =C33+'Data Sheet'!C59-'Data Sheet'!C69 -> 20.5797058 | D36: =D33+'Data Sheet'!D59-'Data Sheet'!D69 -> 17.0297282 | E36: =E33+'Data Sheet'!E59-'Data Sheet'!E69 -> 21.5798412 | F36: =F33+'Data Sheet'!F59-'Data Sheet'!F69 -> 21.369874 | G36: =G33+'Data Sheet'!G59-'Data Sheet'!G69 -> 24.596472 | H36: =H33+'Data Sheet'!H59-'Data Sheet'!H69 -> 33.0537108 | I36: =I33+'Data Sheet'!I59-'Data Sheet'!I69 -> 131.458648 | J36: =J33+'Data Sheet'!J59-'Data Sheet'!J69 -> 150.89738 | K36: =K33+'Data Sheet'!K59-'Data Sheet'!K69 -> 200.42209
B37: =B2 -> 2010-03-31 | C37: 2011-03-31 | D37: 2012-03-31 | E37: 2013-03-31 | F37: 2014-03-31 | G37: 2015-03-31 | H37: 2016-03-31 | I37: 2017-03-31 | J37: 2018-03-31 | K37: 2019-03-31
A38: Price/Earnings | B38: =B33/'Data Sheet'!B30 -> 18.16630333 | C38: =C33/'Data Sheet'!C30 -> 6.078390826 | D38: =D33/'Data Sheet'!D30 -> 4.49991 | E38: =E33/'Data Sheet'!E30 -> 2.349065444 | F38: =F33/'Data Sheet'!F30 -> 2.282563043 | G38: =G33/'Data Sheet'!G30 -> -2.442502918 | H38: =H33/'Data Sheet'!H30 -> 4.950773083 | I38: =I33/'Data Sheet'!I30 -> 19.50857427 | J38: =J33/'Data Sheet'!J30 -> 25.47173356 | K38: =K33/'Data Sheet'!K30 -> 15.79954398
A39: Price/Book | B39: =B33/B10 -> 0.7578862326 | C39: 0.8086699175 | D39: 0.6419333113 | E39: 0.3239429294 | F39: 0.2312729075 | G39: 0.7132638265 | H39: 0.7842808845 | I39: 3.620147802 | J39: 3.511913043 | K39: 3.933194199
A40: Price/CashFlow | B40: =B33/B17 -> 6.148594974 | C40: -7.038136746 | D40: 2.807795083 | E40: 6.30146127 | F40: 0.7608543478 | G40: 2.752835874 | H40: -19.1642829 | I40: 8.819474422 | J40: 12.81148261 | K40: 22.37837049
A41: Price/Sales | B41: =B33/'Data Sheet'!B17 -> 0.4432443697 | C41: =C33/'Data Sheet'!C17 -> 0.2719487114 | D41: =D33/'Data Sheet'!D17 -> 0.2326609861 | E41: =E33/'Data Sheet'!E17 -> 0.1322645544 | F41: =F33/'Data Sheet'!F17 -> 0.1312200375 | G41: =G33/'Data Sheet'!G17 -> 0.4694486872 | H41: =H33/'Data Sheet'!H17 -> 0.3550532019 | I41: =I33/'Data Sheet'!I17 -> 1.753234109 | J41: =J33/'Data Sheet'!J17 -> 1.853342086 | K41: =K33/'Data Sheet'!K17 -> 1.84886763
A42: EV/EBITDA | B42: =B36/B5 -> 6.583215784 | C42: 3.748580291 | D42: 2.694577247 | E42: 3.043701157 | F42: 2.338060613 | G42: -11.94003495 | H42: 3.136025693 | I42: 11.09355679 | J42: 14.01089879 | K42: 9.334983232
A43: Dividend Yield | B43: ='Data Sheet'!B31/'Calculated Data'!B33 -> 0 | C43: ='Data Sheet'!C31/'Calculated Data'!C33 -> 0 | D43: ='Data Sheet'!D31/'Calculated Data'!D33 -> 0 | E43: ='Data Sheet'!E31/'Calculated Data'!E33 -> 0 | F43: ='Data Sheet'!F31/'Calculated Data'!F33 -> 0 | G43: ='Data Sheet'!G31/'Calculated Data'!G33 -> 0 | H43: ='Data Sheet'!H31/'Calculated Data'!H33 -> 0 | I43: ='Data Sheet'!I31/'Calculated Data'!I33 -> 0 | J43: ='Data Sheet'!J31/'Calculated Data'!J33 -> 0.01602146293 | K43: ='Data Sheet'!K31/'Calculated Data'!K33 -> 0.01181859396
B44: =B2 -> 2010-03-31 | C44: 2011-03-31 | D44: 2012-03-31 | E44: 2013-03-31 | F44: 2014-03-31 | G44: 2015-03-31 | H44: 2016-03-31 | I44: 2017-03-31 | J44: 2018-03-31 | K44: 2019-03-31 | L44: Z-Weights
A45: Working Capital/Total Assets | B45: =B11/B15 -> 0.3590604027 | C45: 0.3683984543 | D45: 0.3863116289 | E45: 0.3121990369 | F45: 0.2889322721 | G45: 0.2410456384 | H45: 0.3507162401 | I45: 0.3335918114 | J45: 0.1902994012 | K45: 0.2642941874 | L45: 1.2
A46: Retained Profits/Total Assets | B46: =B35/B15 -> 0.02214765101 | C46: 0.05195362817 | D46: 0.06282504681 | E46: 0.05425361156 | F46: 0.04144766481 | G46: -0.1088965916 | H46: 0.07725736359 | I46: 0.1060794045 | J46: 0.04203592814 | K46: 0.125029656 | L46: 1.4
A47: EBIT/Total Assets | B47: =B4/B15 -> 0.0466442953 | C47: 0.102189781 | D47: 0.1121281465 | E47: 0.09165329053 | F47: 0.09520949091 | G47: -0.08593298671 | H47: 0.1141155641 | I47: 0.1406637717 | J47: 0.1003592814 | K47: 0.2214709371 | L47: 3.3
A48: Market Cap/Total Liabilities | B48: =B33/B15 -> 0.4023409463 | C48: 0.3157944568 | D48: 0.2827070564 | E48: 0.1274452841 | F48: 0.09460690794 | G48: 0.2659802426 | H48: 0.3824836762 | I48: 2.06945794 | J48: 1.808950659 | K48: 2.428969039 | L48: 0.6
A49: Sales/Total Assets | B49: ='Data Sheet'!B17/'Calculated Data'!B15 -> 0.9077181208 | C49: ='Data Sheet'!C17/'Calculated Data'!C15 -> 1.161227995 | D49: ='Data Sheet'!D17/'Calculated Data'!D15 -> 1.215102975 | E49: ='Data Sheet'!E17/'Calculated Data'!E15 -> 0.9635634029 | F49: ='Data Sheet'!F17/'Calculated Data'!F15 -> 0.720979126 | G49: ='Data Sheet'!G17/'Calculated Data'!G15 -> 0.5665800116 | H49: ='Data Sheet'!H17/'Calculated Data'!H15 -> 1.077257364 | I49: ='Data Sheet'!I17/'Calculated Data'!I15 -> 1.180366005 | J49: ='Data Sheet'!J17/'Calculated Data'!J15 -> 0.9760479042 | K49: ='Data Sheet'!K17/'Calculated Data'!K15 -> 1.31376038 | L49: 1
A50: Altman Z-Score | B50: =$L$45*B45+$L$46*B46+$L$47*B47+$L$48*B48+$L$49*B49 -> 1.764928058 | C50: =$L$45*C45+$L$46*C46+$L$47*C47+$L$48*C48+$L$49*C49 -> 2.202744171 | D50: 2.306279112 | E50: 1.793080333 | F50: 1.496680048 | G50: 0.5793888388 | H50: 2.212348728 | I50: 3.435052556 | J50: 2.679813509 | K50: 3.994190439
A51: Z > 2.99 -“Safe” Zones
A52: 1.81 < Z < 2.99 -“Grey” Zones
A53: Z < 1.81 -“Distress” Zones

Sheet Cost Analysis
A1: ='Data Sheet'!B1 -> AXTEL INDUSTRIES LTD | B1: =B7 -> 2010-03-31 | C1: 2011-03-31 | D1: 2012-03-31 | E1: 2013-03-31 | F1: 2014-03-31 | G1: 2015-03-31 | H1: 2016-03-31 | I1: 2017-03-31 | J1: 2018-03-31 | K1: 2019-03-31
A2: ='Data Sheet'!A17 -> Sales | B2: ='Data Sheet'!B17 -> 27.05 | C2: ='Data Sheet'!C17 -> 54.09 | D2: ='Data Sheet'!D17 -> 58.41 | E2: ='Data Sheet'!E17 -> 60.03 | F2: ='Data Sheet'!F17 -> 48.01 | G2: ='Data Sheet'!G17 -> 39.23 | H2: ='Data Sheet'!H17 -> 66.93 | I2: ='Data Sheet'!I17 -> 76.11 | J2: ='Data Sheet'!J17 -> 81.5 | K2: ='Data Sheet'!K17 -> 110.75
A3: ='Data Sheet'!A25 -> Other Income | B3: ='Data Sheet'!B25 -> 0.07 | C3: ='Data Sheet'!C25 -> 0.02 | D3: ='Data Sheet'!D25 -> 0.1 | E3: ='Data Sheet'!E25 -> 0.33 | F3: ='Data Sheet'!F25 -> 0.2 | G3: ='Data Sheet'!G25 -> 0.23 | H3: ='Data Sheet'!H25 -> 0.22 | I3: ='Data Sheet'!I25 -> 1.17 | J3: ='Data Sheet'!J25 -> 0.68 | K3: ='Data Sheet'!K25 -> 1.59
A4: Sales Increase | C4: =(C2-B2)/B2 -> 0.9996303142 | D4: 0.07986688852 | E4: 0.02773497689 | F4: -0.2002332167 | G4: -0.182878567 | H4: 0.7060922763 | I4: 0.137158225 | J4: 0.0708185521 | K4: 0.3588957055
A5: EBIT | B5: ='Calculated Data'!B4 -> 1.39 | C5: ='Calculated Data'!C4 -> 4.76 | D5: ='Calculated Data'!D4 -> 5.39 | E5: ='Calculated Data'!E4 -> 5.71 | F5: ='Calculated Data'!F4 -> 6.34 | G5: ='Calculated Data'!G4 -> -5.95 | H5: ='Calculated Data'!H4 -> 7.09 | I5: ='Calculated Data'!I4 -> 9.07 | J5: ='Calculated Data'!J4 -> 8.38 | K5: ='Calculated Data'!K4 -> 18.67
A6: EBIT Increase | C6: =(C5-B5)/B5 -> 2.424460432 | D6: =(D5-C5)/C5 -> 0.1323529412 | E6: 0.05936920223 | F6: 0.1103327496 | G6: -1.938485804 | H6: -2.191596639 | I6: 0.2792665726 | J6: -0.07607497244 | K6: 1.227923628
A7: Operating Expenses | B7: ='Data Sheet'!B16 -> 2010-03-31 | C7: ='Data Sheet'!C16 -> 2011-03-31 | D7: ='Data Sheet'!D16 -> 2012-03-31 | E7: ='Data Sheet'!E16 -> 2013-03-31 | F7: ='Data Sheet'!F16 -> 2014-03-31 | G7: ='Data Sheet'!G16 -> 2015-03-31 | H7: ='Data Sheet'!H16 -> 2016-03-31 | I7: ='Data Sheet'!I16 -> 2017-03-31 | J7: ='Data Sheet'!J16 -> 2018-03-31 | K7: ='Data Sheet'!K16 -> 2019-03-31
A8: ='Data Sheet'!A18 -> Raw Material Cost | B8: ='Data Sheet'!B18 -> 20.29 | C8: ='Data Sheet'!C18 -> 36.62 | D8: ='Data Sheet'!D18 -> 36.91 | E8: ='Data Sheet'!E18 -> 30.76 | F8: ='Data Sheet'!F18 -> 23.71 | G8: ='Data Sheet'!G18 -> 26.78 | H8: ='Data Sheet'!H18 -> 28.68 | I8: ='Data Sheet'!I18 -> 33.46 | J8: ='Data Sheet'!J18 -> 42.79 | K8: ='Data Sheet'!K18 -> 55.29
A9: ='Data Sheet'!A19 -> Change in Inventory | B9: ='Data Sheet'!B19 -> 4.73 | C9: ='Data Sheet'!C19 -> -0.27 | D9: ='Data Sheet'!D19 -> -0.85 | E9: ='Data Sheet'!E19 -> -5.06 | F9: ='Data Sheet'!F19 -> 3.03 | G9: ='Data Sheet'!G19 -> 6.87 | H9: ='Data Sheet'!H19 -> -2.89 | I9: ='Data Sheet'!I19 -> -2.99 | J9: ='Data Sheet'!J19 -> 2.24 | K9: ='Data Sheet'!K19 -> 0.93
A10: ='Data Sheet'!A20 -> Power and Fuel | B10: ='Data Sheet'!B20 -> 0.23 | C10: ='Data Sheet'!C20 -> 0.27 | D10: ='Data Sheet'!D20 -> 0.32 | E10: ='Data Sheet'!E20 -> 0.33 | F10: ='Data Sheet'!F20 -> 0.52 | G10: ='Data Sheet'!G20 -> 0.64 | H10: ='Data Sheet'!H20 -> 0.65 | I10: ='Data Sheet'!I20 -> 0.65 | J10: ='Data Sheet'!J20 -> 0.71 | K10: ='Data Sheet'!K20 -> 0.65
A11: ='Data Sheet'!A21 -> Other Mfr. Exp | B11: ='Data Sheet'!B21 -> 3.09 | C11: ='Data Sheet'!C21 -> 3.8 | D11: ='Data Sheet'!D21 -> 5.35 | E11: ='Data Sheet'!E21 -> 5.54 | F11: ='Data Sheet'!F21 -> 4.91 | G11: ='Data Sheet'!G21 -> 4.67 | H11: ='Data Sheet'!H21 -> 6.47 | I11: ='Data Sheet'!I21 -> 7.99 | J11: ='Data Sheet'!J21 -> 7.36 | K11: ='Data Sheet'!K21 -> 9.02
A12: ='Data Sheet'!A22 -> Employee Cost | B12: ='Data Sheet'!B22 -> 4.58 | C12: ='Data Sheet'!C22 -> 5.27 | D12: ='Data Sheet'!D22 -> 6.31 | E12: ='Data Sheet'!E22 -> 8.5 | F12: ='Data Sheet'!F22 -> 9.6 | G12: ='Data Sheet'!G22 -> 12.25 | H12: ='Data Sheet'!H22 -> 13.94 | I12: ='Data Sheet'!I22 -> 16.03 | J12: ='Data Sheet'!J22 -> 17.3 | K12: ='Data Sheet'!K22 -> 20.36
A13: ='Data Sheet'!A23 -> Selling and admin | B13: ='Data Sheet'!B23 -> 1.54 | C13: ='Data Sheet'!C23 -> 1.9 | D13: ='Data Sheet'!D23 -> 3.1 | E13: ='Data Sheet'!E23 -> 3.42 | F13: ='Data Sheet'!F23 -> 3.48 | G13: ='Data Sheet'!G23 -> 4.75 | H13: ='Data Sheet'!H23 -> 4.19 | I13: ='Data Sheet'!I23 -> 4.29 | J13: ='Data Sheet'!J23 -> 5.44 | K13: ='Data Sheet'!K23 -> 6.33
A14: ='Data Sheet'!A24 -> Other Expenses | B14: ='Data Sheet'!B24 -> 0.08 | C14: ='Data Sheet'!C24 -> 0.49 | D14: ='Data Sheet'!D24 -> -0.65 | E14: ='Data Sheet'!E24 -> -0.34 | F14: ='Data Sheet'!F24 -> -0.12 | G14: ='Data Sheet'!G24 -> -0.7 | H14: ='Data Sheet'!H24 -> -0.21 | I14: ='Data Sheet'!I24 -> 0.02 | J14: ='Data Sheet'!J24 -> 0.05 | K14: ='Data Sheet'!K24 -> 0.15
A15: Interest Expense | B15: ='Profit & Loss'!B9 -> 0.33 | C15: ='Profit & Loss'!C9 -> 0.45 | D15: ='Profit & Loss'!D9 -> 0.92 | E15: ='Profit & Loss'!E9 -> 0.71 | F15: ='Profit & Loss'!F9 -> 2.18 | G15: ='Profit & Loss'!G9 -> 1.94 | H15: ='Profit & Loss'!H9 -> 1.37 | I15: ='Profit & Loss'!I9 -> 0.75 | J15: ='Profit & Loss'!J9 -> 0.5 | K15: ='Profit & Loss'!K9 -> 0.48
A16: Coomon Size Expenses | B16: =B1 -> 2010-03-31 | C16: 2011-03-31 | D16: 2012-03-31 | E16: 2013-03-31 | F16: 2014-03-31 | G16: 2015-03-31 | H16: 2016-03-31 | I16: 2017-03-31 | J16: 2018-03-31 | K16: 2019-03-31
A17: =A8 -> Raw Material Cost | B17: =B8/B$2 -> 0.7500924214 | C17: 0.6770197818 | D17: 0.6319123438 | E17: 0.5124104614 | F17: 0.4938554468 | G17: 0.6826408361 | H17: 0.4285073958 | I17: 0.4396268559 | J17: 0.5250306748 | K17: 0.4992325056 | L17: check lower RM/Sales - high correlation with Op Leverage
A18: Change in Inventory | B18: =B9/B$2 -> 0.1748613678 | C18: -0.004991680532 | D18: -0.01455230269 | E18: -0.08429118774 | F18: 0.0631118517 | G18: 0.1751210808 | H18: -0.04317944121 | I18: -0.03928524504 | J18: 0.02748466258 | K18: 0.008397291196
A19: Power and Fuel | B19: =B10/B$2 -> 0.008502772643 | C19: 0.004991680532 | D19: 0.005478513953 | E19: 0.005497251374 | F19: 0.01083107686 | G19: 0.01631404537 | H19: 0.009711639026 | I19: 0.008540270661 | J19: 0.008711656442 | K19: 0.005869074492
A20: Other Mfr. Exp | B20: =B11/B$2 -> 0.114232902 | C20: 0.07025328157 | D20: 0.09159390515 | E20: 0.09228718974 | F20: 0.1022703603 | G20: 0.1190415498 | H20: 0.09666816076 | I20: 0.1049796347 | J20: 0.09030674847 | K20: 0.08144469526
A21: Employee Cost | B21: =B12/B$2 -> 0.1693160813 | C21: 0.09743020891 | D21: 0.108029447 | E21: 0.1415958687 | F21: 0.199958342 | G21: 0.3122610247 | H21: 0.2082773046 | I21: 0.2106162134 | J21: 0.2122699387 | K21: 0.1838374718 | L21: check high Emp Cost/Sales - high correlation with Op Leverage
A22: Selling and admin | B22: =B13/B$2 -> 0.05693160813 | C22: 0.03512664078 | D22: 0.05307310392 | E22: 0.05697151424 | F22: 0.07248489898 | G22: 0.1210808055 | H22: 0.06260271926 | I22: 0.05636578636 | J22: 0.06674846626 | K22: 0.05715575621
A23: Other Expenses | B23: =B14/B$2 -> 0.002957486137 | C23: 0.009058975781 | D23: -0.01112823147 | E23: -0.005663834749 | F23: -0.002499479275 | G23: -0.01784348713 | H23: -0.003137606455 | I23: 0.0002627775588 | J23: 0.0006134969325 | K23: 0.001354401806
A24: Interest Expense | B24: =B15/B2 -> 0.01219963031 | C24: 0.008319467554 | D24: 0.01575072762 | E24: 0.01182741962 | F24: 0.04540720683 | G24: 0.04945195004 | H24: 0.02046914687 | I24: 0.009854158455 | J24: 0.006134969325 | K24: 0.004334085779
A25: Interest Expense Capitalised | L25: Add back from AR - any interest costs capitalised
A26: Year on Year Escalation | B26: =B16 -> 2010-03-31 | C26: =C16 -> 2011-03-31 | D26: 2012-03-31 | E26: 2013-03-31 | F26: 2014-03-31 | G26: 2015-03-31 | H26: 2016-03-31 | I26: 2017-03-31 | J26: 2018-03-31 | K26: 2019-03-31
A27: Raw Material Increase/Sales Increase | C27: =((C8-B8)/B8)/C$4 -> 0.8051276097 | D27: 0.09915460586 | E27: -6.007631175 | F27: 1.144634052 | G27: -0.7080175315 | H27: 0.1004804491 | I27: 1.215141612 | J27: 3.937392084 | K27: 0.8139532561
A28: Change in Inventory Increase/Sales Increase | C28: =((C9-B9)/B9)/C$4 -> -1.057473385 | D28: 26.89660494 | E28: 178.5810458 | F28: 7.984760248 | G28: -6.929881143 | H28: -2.012016879 | I28: 0.2522785354 | J28: -24.69923244 | K28: -1.629502442
A29: Power & Fuel Increase/Sales Increase | C29: =((C10-B10)/B10)/C$4 -> 0.1739773604 | D29: 2.31867284 | E29: 1.126736111 | F29: -2.875434881 | G29: -1.261871386 | H29: 0.02212883574 | I29: 0 | J29: 1.303439418 | K29: -0.2354640664
A30: Other Mfg Increase/Sales Increase | C30: =((C11-B11)/B11)/C$4 -> 0.2298584382 | D30: 5.107182018 | E30: 1.280477674 | F30: 0.5679298041 | G30: 0.2672802936 | H30: 0.545876205 | I30: 1.712842582 | J30: -1.113388489 | K30: 0.6284373839
A31: Employee Cost Increase/Sales Increase | C31: =((C12-B12)/B12)/C$4 -> 0.1507107374 | D31: 2.470904491 | E31: 12.51373481 | F31: -0.6463051776 | G31: -1.509426016 | H31: 0.1953840713 | I31: 1.093104435 | J31: 1.118724516 | K31: 0.4928412628
A32: Selling & Admin Cost Increase/Sales Increase | C32: =((C13-B13)/B13)/C$4 -> 0.2338526858 | D32: 7.907894737 | E32: 3.721863799 | F32: -0.08761712935 | G32: -1.99554565 | H32: -0.166967889 | I32: 0.1740059588 | J32: 3.785240733 | K32: 0.4558509301
A33: Other Expenses Increase/Sales Increase | C33: =((C14-B14)/B14)/C$4 -> 5.12689534 | D33: -29.13010204 | E33: -17.1957265 | F33: 3.231525888 | G33: -26.42919514 | H33: -0.9913718412 | I33: -7.985216309 | J33: 21.18089054 | K33: 5.572649573
A34: Year on Year Escalation | B34: =B26 -> 2010-03-31 | C34: =C26 -> 2011-03-31 | D34: 2012-03-31 | E34: 2013-03-31 | F34: 2014-03-31 | G34: 2015-03-31 | H34: 2016-03-31 | I34: 2017-03-31 | J34: 2018-03-31 | K34: 2019-03-31
A35: Working Capital Increase/Sales Increase | C35: =(('Calculated Data'!C11-'Calculated Data'!B11)/'Calculated Data'!B11)/'Cost Analysis'!C$4 -> 0.6039615938 | D35: =(('Calculated Data'!D11-'Calculated Data'!C11)/'Calculated Data'!C11)/'Cost Analysis'!D$4 -> 1.028809732 | E35: =(('Calculated Data'!E11-'Calculated Data'!D11)/'Calculated Data'!D11)/'Cost Analysis'!E$4 -> 1.708610064 | F35: =(('Calculated Data'!F11-'Calculated Data'!E11)/'Calculated Data'!E11)/'Cost Analysis'!F$4 -> 0.05392169863 | G35: =(('Calculated Data'!G11-'Calculated Data'!F11)/'Calculated Data'!F11)/'Cost Analysis'!G$4 -> 0.7247234312 | H35: =(('Calculated Data'!H11-'Calculated Data'!G11)/'Calculated Data'!G11)/'Cost Analysis'!H$4 -> 0.4327652478 | I35: =(('Calculated Data'!I11-'Calculated Data'!H11)/'Calculated Data'!H11)/'Cost Analysis'!I$4 -> -0.09368691641 | J35: =(('Calculated Data'!J11-'Calculated Data'!I11)/'Calculated Data'!I11)/'Cost Analysis'!J$4 -> -3.689341541 | K35: =(('Calculated Data'!K11-'Calculated Data'!J11)/'Calculated Data'!J11)/'Cost Analysis'!K$4 -> 1.120491843
A36: Debtors Increase/Sales Increase | C36: =('Balance Sheet'!C17-'Balance Sheet'!B17)/'Balance Sheet'!B17/'Cost Analysis'!C$4 -> 2.551919547 | D36: =('Balance Sheet'!D17-'Balance Sheet'!C17)/'Balance Sheet'!C17/'Cost Analysis'!D$4 -> -2.807053044 | E36: =('Balance Sheet'!E17-'Balance Sheet'!D17)/'Balance Sheet'!D17/'Cost Analysis'!E$4 -> 12.74720035 | F36: =('Balance Sheet'!F17-'Balance Sheet'!E17)/'Balance Sheet'!E17/'Cost Analysis'!F$4 -> -0.1104006412 | G36: =('Balance Sheet'!G17-'Balance Sheet'!F17)/'Balance Sheet'!F17/'Cost Analysis'!G$4 -> 1.409819881 | H36: =('Balance Sheet'!H17-'Balance Sheet'!G17)/'Balance Sheet'!G17/'Cost Analysis'!H$4 -> 0.5636743926 | I36: =('Balance Sheet'!I17-'Balance Sheet'!H17)/'Balance Sheet'!H17/'Cost Analysis'!I$4 -> -0.1279798078 | J36: =('Balance Sheet'!J17-'Balance Sheet'!I17)/'Balance Sheet'!I17/'Cost Analysis'!J$4 -> 1.74240715 | K36: =('Balance Sheet'!K17-'Balance Sheet'!J17)/'Balance Sheet'!J17/'Cost Analysis'!K$4 -> -0.09555487587
A37: Inventory Increase/Sales Increase | C37: =(('Balance Sheet'!C18-'Balance Sheet'!B18)/'Balance Sheet'!B18)/'Cost Analysis'!C$4 -> 0.2795150975 | D37: =(('Balance Sheet'!D18-'Balance Sheet'!C18)/'Balance Sheet'!C18)/'Cost Analysis'!D$4 -> -2.29421625 | E37: =(('Balance Sheet'!E18-'Balance Sheet'!D18)/'Balance Sheet'!D18)/'Cost Analysis'!E$4 -> -13.22236019 | F37: =(('Balance Sheet'!F18-'Balance Sheet'!E18)/'Balance Sheet'!E18)/'Cost Analysis'!F$4 -> -2.069482235 | G37: =(('Balance Sheet'!G18-'Balance Sheet'!F18)/'Balance Sheet'!F18)/'Cost Analysis'!G$4 -> -3.552754959 | H37: =(('Balance Sheet'!H18-'Balance Sheet'!G18)/'Balance Sheet'!G18)/'Cost Analysis'!H$4 -> -0.3308539878 | I37: =(('Balance Sheet'!I18-'Balance Sheet'!H18)/'Balance Sheet'!H18)/'Cost Analysis'!I$4 -> -0.7621282919 | J37: =(('Balance Sheet'!J18-'Balance Sheet'!I18)/'Balance Sheet'!I18)/'Cost Analysis'!J$4 -> 6.455128545 | K37: =(('Balance Sheet'!K18-'Balance Sheet'!J18)/'Balance Sheet'!J18)/'Cost Analysis'!K$4 -> 0.602532979
A38: Creditors Increase/Sales Increase | C38: =IF('Balance Sheet'!C19>0,(('Balance Sheet'!C19-'Balance Sheet'!B19)/'Balance Sheet'!B19)/'Cost Analysis'!C$4,0) -> -0.2639579511 | D38: =IF('Balance Sheet'!D19>0,(('Balance Sheet'!D19-'Balance Sheet'!C19)/'Balance Sheet'!C19)/'Cost Analysis'!D$4,0) -> 1.379561832 | E38: =IF('Balance Sheet'!E19>0,(('Balance Sheet'!E19-'Balance Sheet'!D19)/'Balance Sheet'!D19)/'Cost Analysis'!E$4,0) -> 50.95791457 | F38: =IF('Balance Sheet'!F19>0,(('Balance Sheet'!F19-'Balance Sheet'!E19)/'Balance Sheet'!E19)/'Cost Analysis'!F$4,0) -> -4.736798205 | G38: =IF('Balance Sheet'!G19>0,(('Balance Sheet'!G19-'Balance Sheet'!F19)/'Balance Sheet'!F19)/'Cost Analysis'!G$4,0) -> -0.06281824782 | H38: =IF('Balance Sheet'!H19>0,(('Balance Sheet'!H19-'Balance Sheet'!G19)/'Balance Sheet'!G19)/'Cost Analysis'!H$4,0) -> -0.4578670038 | I38: =IF('Balance Sheet'!I19>0,(('Balance Sheet'!I19-'Balance Sheet'!H19)/'Balance Sheet'!H19)/'Cost Analysis'!I$4,0) -> -1.949348956 | J38: =IF('Balance Sheet'!J19>0,(('Balance Sheet'!J19-'Balance Sheet'!I19)/'Balance Sheet'!I19)/'Cost Analysis'!J$4,0) -> 12.48811163 | K38: =IF('Balance Sheet'!K19>0,(('Balance Sheet'!K19-'Balance Sheet'!J19)/'Balance Sheet'!J19)/'Cost Analysis'!K$4,0) -> 0.7247437951
A39: Invested Capital Increase/Sales Increase | C39: =(('Calculated Data'!C13-'Calculated Data'!B13)/'Calculated Data'!B13)/'Cost Analysis'!C$4 -> 0.4549245596 | D39: =(('Calculated Data'!D13-'Calculated Data'!C13)/'Calculated Data'!C13)/'Cost Analysis'!D$4 -> 2.021904904 | E39: =(('Calculated Data'!E13-'Calculated Data'!D13)/'Calculated Data'!D13)/'Cost Analysis'!E$4 -> 12.73641149 | F39: =(('Calculated Data'!F13-'Calculated Data'!E13)/'Calculated Data'!E13)/'Cost Analysis'!F$4 -> -0.5777129442 | G39: =(('Calculated Data'!G13-'Calculated Data'!F13)/'Calculated Data'!F13)/'Cost Analysis'!G$4 -> 0.703717573 | H39: =(('Calculated Data'!H13-'Calculated Data'!G13)/'Calculated Data'!G13)/'Cost Analysis'!H$4 -> 0.07761261804 | I39: =(('Calculated Data'!I13-'Calculated Data'!H13)/'Calculated Data'!H13)/'Cost Analysis'!I$4 -> -0.3823998344 | J39: =(('Calculated Data'!J13-'Calculated Data'!I13)/'Calculated Data'!I13)/'Cost Analysis'!J$4 -> -1.939277358 | K39: =(('Calculated Data'!K13-'Calculated Data'!J13)/'Calculated Data'!J13)/'Cost Analysis'!K$4 -> 0.4452722419
A40: Dilution | B40: =B1 -> 2010-03-31 | C40: 2011-03-31 | D40: 2012-03-31 | E40: 2013-03-31 | F40: 2014-03-31 | G40: 2015-03-31 | H40: 2016-03-31 | I40: 2017-03-31 | J40: 2018-03-31 | K40: 2019-03-31
A41: Equity Capital Increase/Decrease | C41: =('Data Sheet'!C57-'Data Sheet'!B57)/'Data Sheet'!B57 -> 0 | D41: =('Data Sheet'!D57-'Data Sheet'!C57)/'Data Sheet'!C57 -> 0 | E41: =('Data Sheet'!E57-'Data Sheet'!D57)/'Data Sheet'!D57 -> 0 | F41: =('Data Sheet'!F57-'Data Sheet'!E57)/'Data Sheet'!E57 -> 0 | G41: =('Data Sheet'!G57-'Data Sheet'!F57)/'Data Sheet'!F57 -> 0.615 | H41: =('Data Sheet'!H57-'Data Sheet'!G57)/'Data Sheet'!G57 -> 0 | I41: =('Data Sheet'!I57-'Data Sheet'!H57)/'Data Sheet'!H57 -> 0 | J41: =('Data Sheet'!J57-'Data Sheet'!I57)/'Data Sheet'!I57 -> 0 | K41: =('Data Sheet'!K57-'Data Sheet'!J57)/'Data Sheet'!J57 -> 0

Sheet Price Implied Expectations
A1: ='Data Sheet'!B1 -> AXTEL INDUSTRIES LTD
B2: ='Data Sheet'!B16 -> 2010-03-31 | C2: ='Data Sheet'!C16 -> 2011-03-31 | D2: ='Data Sheet'!D16 -> 2012-03-31 | E2: ='Data Sheet'!E16 -> 2013-03-31 | F2: ='Data Sheet'!F16 -> 2014-03-31 | G2: ='Data Sheet'!G16 -> 2015-03-31 | H2: ='Data Sheet'!H16 -> 2016-03-31 | I2: ='Data Sheet'!I16 -> 2017-03-31 | J2: ='Data Sheet'!J16 -> 2018-03-31 | K2: ='Data Sheet'!K16 -> 2019-03-31 | M2: Consensus Forecasts | P2: 5 Yr Avg | Q2: Inputs | R2: TTM
A3: Sales | B3: ='Data Sheet'!B17 -> 27.05 | C3: ='Data Sheet'!C17 -> 54.09 | D3: ='Data Sheet'!D17 -> 58.41 | E3: ='Data Sheet'!E17 -> 60.03 | F3: ='Data Sheet'!F17 -> 48.01 | G3: ='Data Sheet'!G17 -> 39.23 | H3: ='Data Sheet'!H17 -> 66.93 | I3: ='Data Sheet'!I17 -> 76.11 | J3: ='Data Sheet'!J17 -> 81.5 | K3: ='Data Sheet'!K17 -> 110.75 | M3: Sales Growth Rate | P3: =Customization!B14 -> 0.2962278753 | Q3: 0.15 | R3: ='Profit & Loss'!L31 -> 0
A4: Capex | C4: ='Calculated Data'!C18 -> 2.11 | D4: ='Calculated Data'!D18 -> 3.57 | E4: ='Calculated Data'!E18 -> 10.79 | F4: ='Calculated Data'!F18 -> 7.57 | G4: ='Calculated Data'!G18 -> 0.78 | H4: ='Calculated Data'!H18 -> 0.45 | I4: ='Calculated Data'!I18 -> 0.94 | J4: ='Calculated Data'!J18 -> 2.75 | K4: ='Calculated Data'!K18 -> 1.69 | M4: EBIT Margin | P4: 0.18 | Q4: 0.18 | R4: ='Calculated Data'!L4/Annual[[#This Row],[Column12]] -> 0.1660710927
A5: Depreciation | C5: ='Data Sheet'!C26 -> 0.73 | D5: ='Data Sheet'!D26 -> 0.93 | E5: ='Data Sheet'!E26 -> 1.38 | F5: ='Data Sheet'!F26 -> 2.8 | G5: ='Data Sheet'!G26 -> 3.89 | H5: ='Data Sheet'!H26 -> 3.45 | I5: ='Data Sheet'!I26 -> 2.78 | J5: ='Data Sheet'!J26 -> 2.39 | K5: ='Data Sheet'!K26 -> 2.8 | M5: Tax Rate | P5: =AVERAGE('Calculated Data'!G22:K22) -> 0.1842173963 | Q5: 0.25
A6: Incremental Fixed Capital Investment | C6: =C4-C5 -> 1.38 | D6: =D4-D5 -> 2.64 | E6: 9.41 | F6: 4.77 | G6: -3.11 | H6: -3 | I6: -1.84 | J6: 0.36 | K6: -1.11 | M6: Inc Fixed Capital Rate | P6: =AVERAGE(G9:K9) -> 0.4309984452 | Q6: 0.2
A7: Incremental Sales | C7: =C3-B3 -> 27.04 | D7: =D3-C3 -> 4.32 | E7: 1.62 | F7: -12.02 | G7: -8.78 | H7: 27.7 | I7: 9.18 | J7: 5.39 | K7: 29.25 | M7: Inc Working Capital Rate | P7: =AVERAGE(G15:K15) -> 0.1802249179 | Q7: 0.15
A8: Incremental Fixed Capital Investment Rate | C8: =C6/C7 -> 0.05103550296 | D8: =D6/D7 -> 0.6111111111 | E8: 5.808641975 | F8: -0.3968386023 | G8: 0.354214123 | H8: -0.1083032491 | I8: -0.2004357298 | J8: 0.0667903525 | K8: -0.03794871795 | M8: Cost of Capital | Q8: 0.12
A9: 5 Yr Avg | G9: =SUM(C6:G6)/SUM(C7:G7) -> 1.238916256 | H9: =SUM(D6:H6)/SUM(D7:H7) -> 0.8341121495 | I9: 0.3519774011 | J9: -0.1313460643 | K9: -0.1386675167 | M9: Inflation Rate | Q9: 0.05
A10: 9 Yr Avg | K10: =SUM(C6:K6)/SUM(C7:K7) -> 0.1135005974 | M10: Cash & Bank Balance | Q10: ='Balance Sheet'!K34 -> 5.5
M11: Investments | Q11: ='Balance Sheet'!K12 -> 14.9
A12: Working Capital | B12: ='Calculated Data'!B11 -> 10.7 | C12: ='Calculated Data'!C11 -> 17.16 | D12: ='Calculated Data'!D11 -> 18.57 | E12: ='Calculated Data'!E11 -> 19.45 | F12: ='Calculated Data'!F11 -> 19.24 | G12: ='Calculated Data'!G11 -> 16.69 | H12: ='Calculated Data'!H11 -> 21.79 | I12: ='Calculated Data'!I11 -> 21.51 | J12: ='Calculated Data'!J11 -> 15.89 | K12: ='Calculated Data'!K11 -> 22.28 | M12: Non-Operative Assets | Q12: =Q10+Q11 -> 20.4
A13: Incremental Working Capital | C13: =C12-B12 -> 6.46 | D13: =D12-C12 -> 1.41 | E13: 0.88 | F13: -0.21 | G13: -2.55 | H13: 5.1 | I13: -0.28 | J13: -5.62 | K13: 6.39 | M13: Debt | Q13: ='Balance Sheet'!K6 -> 1.16
A14: Incremental Working Capital Investment Rate | C14: =C13/C7 -> 0.2389053254 | D14: =D13/D7 -> 0.3263888889 | E14: 0.5432098765 | F14: 0.01747088186 | G14: 0.2904328018 | H14: 0.1841155235 | I14: -0.03050108932 | J14: -1.042671614 | K14: 0.2184615385 | M14: # Shares Outstanding | Q14: ='Data Sheet'!B6 -> 1.615469613
A15: 5 Yr Avg | G15: =SUM(C13:G13)/SUM(C7:G7) -> 0.4917898194 | H15: =SUM(D13:H13)/SUM(D7:H7) -> 0.3605919003 | I15: 0.1661016949 | J15: -0.165812762 | K15: 0.04845393688 | M15: CMP | Q15: ='Data Sheet'!B8 -> 90.5
A16: 9 Yr Avg | K16: =SUM(C13:K13)/SUM(C7:K7) -> 0.1383512545
A17: Years in Future | B17: 0 | C17: 1 | D17: 2 | E17: 3 | F17: 4 | G17: 5 | H17: 6 | I17: 7 | J17: 8 | K17: 9 | L17: 10 | M17: 11 | N17: 12 | O17: 13 | P17: 14 | Q17: 15
A18: Year | B18: 2019-03-01 | C18: 2020-03-01 | D18: 2021-03-01 | E18: 2022-03-01 | F18: 2023-03-01 | G18: 2024-03-01 | H18: 2025-03-01 | I18: 2026-03-01 | J18: 2027-03-01 | K18: 2028-03-01 | L18: 2029-03-01 | M18: 2030-03-01 | N18: 2031-03-01 | O18: 2032-03-01 | P18: 1933-03-01 | Q18: 1934-03-01
A19: Sales | B19: ='Data Sheet'!K17 -> 110.75 | C19: =B19*(1+10%) -> 121.825 | D19: =C19*(1+$Q$3) -> 140.09875 | E19: =D19*(1+$Q$3) -> 161.1135625 | F19: 185.2805969 | G19: 213.0726864 | H19: 245.0335894 | I19: 281.7886278 | J19: 324.0569219 | K19: 372.6654602 | L19: 428.5652793 | M19: 492.8500712 | N19: 566.7775818 | O19: 651.7942191 | P19: 749.563352 | Q19: 861.9978548
A20: EBIT | B20: ='Calculated Data'!K4 -> 18.67 | C20: =R4*C19 -> 20.23161087 | D20: =D19*$Q$4 -> 25.217775 | E20: =E19*$Q$4 -> 29.00044125 | F20: 33.35050744 | G20: 38.35308355 | H20: 44.10604609 | I20: 50.721953 | J20: 58.33024595 | K20: 67.07978284 | L20: 77.14175027 | M20: 88.71301281 | N20: 102.0199647 | O20: 117.3229594 | P20: 134.9214034 | Q20: 155.1596139
A21: NOPAT | B21: ='Calculated Data'!K23 -> 13.29172622 | C21: =C20*(1-$Q$5) -> 15.17370815 | D21: =D20*(1-$Q$5) -> 18.91333125 | E21: 21.75033094 | F21: 25.01288058 | G21: 28.76481266 | H21: 33.07953456 | I21: 38.04146475 | J21: 43.74768446 | K21: 50.30983713 | L21: 57.8563127 | M21: 66.53475961 | N21: 76.51497355 | O21: 87.99221958 | P21: 101.1910525 | Q21: 116.3697104
A22: Incremental Fixed Capital Investment | C22: =(C19-B19)*$Q$6 -> 2.215 | D22: =(D19-C19)*$Q$6 -> 3.65475 | E22: 4.2029625 | F22: 4.833406875 | G22: 5.558417906 | H22: 6.392180592 | I22: 7.351007681 | J22: 8.453658833 | K22: 9.721707658 | L22: 11.17996381 | M22: 12.85695838 | N22: 14.78550213 | O22: 17.00332745 | P22: 19.55382657 | Q22: 22.48690056
A23: Incremental Working Capital Investment | C23: =(C19-B19)*$Q$7 -> 1.66125 | D23: =(D19-C19)*$Q$7 -> 2.7410625 | E23: 3.152221875 | F23: 3.625055156 | G23: 4.16881343 | H23: 4.794135444 | I23: 5.513255761 | J23: 6.340244125 | K23: 7.291280744 | L23: 8.384972855 | M23: 9.642718783 | N23: 11.0891266 | O23: 12.75249559 | P23: 14.66536993 | Q23: 16.86517542
A24: Free Cash Flow | C24: =C21-(C22+C23) -> 11.29745815 | D24: =D21-(D22+D23) -> 12.51751875 | E24: 14.39514656 | F24: 16.55441855 | G24: 19.03758133 | H24: 21.89321853 | I24: 25.17720131 | J24: 28.9537815 | K24: 33.29684873 | L24: 38.29137604 | M24: 44.03508244 | N24: 50.64034481 | O24: 58.23639653 | P24: 66.97185601 | Q24: 77.01763441
A25: Present Value of Free Cash Flow | C25: =C24/((1+$Q$8)^C17) -> 10.08701621 | D25: =D24/((1+$Q$8)^D17) -> 9.97888931 | E25: 10.24618099 | F25: 10.52063226 | G25: 10.80243491 | H25: 11.09178585 | I25: 11.38888726 | J25: 11.69394674 | K25: 12.00717745 | L25: 12.32879828 | M25: 12.65903394 | N25: 12.99811521 | O25: 13.34627901 | P25: 13.70376863 | Q25: 14.07083386
A26: Cumulative Present Value of Free Cash Flow | C26: =C25 -> 10.08701621 | D26: =D25+C26 -> 20.06590552 | E26: =E25+D26 -> 30.31208651 | F26: 40.83271877 | G26: 51.63515368 | H26: 62.72693953 | I26: 74.11582679 | J26: 85.80977352 | K26: 97.81695098 | L26: 110.1457493 | M26: 122.8047832 | N26: 135.8028984 | O26: 149.1491774 | P26: 162.852946 | Q26: 176.9237799
A27: Present Value of Residual Value | C27: =((C21*(1+$Q$9))/($Q$8-$Q$9))/((1+$Q$8)^C17) -> 203.2193056 | D27: =((D21*(1+$Q$9))/($Q$8-$Q$9))/((1+$Q$8)^D17) -> 226.1638781 | E27: 232.2218392 | F27: 238.442067 | G27: 244.8289081 | H27: 251.3868253 | I27: 258.1204009 | J27: 265.0343403 | K27: 272.1334744 | L27: 279.4227639 | M27: 286.9073022 | N27: 294.5923192 | O27: 302.4831849 | P27: 310.5854131 | Q27: 318.9046652
A29: Corporate Value | C29: =C27+C26 -> 213.3063218 | D29: =D27+D26 -> 246.2297837 | E29: 262.5339257 | F29: 279.2747858 | G29: 296.4640618 | H29: 314.1137648 | I29: 332.2362277 | J29: 350.8441138 | K29: 369.9504253 | L29: 389.5685131 | M29: 409.7120854 | N29: 430.3952176 | O29: 451.6323623 | P29: 473.4383591 | Q29: 495.8284451
A30: Add: Non-Operative Assets | C30: =$Q$12 -> 20.4 | D30: =$Q$12 -> 20.4 | E30: 20.4 | F30: 20.4 | G30: 20.4 | H30: 20.4 | I30: 20.4 | J30: 20.4 | K30: 20.4 | L30: 20.4 | M30: 20.4 | N30: 20.4 | O30: 20.4 | P30: 20.4 | Q30: 20.4
A31: Less: Debt | C31: =$Q$13 -> 1.16 | D31: =$Q$13 -> 1.16 | E31: 1.16 | F31: 1.16 | G31: 1.16 | H31: 1.16 | I31: 1.16 | J31: 1.16 | K31: 1.16 | L31: 1.16 | M31: 1.16 | N31: 1.16 | O31: 1.16 | P31: 1.16 | Q31: 1.16
A32: Shareholder Value | C32: =C29+C30-C31 -> 232.5463218 | D32: =D29+D30-D31 -> 265.4697837 | E32: 281.7739257 | F32: 298.5147858 | G32: 315.7040618 | H32: 333.3537648 | I32: 351.4762277 | J32: 370.0841138 | K32: 389.1904253 | L32: 408.8085131 | M32: 428.9520854 | N32: 449.6352176 | O32: 470.8723623 | P32: 492.6783591 | Q32: 515.0684451
A34: Shareholder Value/Share | C34: =C32/$Q$14 -> 143.9496725 | D34: =D32/$Q$14 -> 164.3297908 | E34: 174.4223001 | F34: 184.7851444 | G34: 195.4255649 | H34: 206.3509967 | I34: 217.5690739 | J34: 229.0876354 | K34: 240.9147298 | L34: 253.0586213 | M34: 265.5277957 | N34: 278.3309658 | O34: 291.4770779 | P34: 304.9753181 | Q34: 318.8351182
A35: Market-Implied-Forecast-Period | C35: =IF(Q15>Q34,"15+",IF(Q15<C34,"<1",LOOKUP(Q15,C34:Q34,C17:Q17))) -> <1
A37: Steady State Value | B37: =C32 -> 232.5463218 | C37: =B21*16 -> 212.6676196 | D37: (as per Rajshekhar Iyer formula)
A38: Future Value | B38: ='Calculated Data'!K13*('Calculated Data'!K24-'Calculated Data'!K25)*10/('Price Implied Expectations'!Q8)*(1+'Price Implied Expectations'!Q8) -> 811.3771142 | C38: =L32 -> 408.8085131 | D38: (present value of year 10 shareholder future value)
A39: Value | B39: =B37+B38 -> 1043.923436 | C39: =C37+C38 -> 621.4761327
A40: Value/Share | B40: =B39/'Data Sheet'!B6 -> 646.2043157 | C40: =C39/'Data Sheet'!B6 -> 384.703078
B41: (as per Credit Suisse paper What's captured in P/E)

Sheet Business Robustness
A1: Business Robustness Snapshot (Annual) | B1: Annual Historical Performance
A2: ='Data Sheet'!B1 -> AXTEL INDUSTRIES LTD | B2: ='Data Sheet'!B16 -> 2010-03-31 | C2: ='Data Sheet'!C16 -> 2011-03-31 | D2: ='Data Sheet'!D16 -> 2012-03-31 | E2: ='Data Sheet'!E16 -> 2013-03-31 | F2: ='Data Sheet'!F16 -> 2014-03-31 | G2: ='Data Sheet'!G16 -> 2015-03-31 | H2: ='Data Sheet'!H16 -> 2016-03-31 | I2: ='Data Sheet'!I16 -> 2017-03-31 | J2: ='Data Sheet'!J16 -> 2018-03-31 | K2: ='Data Sheet'!K16 -> 2019-03-31 | L2: TTM
A3: Sales | B3: ='Data Sheet'!B17 -> 27.05 | C3: ='Data Sheet'!C17 -> 54.09 | D3: ='Data Sheet'!D17 -> 58.41 | E3: ='Data Sheet'!E17 -> 60.03 | F3: ='Data Sheet'!F17 -> 48.01 | G3: ='Data Sheet'!G17 -> 39.23 | H3: ='Data Sheet'!H17 -> 66.93 | I3: ='Data Sheet'!I17 -> 76.11 | J3: ='Data Sheet'!J17 -> 81.5 | K3: ='Data Sheet'!K17 -> 110.75 | L3: ='Profit & Loss'!L4 -> 106.34
A4: EBIT | B4: ='Profit & Loss'!B10+'Profit & Loss'!B9 -> 1.39 | C4: ='Profit & Loss'!C10+'Profit & Loss'!C9 -> 4.76 | D4: ='Profit & Loss'!D10+'Profit & Loss'!D9 -> 5.39 | E4: ='Profit & Loss'!E10+'Profit & Loss'!E9 -> 5.71 | F4: ='Profit & Loss'!F10+'Profit & Loss'!F9 -> 6.34 | G4: ='Profit & Loss'!G10+'Profit & Loss'!G9 -> -5.95 | H4: ='Profit & Loss'!H10+'Profit & Loss'!H9 -> 7.09 | I4: ='Profit & Loss'!I10+'Profit & Loss'!I9 -> 9.07 | J4: ='Profit & Loss'!J10+'Profit & Loss'!J9 -> 8.38 | K4: ='Profit & Loss'!K10+'Profit & Loss'!K9 -> 18.67 | L4: ='Profit & Loss'!L10+'Profit & Loss'!L9 -> 17.66
A5: Operating Profit (ex Other Income) | B5: ='Calculated Data'!B6 -> 1.97 | C5: ='Calculated Data'!C6 -> 5.47 | D5: ='Calculated Data'!D6 -> 6.22 | E5: ='Calculated Data'!E6 -> 6.76 | F5: ='Calculated Data'!F6 -> 8.94 | G5: ='Calculated Data'!G6 -> -2.29 | H5: ='Calculated Data'!H6 -> 10.32 | I5: ='Calculated Data'!I6 -> 10.68 | J5: ='Calculated Data'!J6 -> 10.09 | K5: ='Calculated Data'!K6 -> 19.88 | L5: ='Profit & Loss'!L6 -> 18.11
A6: Operating Profit Margin (ex Other Income) | B6: =B5/B3 -> 0.07282809612 | C6: 0.10112775 | D6: 0.106488615 | E6: 0.1126103615 | F6: 0.186211206 | G6: -0.0583736936 | H6: 0.1541909458 | I6: 0.1403232164 | J6: 0.123803681 | K6: 0.179503386 | L6: 0.1703028023
A7: 1Yr Sales Increase | C7: =(C3-B3)/B3 -> 0.9996303142 | D7: 0.07986688852 | E7: 0.02773497689 | F7: -0.2002332167 | G7: -0.182878567 | H7: 0.7060922763 | I7: 0.137158225 | J7: 0.0708185521 | K7: 0.3588957055 | L7: -0.03981941309
A8: 1Yr EBIT Increase | C8: =(C4-B4)/B4 -> 2.424460432 | D8: 0.1323529412 | E8: 0.05936920223 | F8: 0.1103327496 | G8: -1.938485804 | H8: -2.191596639 | I8: 0.2792665726 | J8: -0.07607497244 | K8: 1.227923628 | L8: -0.05409748259
A9: 3Yr Sales Increase | E9: =(E3-B3)/B3 -> 1.21922366 | F9: =(F3-C3)/C3 -> -0.1124052505 | G9: -0.3283684301 | H9: 0.1149425287 | I9: 0.5852947303 | J9: 1.077491716 | K9: 0.6547138802 | L9: 0.3971882801
A10: 3Yr EBIT Increase | E10: =(E4-B4)/B4 -> 3.107913669 | F10: =(F4-C4)/C4 -> 0.3319327731 | G10: =(G4-D4)/D4 -> -2.103896104 | H10: =(H4-E4)/E4 -> 0.2416812609 | I10: =(I4-F4)/F4 -> 0.4305993691 | J10: =(J4-G4)/G4 -> -2.408403361 | K10: =(K4-H4)/H4 -> 1.633286319 | L10: =(L4-I4)/I4 -> 0.94707828
A11: Abnormal margin exclusion (RM cycle)
A12: 1 Yr Operating Leverage | C12: =IF((C3-B3)>0,(C8/C7),0) -> 2.425357052 | D12: 1.657169118 | E12: 2.140589569 | F12: 0 | G12: 0 | H12: -3.10383885 | I12: 2.0360906 | J12: -1.074223776 | K12: 3.42139404 | L12: 0
A13: 3Yr Operating Leverage | E13: =IF((E3-B3)>0,E10/E9,0) -> 2.549092321 | F13: =IF((F3-C3)>0,F10/F9,0) -> 0 | G13: 0 | H13: 2.10262697 | I13: 0.7356966445 | J13: -2.235194319 | K13: 2.494656625 | L13: 2.384456761
A14: EBIT Margin | B14: =B4/B3 -> 0.05138632163 | C14: 0.08800147902 | D14: 0.0922787194 | E14: 0.09511910711 | F14: 0.1320558217 | G14: -0.1516696406 | H14: 0.1059315703 | I14: 0.1191696229 | J14: 0.1028220859 | K14: 0.1685778781 | L14: 0.1660710927
A15: Invested Capital | B15: ='Calculated Data'!B13 -> 17.24 | C15: ='Calculated Data'!C13 -> 25.08 | D15: ='Calculated Data'!D13 -> 29.13 | E15: ='Calculated Data'!E13 -> 39.42 | F15: ='Calculated Data'!F13 -> 43.98 | G15: ='Calculated Data'!G13 -> 38.32 | H15: ='Calculated Data'!H13 -> 40.42 | I15: ='Calculated Data'!I13 -> 38.3 | J15: ='Calculated Data'!J13 -> 33.04 | K15: ='Calculated Data'!K13 -> 38.32 | L15: ='Balance Sheet'!L10+'Balance Sheet'!L11+'Balance Sheet'!L16 -> 0
A16: Capital Turns | B16: =B3/B15 -> 1.569025522 | C16: 2.156698565 | D16: 2.005149331 | E16: 1.52283105 | F16: 1.09163256 | G16: 1.02374739 | H16: 1.655863434 | I16: 1.987206266 | J16: 2.466707022 | K16: 2.890135699
A17: RoIC | B17: ='Calculated Data'!B24 -> 0.0502013746 | C17: ='Calculated Data'!C24 -> 0.1065657182 | D17: ='Calculated Data'!D24 -> 0.1250108478 | E17: ='Calculated Data'!E24 -> 0.09762912227 | F17: ='Calculated Data'!F24 -> 0.09564224997 | G17: ='Calculated Data'!G24 -> -0.1483835674 | H17: ='Calculated Data'!H24 -> 0.1471957039 | I17: ='Calculated Data'!I24 -> 0.1944043106 | J17: ='Calculated Data'!J24 -> 0.1905458389 | K17: ='Calculated Data'!K24 -> 0.3468613315 | L17: =(L4/L15)*(1-'Calculated Data'!K22) -> 
A18: 5Yr Rolling RoIIC | B18: =Customization!B58 -> 0 | C18: =Customization!C58 -> 0 | D18: =Customization!D58 -> 0 | E18: =Customization!E58 -> 0 | F18: =Customization!F58 -> 0 | G18: =Customization!G58 -> 0 | H18: =Customization!H58 -> 0.1554545605 | I18: =Customization!I58 -> 0.2479869036 | J18: =Customization!J58 -> 0.266858726 | K18: =Customization!K58 -> -1.424040763
A19: EPA | B19: ='Calculated Data'!B26 -> -1.203328302 | C19: ='Calculated Data'!C26 -> -0.3369317865 | D19: ='Calculated Data'!D26 -> 0.1459659955 | E19: ='Calculated Data'!E26 -> -0.88186 | F19: ='Calculated Data'!F26 -> -1.071253846 | G19: ='Calculated Data'!G26 -> -10.2844583 | H19: ='Calculated Data'!H26 -> 1.09925035 | I19: ='Calculated Data'!I26 -> 2.849685096 | J19: ='Calculated Data'!J26 -> 2.330834518 | K19: ='Calculated Data'!K26 -> 8.693326223 | L19: =L15*(L17-'Calculated Data'!K25) -> 
A20: EPA/Sales | B20: =B19/B3 -> -0.04448533464 | C20: -0.006229095702 | D20: 0.002498989822 | E20: -0.01469032151 | F20: -0.02231313989 | G20: -0.262157999 | H20: 0.01642388092 | I20: 0.03744166465 | J20: 0.02859919654 | K20: 0.0784950449
A21: Sustainable Growth Rate (without addl financing?) | B21: ='Calculated Data'!B31 -> 0.0417193426 | C21: ='Calculated Data'!C31 -> 0.1330401319 | D21: ='Calculated Data'!D31 -> 0.1426547 | E21: ='Calculated Data'!E31 -> 0.1379028968 | F21: ='Calculated Data'!F31 -> 0.1013215859 | G21: ='Calculated Data'!G31 -> -0.2920216886 | H21: ='Calculated Data'!H31 -> 0.1584158416 | I21: ='Calculated Data'!I31 -> 0.1855670103 | J21: ='Calculated Data'!J31 -> 0.08160892816 | K21: ='Calculated Data'!K31 -> 0.2024587015
A22: Business Robustness Snapshot (Quarterly) | B22: Latest 10 Quarters Performance
A23: =A2 -> AXTEL INDUSTRIES LTD | B23: ='Data Sheet'!B41 -> 2017-09-30 | C23: ='Data Sheet'!C41 -> 2017-12-31 | D23: ='Data Sheet'!D41 -> 2018-03-31 | E23: ='Data Sheet'!E41 -> 2018-06-30 | F23: ='Data Sheet'!F41 -> 2018-09-30 | G23: ='Data Sheet'!G41 -> 2018-12-31 | H23: ='Data Sheet'!H41 -> 2019-03-31 | I23: ='Data Sheet'!I41 -> 2019-06-30 | J23: ='Data Sheet'!J41 -> 2019-09-30 | K23: ='Data Sheet'!K41 -> 2019-12-31
A24: Sales | B24: ='Data Sheet'!B42 -> 24.16 | C24: ='Data Sheet'!C42 -> 14.39 | D24: ='Data Sheet'!D42 -> 30.06 | E24: ='Data Sheet'!E42 -> 21.37 | F24: ='Data Sheet'!F42 -> 30.28 | G24: ='Data Sheet'!G42 -> 28.97 | H24: ='Data Sheet'!H42 -> 30.13 | I24: ='Data Sheet'!I42 -> 17.83 | J24: ='Data Sheet'!J42 -> 30.83 | K24: ='Data Sheet'!K42 -> 27.55
A25: EBIT | B25: =Quarters!B16 -> 1.83 | C25: =Quarters!C16 -> 0.89 | D25: =Quarters!D16 -> 4.52 | E25: =Quarters!E16 -> 2.09 | F25: =Quarters!F16 -> 5.56 | G25: =Quarters!G16 -> 5.69 | H25: =Quarters!H16 -> 5.34 | I25: =Quarters!I16 -> 1.1 | J25: =Quarters!J16 -> 4.99 | K25: =Quarters!K16 -> 6.23
A26: Operating Profit (ex Other Income) | B26: =Quarters!B6 -> 2.28 | C26: =Quarters!C6 -> 1.3 | D26: =Quarters!D6 -> 4.84 | E26: =Quarters!E6 -> 2.51 | F26: =Quarters!F6 -> 5.42 | G26: =Quarters!G6 -> 5.78 | H26: =Quarters!H6 -> 6.17 | I26: =Quarters!I6 -> 1.29 | J26: =Quarters!J6 -> 4.73 | K26: =Quarters!K6 -> 5.92
A27: EBIT Margin | B27: =B25/B24 -> 0.07574503311 | C27: =C25/C24 -> 0.06184850591 | D27: 0.1503659348 | E27: 0.09780065512 | F27: 0.1836195509 | G27: 0.1964100794 | H27: 0.1772319947 | I27: 0.06169377454 | J27: 0.1618553357 | K27: 0.2261343013
A28: Operating Profit Margin (ex Other Income) | B28: =B26/B24 -> 0.09437086093 | C28: =C26/C24 -> 0.09034051425 | D28: 0.1610113107 | E28: 0.1174543753 | F28: 0.178996037 | G28: 0.1995167415 | H28: 0.2047792897 | I28: 0.07234997196 | J28: 0.1534219916 | K28: 0.2148820327
A29: Threshold Margin Snapshot | B29: =B2 -> 2010-03-31 | C29: =C2 -> 2011-03-31 | D29: 2012-03-31 | E29: 2013-03-31 | F29: 2014-03-31 | G29: 2015-03-31 | H29: 2016-03-31 | I29: 2017-03-31 | J29: 2018-03-31 | K29: 2019-03-31 | L29: TTM
A30: Incremental Fixed Capital Investment Rate | C30: =('Calculated Data'!C18-'Data Sheet'!C26)/('Business Robustness'!C3-'Business Robustness'!B3) -> 0.05103550296 | D30: =('Calculated Data'!D18-'Data Sheet'!D26)/('Business Robustness'!D3-'Business Robustness'!C3) -> 0.6111111111 | E30: =('Calculated Data'!E18-'Data Sheet'!E26)/('Business Robustness'!E3-'Business Robustness'!D3) -> 5.808641975 | F30: =('Calculated Data'!F18-'Data Sheet'!F26)/('Business Robustness'!F3-'Business Robustness'!E3) -> -0.3968386023 | G30: =('Calculated Data'!G18-'Data Sheet'!G26)/('Business Robustness'!G3-'Business Robustness'!F3) -> 0.354214123 | H30: =('Calculated Data'!H18-'Data Sheet'!H26)/('Business Robustness'!H3-'Business Robustness'!G3) -> -0.1083032491 | I30: =('Calculated Data'!I18-'Data Sheet'!I26)/('Business Robustness'!I3-'Business Robustness'!H3) -> -0.2004357298 | J30: =('Calculated Data'!J18-'Data Sheet'!J26)/('Business Robustness'!J3-'Business Robustness'!I3) -> 0.0667903525 | K30: =('Calculated Data'!K18-'Data Sheet'!K26)/('Business Robustness'!K3-'Business Robustness'!J3) -> -0.03794871795
A31: Incremental Working Capital Investment Rate | C31: =('Calculated Data'!C11-'Calculated Data'!B11)/('Business Robustness'!C3-'Business Robustness'!B3) -> 0.2389053254 | D31: =('Calculated Data'!D11-'Calculated Data'!C11)/('Business Robustness'!D3-'Business Robustness'!C3) -> 0.3263888889 | E31: =('Calculated Data'!E11-'Calculated Data'!D11)/('Business Robustness'!E3-'Business Robustness'!D3) -> 0.5432098765 | F31: =('Calculated Data'!F11-'Calculated Data'!E11)/('Business Robustness'!F3-'Business Robustness'!E3) -> 0.01747088186 | G31: =('Calculated Data'!G11-'Calculated Data'!F11)/('Business Robustness'!G3-'Business Robustness'!F3) -> 0.2904328018 | H31: =('Calculated Data'!H11-'Calculated Data'!G11)/('Business Robustness'!H3-'Business Robustness'!G3) -> 0.1841155235 | I31: =('Calculated Data'!I11-'Calculated Data'!H11)/('Business Robustness'!I3-'Business Robustness'!H3) -> -0.03050108932 | J31: =('Calculated Data'!J11-'Calculated Data'!I11)/('Business Robustness'!J3-'Business Robustness'!I3) -> -1.042671614 | K31: =('Calculated Data'!K11-'Calculated Data'!J11)/('Business Robustness'!K3-'Business Robustness'!J3) -> 0.2184615385
A32: Incremental Threshold Margin | C32: =((C30+C31)*'Calculated Data'!C25)/((1+'Calculated Data'!C25)*(1-'Calculated Data'!C22)) -> 0.05532666634 | D32: =((D30+D31)*'Calculated Data'!D25)/((1+'Calculated Data'!D25)*(1-'Calculated Data'!D22)) -> 0.1486740184 | E32: =((E30+E31)*'Calculated Data'!E25)/((1+'Calculated Data'!E25)*(1-'Calculated Data'!E22)) -> 1.009726344 | F32: =((F30+F31)*'Calculated Data'!F25)/((1+'Calculated Data'!F25)*(1-'Calculated Data'!F22)) -> -0.06126435237 | G32: =((G30+G31)*'Calculated Data'!G25)/((1+'Calculated Data'!G25)*(1-'Calculated Data'!G22)) -> 0.07227544861 | H32: =((H30+H31)*'Calculated Data'!H25)/((1+'Calculated Data'!H25)*(1-'Calculated Data'!H22)) -> 0.009679602888 | I32: =((I30+I31)*'Calculated Data'!I25)/((1+'Calculated Data'!I25)*(1-'Calculated Data'!I22)) -> -0.03014109499 | J32: =((J30+J31)*'Calculated Data'!J25)/((1+'Calculated Data'!J25)*(1-'Calculated Data'!J22)) -> -0.1391761162 | K32: =((K30+K31)*'Calculated Data'!K25)/((1+'Calculated Data'!K25)*(1-'Calculated Data'!K22)) -> 0.02716653231
A33: Threshold Margin (Value Neutral Operating Margin) | C33: =(B4+(C32*(C3-B3)))/C3 -> 0.05335612974 | D33: =(C4+(D32*(D3-C3)))/D3 -> 0.09248881629 | E33: 0.1170374259 | F33: 0.1342719749 | G33: 0.145435166 | H33: -0.08489279845 | I33: 0.08951917945 | J33: 0.1020839354 | K33: 0.0828408223 | L33: higher capital intensity business demands higher threshold margin (to break even) than lower cap intensive
A34: Threshold Exceed Rate | C34: =C14-C33 -> 0.03464534927 | D34: =D14-D33 -> -0.000210096896 | E34: -0.02191831878 | F34: -0.002216153208 | G34: -0.2971048066 | H34: 0.1908243687 | I34: 0.02965044346 | J34: 0.0007381505081 | K34: 0.0857370558

Sheet Buffet-Valuation
A1: ='Data Sheet'!B1 -> AXTEL INDUSTRIES LTD | D1: (adapted from the methodology described in the book "Buffetology" by Mary Buffet - using current Visibility aided by Historicals)
A2: Current Data | D2: 10 yr Projected Company data using historical earnings growth rate/current visibility | O2: 10yr Sales Projection
A3: Price | B3: ='Data Sheet'!B8 -> 90.5 | D3: Year | E3: EPS | F3: DPS | O3: Year | P3: Sales
A4: EPS: | B4: ='Profit & Loss'!L13 -> 7.620075239 | D4: Current | E4: =B4 -> 7.620075239 | F4: =B5 -> 1.498006784 | H4: =E14 -> 70.96748091 | I4: Earnings after 10 years | O4: Current | P4: ='Profit & Loss'!K4 -> 110.75
A5: DPS: | B5: ='Profit & Loss'!K22 -> 1.498006784 | D5: Year 1 | E5: =E4*(1+$B$21) -> 9.525094049 | F5: =E5*$B$36 -> 0.4762547025 | H5: =SUM(F5:F14) -> 15.83685142 | I5: Dividends paid over 10 years | O5: Year 1 | P5: =P4*(1+$B$14) -> 138.4375
A6: BVPS: | B6: ='Balance Sheet'!K32 -> 32.2257162 | D6: Year 2 | E6: 11.90636756 | F6: 0.5953183781 | O6: Year 2 | P6: 173.046875
A7: P/E: | B7: =B3/B4 -> 11.87652315 | D7: Year 3 | E7: 14.88295945 | F7: 0.7441479726 | H7: =$B$33*H4 -> 1064.512214 | I7: Projected price [Avg Sustainable P/E*EPS] | O7: Year 3 | P7: 216.3085938
A8: Earnings Yield: | B8: =B4/B3 -> 0.0841997264 | D8: Year 4 | E8: 18.60369931 | F8: 0.9301849657 | H8: =H7+H5 -> 1080.349065 | I8: Total Gain [Projected Price+Dividends] | O8: Year 4 | P8: 270.3857422
A9: Dividend Yield: | B9: =B5/B3 -> 0.01655256115 | D9: Year 5 | E9: 23.25462414 | F9: 1.162731207 | O9: Year 5 | P9: 337.9821777
A10: P/BV: | B10: =B3/B6 -> 2.808316174 | D10: Year 6 | E10: 29.06828018 | F10: 1.453414009 | H10: =POWER(H8/$B$3,1/9)-1 -> 0.3172168576 | I10: Projected annual return using current EPS growth visibility | O10: Year 6 | P10: 422.4777222
D11: Year 7 | E11: 36.33535022 | F11: 1.816767511 | I11: [(Total Gain/Current Price)^1/9)-1] | O11: Year 7 | P11: 528.0971527
A12: Input Visibility data | B12: below | D12: Year 8 | E12: 45.41918778 | F12: 2.270959389 | O12: Year 8 | P12: 660.1214409
A13: Sales | D13: Year 9 | E13: 56.77398473 | F13: 2.838699236 | O13: Year 9 | P13: 825.1518011
A14: Med Term Visibility | B14: 0.25 | D14: Year 10 | E14: 70.96748091 | F14: 3.548374045 | O14: Year 10 | P14: 1031.439751
A15: Sales 10 Yr CAGR | B15: =POWER('Profit & Loss'!K4/'Profit & Loss'!B4, 1/9)-1 -> 0.1695521921
A16: Sales 5yr CAGR | B16: =POWER('Profit & Loss'!K4/'Profit & Loss'!G4, 1/4)-1 -> 0.2962278753 | D16: 10 yr Projected Company data using sustainable growth rate based on current visibility
A17: Sales 3yr CAGR | B17: =POWER('Profit & Loss'!K4/'Profit & Loss'!I4, 1/2)-1 -> 0.2062879971 | D17: Year | E17: BVPS | F17: EPS | G17: DPS
A18: Sales Y-o-Y growth | B18: =('Profit & Loss'!K4-'Profit & Loss'!J4)/'Profit & Loss'!J4 -> 0.3588957055 | D18: Current | E18: =B6 -> 32.2257162 | F18: =B4 -> 7.620075239 | G18: =B5 -> 1.498006784 | H18: =F28 -> 56.83585439 | I18: Earnings after 10 years
A19: Sales TTM Growth | B19: =('Profit & Loss'!L4-'Profit & Loss'!K4)/'Profit & Loss'!K4 -> -0.03981941309 | D19: Year 1 | E19: =E18+F18-G18 -> 38.34778465 | F19: =E19*$B$37 -> 9.107598855 | G19: =F19*$B$36 -> 0.4553799427 | H19: =SUM(G19:G28) -> 13.41869145 | I19: Dividends paid over 10 years
A20: EPS | D20: Year 2 | E20: =E19+F19-G19 -> 47.00000356 | F20: 11.16250085 | G20: 0.5581250423
A21: Med Term Visibility | B21: 0.25 | D21: Year 3 | E21: 57.60437937 | F21: 13.6810401 | G21: 0.684052005 | H21: =$B$33*H18 -> 852.5378158 | I21: Projected price [Avg Sustainable P/E*EPS]
A22: EPS 10 Yr CAGR | B22: =POWER('Profit & Loss'!K13/'Profit & Loss'!B13, 1/9)-1 -> 0.3198599964 | D22: Year 4 | E22: 70.60136746 | F22: 16.76782477 | G22: 0.8383912386 | H22: =H21+H19 -> 865.9565072 | I22: Total Gain [Projected Price+Dividends]
A23: EPS 5yr CAGR | B23: =POWER('Profit & Loss'!K13/'Profit & Loss'!G13, 1/4)-1 ->  | D23: Year 5 | E23: 86.53080099 | F23: 20.55106524 | G23: 1.027553262
A24: EPS 3yr CAGR | B24: =POWER('Profit & Loss'!K13/'Profit & Loss'!I13, 1/2)-1 -> 0.3764944032 | D24: Year 6 | E24: 106.054313 | F24: 25.18789933 | G24: 1.259394967 | H24: =POWER(H22/$B$3,1/9)-1 -> 0.2852365144 | I24: Projected annual return using sustainable growth visbility*
A25: EPS Y-o-Y growth | B25: =('Profit & Loss'!K13-'Profit & Loss'!J13)/'Profit & Loss'!J13 -> 1.18549747 | D25: Year 7 | E25: =E24+F24-G24 -> 129.9828173 | F25: 30.87091912 | G25: 1.543545956 | I25: [(Total Gain/Current Price)^1/9)-1]
A26: EPS TTM Growth | B26: =('Profit & Loss'!L13-'Profit & Loss'!K13)/'Profit & Loss'!K13 -> -0.05014821391 | D26: Year 8 | E26: =E25+F25-G25 -> 159.3101905 | F26: 37.83617024 | G26: 1.891808512
A27: 5Yr Averages | D27: Year 9 | E27: =E26+F26-G26 -> 195.2545522 | F27: 46.37295615 | G27: 2.318647808
A28: Return on Equity: | B28: =AVERAGE(Customization!G53:K53) -> 0.08775592056 | D28: Year 10 | E28: =E27+F27-G27 -> 239.3088606 | F28: 56.83585439 | G28: 2.841792719
A29: Payout Ratio: | B29: =AVERAGE('Profit & Loss'!G23:K23) -> 0.118964566 | D29: *Assuming current capital structure is maintained - business's inherent ability to grow with internal accruals from here
A30: P/E Ratio-High: | B30: =MAX('Calculated Data'!G38:K38) -> 25.47173356
A31: P/E Ratio-Low: | B31: =MIN('Calculated Data'!G38:K38) -> -2.442502918
A32: Avg. P/E Ratio: | B32: =AVERAGE('Calculated Data'!G38:K39) -> 7.585092173
A33: Avg Sustainable P/E | B33: 15
A34: RoE/Payout Visibility | C34: 5 Yr Avg
A35: RoE Visibility | B35: 0.25 | C35: =AVERAGE('Calculated Data'!G20:'Calculated Data'!K20) -> 0.08775592056
A36: Payout Visbility | B36: 0.05 | C36: =AVERAGE('Calculated Data'!G21:K21) -> 0.118964566
A37: Sustainable Growth | B37: =B35*(1-B36) -> 0.2375 | C37: =C35*(1-C36) -> 0.07731607555

Sheet Deep Dive
A1: ='Data Sheet'!B1 -> AXTEL INDUSTRIES LTD
E2: Key figures extracted/highlighted automatically from Excel for quick scan that helps tell a more complete story?
E3: TTM Sales | F3: TTM Net Profit | G3: TTM EBIT | H3: ROIC | I3: Invested Cap | J3: EPA /Sales | K3: Mkt Cap | L3: P/B | M3: P/S | N3: P/E | O3: P/CFO | P3: Div Yield | Q3: EV/EBITDA | R3: Earnings Yield
E4: =Annual[[#This Row],[Column12]] -> 106.34 | F4: ='Calculated Data'!L7 -> 12.31 | G4: ='Calculated Data'!L4 -> 17.66 | H4: ='Calculated Data'!K24 -> 0.3468613315 | I4: ='Calculated Data'!K13 -> 38.32 | J4: =Customization!K42 -> 0.0784950449 | K4: ='Calculated Data'!L33 -> 146.2 | L4: =Customization!H8 -> 2.808298118 | M4: =Customization!J8 -> 1.374835434 | N4: =Customization!G8 -> 11.87652315 | O4: =IF(Customization!L8>0,0) -> 0 | P4: =Customization!K8 -> 0.01655266758 | Q4: =Customization!I8 -> 9.334983232 | R4: =1/N4 -> 0.0841997264
D5: 10Yr Incr FA Invest Rate | E5: Dividend Payout | F5: 5yrAvg Sust. Growth | G5: Retained Earnings / TA | H5: RoE | I5: WCap /TA | J5: Total Asset Turns | K5: Fixed Asset Turn | L5: Cash Eqv | M5: Invest ments | N5: Net Profit | O5: CFO | P5: FCF/ Sales | Q5: Op Leverage
D6: ='Price Implied Expectations'!K10 -> 0.1135005974 | E6: ='Calculated Data'!K21 -> 0.1867283951 | F6: ='Buffet-Valuation'!C37 -> 0.07731607555 | G6: ='Calculated Data'!K46 -> 0.125029656 | H6: ='Calculated Data'!K20 -> 0.2489435267 | I6: ='Calculated Data'!K45 -> 0.2642941874 | J6: =Customization!K51 -> 1.31376038 | K6: =Customization!K50 -> 6.991792929 | L6: ='Balance Sheet'!K34 -> 5.5 | M6: ='Balance Sheet'!K12 -> 14.9 | N6: ='Calculated Data'!K7 -> 12.96 | O6: ='Cash Flow'!K4 -> 9.15 | P6: ='Calculated Data'!K19/'Profit & Loss'!K4 -> 0.06735891648 | Q6: ='Calculated Data'!K30 -> 3.42139404
D7: 10Yr Incr Wcap Invest Rate | E7: Industry FA Turns | F7: Industry WCap /TA | G7: Industry RE /TA | H7: Industry RoE | I7: 5YrAvg WCap /TA | J7: 5YrAvg TA Turns | K7: 5YrAvg FA Turns | L7: Steady State Value | M7: Future Earnings Value | N7: SState Value/ Mcap | O7: Future Value /Mcap
D8: ='Price Implied Expectations'!K16 -> 0.1383512545 | I8: =AVERAGE('Calculated Data'!G45:K45) -> 0.2759894557 | J8: =AVERAGE(Customization!G51:K51) -> 1.022802333 | K8: =AVERAGE(Customization!G50:K50) -> 4.354528578 | L8: ='Price Implied Expectations'!B37 -> 232.5463218 | M8: 0 | N8: =L8/'Data Sheet'!B9 -> 1.590604116 | O8: =1-N8 -> -0.5906041165
B9: FY 2010 | C9: FY 2011 | D9: FY2012 | E9: FY 2013 | F9: FY 2014 | G9: FY 2015 | H9: FY 2016 | I9: FY 2017 | J9: FY 2018 | K9: FY 2019
A10: RoE | B10: ='Calculated Data'!B20 -> 0.0417193426 | C10: ='Calculated Data'!C20 -> 0.1330401319 | D10: ='Calculated Data'!D20 -> 0.1426547 | E10: ='Calculated Data'!E20 -> 0.1379028968 | F10: ='Calculated Data'!F20 -> 0.1013215859 | G10: ='Calculated Data'!G20 -> -0.2920216886 | H10: ='Calculated Data'!H20 -> 0.1584158416 | I10: ='Calculated Data'!I20 -> 0.1855670103 | J10: ='Calculated Data'!J20 -> 0.1378749128 | K10: ='Calculated Data'!K20 -> 0.2489435267
A11: CC Cycle | B11: =Customization!B30 -> 86.76340111 | C11: =Customization!C30 -> 161.8848216 | D11: =Customization!D30 -> 105.1070022 | E11: =Customization!E30 -> 34.23205064 | F11: =Customization!F30 -> -68.72734847 | G11: =Customization!G30 -> -64.84960489 | H11: =Customization!H30 -> 34.30225609 | I11: =Customization!I30 -> 54.6229142 | J11: =Customization!J30 -> 11.64417178 | K11: =Customization!K30 -> -11.30428894
A12: Gr Margin | B12: =Customization!B35 -> 0.2499075786 | C12: =Customization!C35 -> 0.3229802182 | D12: =Customization!D35 -> 0.3680876562 | E12: =Customization!E35 -> 0.4875895386 | F12: =Customization!F35 -> 0.5061445532 | G12: =Customization!G35 -> 0.3173591639 | H12: =Customization!H35 -> 0.5714926042 | I12: =Customization!I35 -> 0.5603731441 | J12: =Customization!J35 -> 0.4749693252 | K12: =Customization!K35 -> 0.5007674944
A13: Eq Dilution | B13: ='Cost Analysis'!B41 -> 0 | C13: ='Cost Analysis'!C41 -> 0 | D13: ='Cost Analysis'!D41 -> 0 | E13: ='Cost Analysis'!E41 -> 0 | F13: ='Cost Analysis'!F41 -> 0 | G13: ='Cost Analysis'!G41 -> 0.615 | H13: ='Cost Analysis'!H41 -> 0 | I13: ='Cost Analysis'!I41 -> 0 | J13: ='Cost Analysis'!J41 -> 0 | K13: ='Cost Analysis'!K41 -> 0

Sheet Sheet1
